Workbook

Sheet Sh 1 - RevLag
A1: ='(WP) Instructions & Input'!B2 -> COLUMBIA GAS OF KENTUCKY, INC.
A2: ='(WP) Instructions & Input'!B9 -> CASE NO. 2024-00092
A3: ='(WP) Instructions & Input'!B3 -> CASH WORKING CAPITAL
A4: REVENUE LAG
A5: ='(WP) Instructions & Input'!B4 -> TME: DECEMBER 31, 2023
C7: ='(WP) Instructions & Input'!$B$11 -> Attachment KLJ-CWC-1
C8: SHEET 1
C9: ='(WP) Instructions & Input'!$B$12 -> WITNESS: JOHNSON
A11: Line | C11: Number
A12: No. | B12: Lag Component | C12: of Days
B13: (1) | C13: (2)
A15: 1 | B15: Meter Reading 1/ | C15: =ROUND(365/12/2,2) -> 15.21
A16: 2 | B16: Collection (see Sheet No. 1a) | C16: ='Sh 1a - Coll-Lag'!G37 -> 4.24
A17: 3 | B17: Billing (see Sheet No. 1c) | C17: ='Sh 1c - Bill Lag'!D20 -> 1.98
A19: 4 | B19: Total Revenue Lag | C19: =C15+C16+C17 -> 21.43
A21: 1/ | B21: Meter reading lag represents the midpoint of any billing month and are computed as: 365 days / 12 Months / 2 (midpoint) = 15.21 days.

Sheet Sh 1a - Coll-Lag
A1: ='(WP) Instructions & Input'!B2 -> COLUMBIA GAS OF KENTUCKY, INC.
A2: ='(WP) Instructions & Input'!B9 -> CASE NO. 2024-00092
A3: ='(WP) Instructions & Input'!B3 -> CASH WORKING CAPITAL
A4: WEIGHTED AVERAGE COLLECTION LAG
A5: ='(WP) Instructions & Input'!B4 -> TME: DECEMBER 31, 2023
G7: ='(WP) Instructions & Input'!$B$11 -> Attachment KLJ-CWC-1
G8: SHEET 1a
G9: ='(WP) Instructions & Input'!$B$12 -> WITNESS: JOHNSON
A11: Line | D11: Average Daily Revenue | G11: Amount
A12: No. | G12: $
A14: 1 | B14: Total Tariff Revenues:
A15: =A14+1 -> 2 | B15: Residential Revenues | G15: 113923249.9
A16: =A15+1 -> 3 | B16: Commercial Revenues | G16: 51469804.61
A17: =A16+1 -> 4 | B17: Industrial Revenues | G17: 2342927.56
A18: =A17+1 -> 5 | B18: Other Revenues | G18: 0
A19: =A18+1 -> 6 | F19: Total Tariff Revenue | G19: =SUM(G15:G18) -> 167735982
A21: =A19+1 -> 7 | B21: Non - traditional sales | G21: 2654287.53
A22: =A21+1 -> 8 | B22: Transportation Revenue | G22: =8946186.61+6922143.65+7623160.89 -> 23491491.15
A23: 9 | B23: Gross Receipts, Franchise & Sales & Use Taxes | G23: ='Sh 16 - Sales & Use'!E46+'Sh 15 - Franchise & GR Tax'!E29+'Sh 15 - Franchise & GR Tax'!E44 -> 16339045.34
A24: 10 | B24: Forfeited Discounts | G24: 643754.53
A25: 11 | B25: Miscellaneous Service Revenue | G25: 104170.99
A26: =A25+1 -> 12 | B26: Other Gas Revenues - Other | G26: 1065169.28
A27: 13 | F27: Subtotal of Additional Revenue | G27: =SUM(G21:G26) -> 44297918.82
A29: =A27+1 -> 14 | B29: Choice Marketer Revenues | G29: =13844599.62+265784.03 -> 14110383.65
A31: =A29+1 -> 15 | F31: Total Adjusted Revenue | G31: =G19+G27+G29 -> 226144284.5
A33: =A31+1 -> 16 | F33: Average Daily Revenue (Line 16 ÷ 365 days) | G33: =G31/365 -> 619573.3822
A35: =A33+1 -> 17 | F35: Average Daily A/R Balance (Per Sheet No. 3b) | G35: ='Sh 1b - AR Summ'!I31 -> 2625851.318
A37: =A35+1 -> 18 | F37: Revenue Collection Lag Days (Line 17 ÷ Line 16) | G37: =ROUND(G35/G33,2) -> 4.24

Sheet Sh 1b - AR Summ
A1: ='(WP) Instructions & Input'!B2 -> COLUMBIA GAS OF KENTUCKY, INC.
A2: ='(WP) Instructions & Input'!B9 -> CASE NO. 2024-00092
A3: ='(WP) Instructions & Input'!B3 -> CASH WORKING CAPITAL
A4: SUMMARY OF ACCOUNT RECEIVABLE
A5: ='Sh 1a - Coll-Lag'!A5 -> TME: DECEMBER 31, 2023
I7: ='(WP) Instructions & Input'!$B$11 -> Attachment KLJ-CWC-1
I8: SHEET 1b
I9: ='(WP) Instructions & Input'!$B$12 -> WITNESS: JOHNSON
C11: 14200220 | D11: ="14200250"&", 14300220" -> 14200250, 14300220 | E11: 14200260 | F11: ="14300018"&"" -> 14300018 | G11: ="14300330"&""&", 14300350" -> 14300330, 14300350 | H11: ="14300240"&""&"" -> 14300240
C12: Customer A/R CAB | D12: Customer A/R GMB | E12: Customer Premise | F12: Off-System Sales | G12: Other AR Choice Trans. | H12: Transportation A/R | I12: Utility
A13: Line | C13: Month-End | D13: Month-End | E13: Month-End | F13: Month-End | G13: Month-end | H13: Month-End | I13: Accounts
A14: No. | B14: Month | C14: Balance | D14: Balance | E14: Balance | F14: Balance | G14: Balance | H14: Balance | I14: Receivables
C15: (1) | D15: (2) | E15: (3) | F15: (4) | G15: (5) | H15: (6) | I15: (7)=(1 thru 6)
C16: ($) | D16: ($) | E16: ($) | F16: ($) | G16: ($) | H16: ($) | I16: ($)
A18: 1 | B18: January | C18: 9701265.21 | D18: 735932.08 | E18: 125949.43 | F18: 129700.24 | G18: 412141.61 | H18: 1189162.79 | I18: =SUM(C18:H18) -> 12294151.36
A19: =A18+1 -> 2 | B19: February | C19: 13669143.82 | D19: 560549.48 | E19: 132924.03 | F19: 103961.49 | G19: 1183339.36 | H19: 1562534.46 | I19: 17212452.64
A20: 3 | B20: March | C20: 8666702.83 | D20: 454450.31 | E20: 91498.27 | F20: 237422.74 | G20: 632328.4 | H20: 1007512.92 | I20: 11089915.47
A21: 4 | B21: April | C21: 8344144.33 | D21: 221119.02 | E21: 130936.58 | F21: 407170.99 | G21: 624516.55 | H21: 1261013.4 | I21: 10988900.87
A22: 5 | B22: May | C22: 5299633.94 | D22: 145992.48 | E22: 164451.73 | F22: 378076.99 | G22: 101737.85 | H22: 835516.71 | I22: 6925409.7
A23: 6 | B23: June | C23: 1798926.78 | D23: 85269.39 | E23: 159151.6 | F23: 162228.99 | G23: -552113.1 | H23: 873948.74 | I23: 2527412.4
A24: 7 | B24: July | C24: -187470.2 | D24: 267566.44 | E24: 184865.7 | F24: 52470.49 | G24: -993577.28 | H24: 1047938.87 | I24: 371794.02
A25: 8 | B25: August | C25: -3847703.91 | D25: 160551.74 | E25: 189817.76 | F25: 122580.49 | G25: -1792880.84 | H25: 972690.29 | I25: -4194944.47
A26: 9 | B26: September | C26: -6479652.85 | D26: 72289.14 | E26: 199584.03 | F26: 364309.49 | G26: -2182091.81 | H26: 1085876.16 | I26: -6939685.84
A27: 10 | B27: October | C27: -9196889.08 | D27: 103950.46 | E27: 201667.66 | F27: 335314.74 | G27: -2713383.92 | H27: 1170609.21 | I27: -10098730.93
A28: 11 | B28: November | C28: -8883007.99 | D28: 261765.41 | E28: 326227.58 | F28: 448425.74 | G28: -2575450.36 | H28: 1347222.9 | I28: -9074816.72
A29: 12 | B29: December | C29: -758903.09 | D29: 240126.3 | E29: 291249.46 | F29: 164927.24 | G29: -1094095.08 | H29: 1565052.49 | I29: 408357.32
A30: =A29+1 -> 13 | B30: Total | C30: =SUM(C18:C29) -> 18126189.79 | D30: 3309562.25 | E30: 2198323.83 | F30: 2906589.63 | G30: -8949528.62 | H30: 13919078.94 | I30: =SUM(I18:I29) -> 31510215.82
A31: =A30+1 -> 14 | B31: 12 Mo. Avg. | C31: =C30/12 -> 1510515.816 | D31: =D30/12 -> 275796.8542 | E31: 183193.6525 | F31: 242215.8025 | G31: -745794.0517 | H31: 1159923.245 | I31: =I30/12 -> 2625851.318
A33: (1) | B33: Source: Company Financial Statements

Sheet Sh 1c - Bill Lag
A1: ='(WP) Instructions & Input'!B2 -> COLUMBIA GAS OF KENTUCKY, INC.
A2: ='(WP) Instructions & Input'!B9 -> CASE NO. 2024-00092
A3: ='(WP) Instructions & Input'!B3 -> CASH WORKING CAPITAL
A4: BILLING LAG CALCULATION
A5: ='(WP) Instructions & Input'!B4 -> TME: DECEMBER 31, 2023
E7: ='(WP) Instructions & Input'!$B$11 -> Attachment KLJ-CWC-1
E8: SHEET 1c
E9: ='(WP) Instructions & Input'!$B$12 -> WITNESS: JOHNSON
A12: Line | C12: Revenue | D12: Billing | E12: Weighted
A13: No. | B13: Description | C13: Amount | D13: Lag | E13: Revenue
B14: (1) | C14: (2) | D14: (3) | E14: (4)=(2)*(3)
C15: $ | E15: $
A16: 1 | B16: Tariff / Transportation Revenues - (DIS) | C16: ='Sh 1a - Coll-Lag'!G19-'Sh 1c - Bill Lag'!C17-'Sh 1c - Bill Lag'!C18 -> 155368982.2 | D16: ='(WP) 3c Bill Lag DIS'!E267 -> 1.46031746 | E16: =D16*C16 -> 226888037.6
A17: =A16+1 -> 2 | B17: Tariff / Transportation Revenues - (GTS) | C17: ='(WP) 3c Bill Lag GTS'!E1156 -> 10306814.17 | D17: =ROUND(+E17/C17,2) -> 9.98 | E17: ='(WP) 3c Bill Lag GTS'!F1156 -> 102810970.2
A18: =A17+1 -> 3 | B18: Tariff / Transportation Revenues - (GMB/GAS) | C18: ='(WP) 3c Bill Lag GMB'!E460 -> 2060185.62 | D18: =ROUND(+E18/C18,2) -> 0.97 | E18: ='(WP) 3c Bill Lag GMB'!F460 -> 2000376.88
A19: =A18+1 -> 4 | C19: =SUM(C16:C18) -> 167735982 | E19: =SUM(E16:E18) -> 331699384.6
A20: =A19+1 -> 5 | B20: Calculated Billing Lag | D20: =ROUND($E$19/$C$19,2) -> 1.98

Sheet (WP)Autopay adj 3a Do not file (hidden)
D1: ='(WP) Instructions & Input'!B11 -> Attachment KLJ-CWC-1
D2: ='(WP) Instructions & Input'!B12 -> WITNESS: JOHNSON
D3: ='(WP) Instructions & Input'!B6 -> 0
D4: Workpaper 3a
A5: ='(WP) Instructions & Input'!B2 -> COLUMBIA GAS OF KENTUCKY, INC.
A6: ='(WP) Instructions & Input'!B3 -> CASH WORKING CAPITAL
A7: Collection Lag Adjustment for Automatic Payment Customers
A8: ='(WP) Instructions & Input'!B4 -> TME: DECEMBER 31, 2023
A11: Line No. | B11: Month | C11: A/R Balance Impact
C12: ($)
A13: 1 | B13: January 2015 | C13: 2205767
A14: =A13+1 -> 2 | B14: February | C14: 1746256
A15: 3 | B15: March | C15: 2028950
A16: 4 | B16: April | C16: 1116889
A17: 5 | B17: May | C17: 866643
A18: 6 | B18: June | C18: 800033
A19: 7 | B19: July | C19: 888798
A20: 8 | B20: August | C20: 858952
A21: 9 | B21: September | C21: 889025
A22: 10 | B22: October | C22: 963368
A23: 11 | B23: November | C23: 920198
A24: 12 | B24: December | C24: 1442736
A25: =A24+1 -> 13 | B25: Total | C25: =SUM(C13:C24) -> 14727615
A26: =A25+1 -> 14 | B26: Average A/R Balance for Automatic Payment Customers | C26: =C25/12 -> 1227301.25
A28: =A26+1 -> 15 | B28: Total Adjusted Revenue TME 12/31/2015 | C28: 333819774.7
A29: =A28+1 -> 16 | B29: Average Daily Revenue (Line 15 / 365) | C29: =C28/365 -> 914574.7253
A31: =A29+1 -> 17 | B31: Revenue Collection Lag Days (Line 14 / Line 16) | C31: =ROUND(C26/C29,2) -> 1.34

Sheet Sh 2 - Gas Purch
A1: ='(WP) Instructions & Input'!B2 -> COLUMBIA GAS OF KENTUCKY, INC.
A2: ='(WP) Instructions & Input'!B9 -> CASE NO. 2024-00092
A3: ='(WP) Instructions & Input'!B3 -> CASH WORKING CAPITAL
A4: GAS PURCHASED COST
A5: ='(WP) Instructions & Input'!B4 -> TME: DECEMBER 31, 2023
F7: ='(WP) Instructions & Input'!$B$11 -> Attachment KLJ-CWC-1
F8: SHEET 2
F9: ='(WP) Instructions & Input'!$B$12 -> WITNESS: JOHNSON
E11: Weighted | F11: Dollar
A12: Line | D12: Amount | E12: Average | F12: Lead
A13: No. | B13: Supplier Category | C13: Reference | D13: Paid | E13: Lead Days | F13: Days
B14: (1) | C14: (2) | D14: (3) | E14: (4) | F14: (5=3*4))
D15: $ | F15: $
A17: 1 | B17: Commodity Costs | C17: Sheet 4a | D17: ='Sh 2a - Commodity'!F270 -> 20637071.04 | E17: ='Sh 2a - Commodity'!E270 -> 40.88 | F17: ='Sh 2a - Commodity'!G270 -> 843569705
A18: =A17+1 -> 2 | B18: Transportation Costs | C18: Sheet 4b | D18: ='Sh 2b - Transportation'!F52 -> 20816323.36 | E18: ='Sh 2b - Transportation'!E52 -> 37.61 | F18: ='Sh 2b - Transportation'!G52 -> 782988649
A20: =A18+1 -> 3 | C20: Total | D20: =SUM(D17:D19) -> 41453394.4 | E20: =ROUND(F20/D20,2) -> 39.24 | F20: =SUM(F17:F19) -> 1626558354
A22: Note: | B22: The Gas Purchase leads for both Commodity and Transportation Costs were developed through the Energy Supply & Optimization Department gas purchase system that included the gas flow service period, the date paid and the amount paid for each purchase.

Sheet Sh 2a - Commodity
A1: ='(WP) Instructions & Input'!B2 -> COLUMBIA GAS OF KENTUCKY, INC.
A2: ='(WP) Instructions & Input'!B9 -> CASE NO. 2024-00092
A3: ='(WP) Instructions & Input'!B3 -> CASH WORKING CAPITAL
A4: GAS PURCHASED - COMMODITY COSTS
A5: ='(WP) Instructions & Input'!B4 -> TME: DECEMBER 31, 2023
G7: ='(WP) Instructions & Input'!$B$11 -> Attachment KLJ-CWC-1
G8: SHEET 2a - Page 1 of 7
G9: ='(WP) Instructions & Input'!$B$12 -> WITNESS: JOHNSON
D11: Midpoint of
A12: Line | B12: Service | C12: Payment | D12: Service | E12: Lag | G12: Weighted
A13: No. | B13: Month | C13: Date | D13: Period | E13: Days | F13: Payment | G13: Days
B14: (1) | C14: (2) | D14: (3) | E14: (4)=(2-1+3) | F14: (5) | G14: (6)=(4*5)
A16: 1 | B16: =42369-334+365+366+365+365+365+365+365+366 -> 2023-01-31 | C16: 2023-02-27 | D16: 15.5 | E16: =C16-B16+D16 -> 42.5 | F16: 12675 | G16: =ROUND(E16*F16,0) -> 538688
A17: =A16+1 -> 2 | B17: =42369-334+365+366+365+365+365+365+365+366 -> 2023-01-31 | C17: 2023-02-27 | D17: 15.5 | E17: =C17-B17+D17 -> 42.5 | F17: 853895 | G17: 36290538
A18: =A17+1 -> 3 | B18: 2023-01-31 | C18: 2023-02-27 | D18: 15.5 | E18: 42.5 | F18: 19740 | G18: 838950
A19: 4 | B19: 2023-01-31 | C19: 2023-02-27 | D19: 15.5 | E19: 42.5 | F19: 204092.3 | G19: 8673923
A20: 5 | B20: 2023-01-31 | C20: 2023-02-27 | D20: 15.5 | E20: 42.5 | F20: 1716216 | G20: 72939180
A21: 6 | B21: 2023-01-31 | C21: 2023-02-27 | D21: 15.5 | E21: 42.5 | F21: 30 | G21: 1275
A22: 7 | B22: 2023-01-31 | C22: 2023-02-27 | D22: 15.5 | E22: 42.5 | F22: 36225 | G22: 1539563
A23: 8 | B23: 2023-01-31 | C23: 2023-02-27 | D23: 15.5 | E23: 42.5 | F23: 1306.25 | G23: 55516
A24: 9 | B24: 2023-01-31 | C24: 2023-02-27 | D24: 15.5 | E24: 42.5 | F24: 14050 | G24: 597125
A25: 10 | B25: 2023-01-31 | C25: 2023-02-27 | D25: 15.5 | E25: 42.5 | F25: 4050 | G25: 172125
A27: =A25+1 -> 11 | B27: =B16+28 -> 2023-02-28 | C27: 2023-03-27 | D27: 14 | E27: 41 | F27: 19000 | G27: =ROUND(E27*F27,0) -> 779000
A28: =A27+1 -> 12 | B28: =B27 -> 2023-02-28 | C28: 2023-03-27 | D28: =D27 -> 14 | E28: 41 | F28: 166491.64 | G28: =ROUND(E28*F28,0) -> 6826157
A29: 13 | B29: =B28 -> 2023-02-28 | C29: 2023-03-27 | D29: =D28 -> 14 | E29: 41 | F29: 229236 | G29: =ROUND(E29*F29,0) -> 9398676
A30: 14 | B30: =B29 -> 2023-02-28 | C30: 2023-03-27 | D30: =D29 -> 14 | E30: 41 | F30: 15695 | G30: =ROUND(E30*F30,0) -> 643495
A31: 15 | B31: =B30 -> 2023-02-28 | C31: 2023-03-27 | D31: =D30 -> 14 | E31: 41 | F31: 18100 | G31: =ROUND(E31*F31,0) -> 742100
A32: 16 | B32: 2023-02-28 | C32: 2023-03-27 | D32: 14 | E32: 41 | F32: 40 | G32: 1640
A33: 17 | B33: 2023-02-28 | C33: 2023-03-27 | D33: 14 | E33: 41 | F33: 1275 | G33: 52275
A34: 18 | B34: 2023-02-28 | C34: 2023-03-27 | D34: 14 | E34: 41 | F34: 1696 | G34: 69536
A36: =A34+1 -> 19 | B36: =B27+31 -> 2023-03-31 | C36: 2023-04-25 | D36: 15.5 | E36: =C36-B36+D36 -> 40.5 | F36: 1785 | G36: =ROUND(E36*F36,0) -> 72293
A37: 20 | B37: =B36 -> 2023-03-31 | C37: 2023-04-25 | D37: 15.5 | E37: 40.5 | F37: 9200 | G37: 372600
A38: 21 | B38: =B37 -> 2023-03-31 | C38: 2023-04-25 | D38: 15.5 | E38: 40.5 | F38: 170618 | G38: 6910029
A39: 22 | B39: 2023-03-31 | C39: 2023-04-25 | D39: 15.5 | E39: 40.5 | F39: 10800 | G39: 437400
A40: 23 | B40: 2023-03-31 | C40: 2023-04-25 | D40: 15.5 | E40: 40.5 | F40: 81194.94 | G40: 3288395
A41: 24 | B41: 2023-03-31 | C41: 2023-04-25 | D41: 15.5 | E41: 40.5 | F41: 135198.5 | G41: 5475539
A42: 25 | B42: 2023-03-31 | C42: 2023-04-25 | D42: 15.5 | E42: 40.5 | F42: 136 | G42: 5508
A43: 26 | B43: 2023-03-31 | C43: 2023-04-25 | D43: 15.5 | E43: 40.5 | F43: 10825 | G43: 438413
A44: 27 | B44: 2023-03-31 | C44: 2023-04-25 | D44: 15.5 | E44: 40.5 | F44: 45137.5 | G44: 1828069
A45: 28 | B45: 2023-03-31 | C45: 2023-04-25 | D45: 15.5 | E45: 40.5 | F45: 48879 | G45: 1979600
A46: 29 | B46: 2023-03-31 | C46: 2023-04-25 | D46: 15.5 | E46: 40.5 | F46: 17787.5 | G46: 720394
A47: 30 | B47: 2023-03-31 | C47: 2023-04-25 | D47: 15.5 | E47: 40.5 | F47: 35636.25 | G47: 1443268
A48: 31 | B48: 2023-03-31 | C48: 2023-04-25 | D48: 15.5 | E48: 40.5 | F48: 3827.25 | G48: 155004
A49: 32 | B49: 2023-03-31 | C49: 2023-04-25 | D49: 15.5 | E49: 40.5 | F49: 8750 | G49: 354375
A50: 33 | B50: 2023-03-31 | C50: 2023-04-25 | D50: 15.5 | E50: 40.5 | F50: 22756 | G50: 921618
A51: 34 | B51: 2023-03-31 | C51: 2023-04-25 | D51: 15.5 | E51: 40.5 | F51: 3094 | G51: 125307
A52: 35 | B52: 2023-03-31 | C52: 2023-04-25 | D52: 15.5 | E52: 40.5 | F52: 3680 | G52: 149040
A53: 36 | B53: 2023-03-31 | C53: 2023-04-25 | D53: 15.5 | E53: 40.5 | F53: 33243.75 | G53: 1346372
A55: =A53+1 -> 37 | B55: =B36+30 -> 2023-04-30 | C55: 2023-05-25 | D55: 15 | E55: =C55-B55+D55 -> 40 | F55: 49375 | G55: =ROUND(E55*F55,0) -> 1975000
A56: 38 | B56: =B55 -> 2023-04-30 | C56: 2023-05-25 | D56: =D55 -> 15 | E56: 40 | F56: 279670 | G56: 11186800
A57: 39 | B57: =B56 -> 2023-04-30 | C57: 2023-05-25 | D57: =D56 -> 15 | E57: 40 | F57: 18125 | G57: 725000
A58: 40 | B58: 2023-04-30 | C58: 2023-05-25 | D58: 15 | E58: 40 | F58: 8085 | G58: 323400
A59: 41 | B59: 2023-04-30 | C59: 2023-05-25 | D59: 15 | E59: 40 | F59: 8962.5 | G59: 358500
A60: 42 | B60: 2023-04-30 | C60: 2023-05-25 | D60: 15 | E60: 40 | F60: 61446.34 | G60: 2457854
A61: 43 | B61: 2023-04-30 | C61: 2023-05-25 | D61: 15 | E61: 40 | F61: 1056795 | G61: 42271800
A62: 44 | B62: 2023-04-30 | C62: 2023-05-25 | D62: 15 | E62: 40 | F62: 8201.5 | G62: 328060
A63: 45 | B63: 2023-04-30 | C63: 2023-05-25 | D63: 15 | E63: 40 | F63: 43067.75 | G63: 1722710
A64: 46 | B64: 2023-04-30 | C64: 2023-05-25 | D64: 15 | E64: =C64-B64+D64 -> 40 | F64: 542200 | G64: =ROUND(E64*F64,0) -> 21688000
A65: 47 | B65: 2023-04-30 | C65: 2023-05-25 | D65: 15 | E65: 40 | F65: 195.71 | G65: 7828
A66: 48 | B66: 2023-04-30 | C66: 2023-05-25 | D66: 15 | E66: 40 | F66: 264525 | G66: 10581000
A67: 49 | B67: 2023-04-30 | C67: 2023-05-25 | D67: 15 | E67: 40 | F67: 172.5 | G67: 6900
A68: 50 | B68: 2023-04-30 | C68: 2023-05-25 | D68: 15 | E68: 40 | F68: 105302.5 | G68: 4212100
A69: 51 | B69: 2023-04-30 | C69: 2023-05-25 | D69: 15 | E69: 40 | F69: 3039.5 | G69: 121580
A70: 52 | B70: 2023-04-30 | C70: 2023-05-25 | D70: 15 | E70: 40 | F70: 47050 | G70: 1882000
A71: 53 | B71: 2023-04-30 | C71: 2023-05-25 | D71: 15 | E71: 40 | F71: 4334.5 | G71: 173380
A72: 54 | B72: 2023-04-30 | C72: 2023-05-25 | D72: 15 | E72: 40 | F72: 7900 | G72: 316000
A73: 55 | B73: 2023-04-30 | C73: 2023-05-25 | D73: 15 | E73: 40 | F73: 1247.25 | G73: 49890
A74: 56 | B74: 2023-04-30 | C74: 2023-05-25 | D74: 15 | E74: 40 | F74: 176625 | G74: 7065000
A75: 57 | B75: 2023-04-30 | C75: 2023-05-25 | D75: 15 | E75: 40 | F75: 21412.5 | G75: 856500
A77: =A75+1 -> 58 | B77: =B55+31 -> 2023-05-31 | C77: 2023-06-26 | D77: 15.5 | E77: =C77-B77+D77 -> 41.5 | F77: 109857.5 | G77: =ROUND(E77*F77,0) -> 4559086
A78: 59 | B78: =B77 -> 2023-05-31 | C78: 2023-06-26 | D78: 15.5 | E78: 41.5 | F78: 76381.5 | G78: 3169832
A79: 60 | B79: =B78 -> 2023-05-31 | C79: 2023-06-26 | D79: 15.5 | E79: 41.5 | F79: 261502.5 | G79: 10852354
A80: 61 | B80: 2023-05-31 | C80: 2023-06-26 | D80: 15.5 | E80: 41.5 | F80: 58835 | G80: 2441653
A81: 62 | B81: 2023-05-31 | C81: 2023-06-26 | D81: 15.5 | E81: 41.5 | F81: 26543 | G81: 1101535
A82: 63 | B82: 2023-05-31 | C82: 2023-06-26 | D82: 15.5 | E82: 41.5 | F82: 39753 | G82: 1649750
A83: 64 | B83: 2023-05-31 | C83: 2023-06-26 | D83: 15.5 | E83: 41.5 | F83: 14767.5 | G83: 612851
A84: 65 | B84: 2023-05-31 | C84: 2023-06-21 | D84: 15.5 | E84: 36.5 | F84: 59968.86 | G84: 2188863
A85: 66 | B85: 2023-05-31 | C85: 2023-06-26 | D85: 15.5 | E85: 41.5 | F85: 767383 | G85: 31846395
A86: 67 | B86: 2023-05-31 | C86: 2023-06-26 | D86: 15.5 | E86: 41.5 | F86: 8225 | G86: 341338
A87: 68 | B87: 2023-05-31 | C87: 2023-06-26 | D87: 15.5 | E87: 41.5 | F87: 349.61 | G87: 14509
A88: 69 | B88: 2023-05-31 | C88: 2023-06-26 | D88: 15.5 | E88: 41.5 | F88: 9300 | G88: 385950
A89: 70 | B89: 2023-05-31 | C89: 2023-06-26 | D89: 15.5 | E89: 41.5 | F89: 5970 | G89: 247755
A90: 71 | B90: 2023-05-31 | C90: 2023-06-26 | D90: 15.5 | E90: 41.5 | F90: 11649 | G90: 483434
A91: 72 | B91: 2023-05-31 | C91: 2023-06-26 | D91: 15.5 | E91: 41.5 | F91: 153877 | G91: 6385896
A92: =A91+1 -> 73 | B92: 2023-05-31 | C92: 2023-06-26 | D92: 15.5 | E92: 41.5 | F92: 406560.75 | G92: 16872271
A93: 74 | B93: 2023-05-31 | C93: 2023-06-26 | D93: 15.5 | E93: =C93-B93+D93 -> 41.5 | F93: 28865 | G93: =ROUND(E93*F93,0) -> 1197898
A94: 75 | B94: 2023-05-31 | C94: 2023-06-26 | D94: 15.5 | E94: 41.5 | F94: 13527.5 | G94: 561391
A95: 76 | B95: 2023-05-31 | C95: 2023-06-26 | D95: 15.5 | E95: 41.5 | F95: 16817 | G95: 697906
A96: 77 | B96: 2023-05-31 | C96: 2023-06-26 | D96: 15.5 | E96: 41.5 | F96: 23562.5 | G96: 977844
A97: 78 | B97: 2023-05-31 | C97: 2023-06-26 | D97: 15.5 | E97: 41.5 | F97: 4830 | G97: 200445
A98: 79 | B98: 2023-05-31 | C98: 2023-06-26 | D98: 15.5 | E98: 41.5 | F98: 14586 | G98: 605319
A99: 80 | B99: 2023-05-31 | C99: 2023-06-26 | D99: 15.5 | E99: 41.5 | F99: 162305 | G99: 6735658
A100: 81 | B100: 2023-05-31 | C100: 2023-06-26 | D100: 15.5 | E100: 41.5 | F100: 55614.75 | G100: 2308012
A102: =A100+1 -> 82 | B102: =B77+30 -> 2023-06-30 | C102: 2023-07-25 | D102: 15 | E102: =C102-B102+D102 -> 40 | F102: 296 | G102: =ROUND(E102*F102,0) -> 11840
A103: =A102+1 -> 83 | B103: =B102 -> 2023-06-30 | C103: 2023-07-25 | D103: 15 | E103: =C103-B103+D103 -> 40 | F103: 9105 | G103: 364200
A104: 84 | B104: =B103 -> 2023-06-30 | C104: 2023-07-25 | D104: 15 | E104: =C104-B104+D104 -> 40 | F104: 148592 | G104: 5943680
A105: 85 | B105: 2023-06-30 | C105: 2023-07-25 | D105: 15 | E105: =C105-B105+D105 -> 40 | F105: 52276.9 | G105: 2091076
A106: 86 | B106: 2023-06-30 | C106: 2023-07-25 | D106: 15 | E106: =C106-B106+D106 -> 40 | F106: 18120 | G106: 724800
A107: 87 | B107: 2023-06-30 | C107: 2023-07-25 | D107: 15 | E107: =C107-B107+D107 -> 40 | F107: 105080.75 | G107: 4203230
A108: 88 | B108: 2023-06-30 | C108: 2023-07-25 | D108: 15 | E108: 40 | F108: 54408 | G108: 2176320
A109: 89 | B109: 2023-06-30 | C109: 2023-07-25 | D109: 15 | E109: 40 | F109: 195018.61 | G109: 7800744
A110: 90 | B110: 2023-06-30 | C110: 2023-07-25 | D110: 15 | E110: 40 | F110: 76207.25 | G110: 3048290
A111: 91 | B111: 2023-06-30 | C111: 2023-07-25 | D111: 15 | E111: 40 | F111: 465751 | G111: 18630040
A112: 92 | B112: 2023-06-30 | C112: 2023-07-25 | D112: 15 | E112: 40 | F112: 1525 | G112: 61000
A113: 93 | B113: 2023-06-30 | C113: 2023-07-25 | D113: 15 | E113: 40 | F113: 34740.5 | G113: 1389620
A114: 94 | B114: 2023-06-30 | C114: 2023-07-25 | D114: 15 | E114: 40 | F114: 361.98 | G114: 14479
A115: 95 | B115: 2023-06-30 | C115: 2023-07-25 | D115: 15 | E115: 40 | F115: 324802.5 | G115: 12992100
A116: 96 | B116: 2023-06-30 | C116: 2023-07-25 | D116: 15 | E116: 40 | F116: 62701 | G116: 2508040
A117: 97 | B117: 2023-06-30 | C117: 2023-07-25 | D117: 15 | E117: 40 | F117: 7275 | G117: 291000
A118: 98 | B118: 2023-06-30 | C118: 2023-07-25 | D118: 15 | E118: 40 | F118: 14783 | G118: 591320
A119: 99 | B119: 2023-06-30 | C119: 2023-07-25 | D119: 15 | E119: 40 | F119: 197974.5 | G119: 7918980
A120: 100 | B120: 2023-06-30 | C120: 2023-07-25 | D120: 15 | E120: 40 | F120: 53800 | G120: 2152000
A121: 101 | B121: 2023-06-30 | C121: 2023-07-25 | D121: 15 | E121: 40 | F121: 16563.75 | G121: 662550
A122: 102 | B122: 2023-06-30 | C122: 2023-07-25 | D122: 15 | E122: 40 | F122: 7000 | G122: 280000
A123: 103 | B123: 2023-06-30 | C123: 2023-07-25 | D123: 15 | E123: =C123-B123+D123 -> 40 | F123: 25582.5 | G123: =ROUND(E123*F123,0) -> 1023300
A124: 104 | B124: 2023-06-30 | C124: 2023-07-25 | D124: 15 | E124: 40 | F124: 299.5 | G124: 11980
A125: 105 | B125: 2023-06-30 | C125: 2023-07-25 | D125: 15 | E125: 40 | F125: 1310 | G125: 52400
A126: 106 | B126: 2023-06-30 | C126: 2023-07-25 | D126: 15 | E126: 40 | F126: 15322 | G126: 612880
A127: 107 | B127: 2023-06-30 | C127: 2023-07-25 | D127: 15 | E127: 40 | F127: 7287.5 | G127: 291500
A128: 108 | B128: 2023-06-30 | C128: 2023-07-25 | D128: 15 | E128: 40 | F128: 1920 | G128: 76800
A129: 109 | B129: 2023-06-30 | C129: 2023-07-25 | D129: 15 | E129: 40 | F129: 229251.5 | G129: 9170060
A131: =A129+1 -> 110 | B131: =B102+31 -> 2023-07-31 | C131: 2023-08-25 | D131: 15.5 | E131: =C131-B131+D131 -> 40.5 | F131: 27912.25 | G131: =ROUND(E131*F131,0) -> 1130446
A132: 111 | B132: =B131 -> 2023-07-31 | C132: 2023-08-25 | D132: 15.5 | E132: =C132-B132+D132 -> 40.5 | F132: 13025 | G132: 527513
A133: 112 | B133: =B132 -> 2023-07-31 | C133: 2023-08-25 | D133: 15.5 | E133: =C133-B133+D133 -> 40.5 | F133: 181536.25 | G133: 7352218
A134: 113 | B134: 2023-07-31 | C134: 2023-08-25 | D134: 15.5 | E134: =C134-B134+D134 -> 40.5 | F134: 136587.75 | G134: 5531804
A135: 114 | B135: 2023-07-31 | C135: 2023-08-25 | D135: 15.5 | E135: =C135-B135+D135 -> 40.5 | F135: 184751.25 | G135: 7482426
A136: 115 | B136: 2023-07-31 | C136: 2023-08-25 | D136: 15.5 | E136: =C136-B136+D136 -> 40.5 | F136: 112466.9 | G136: 4554909
A137: 116 | B137: 2023-07-31 | C137: 2023-08-25 | D137: 15.5 | E137: 40.5 | F137: 58258.1 | G137: 2359453
A138: 117 | B138: 2023-07-31 | C138: 2023-08-25 | D138: 15.5 | E138: 40.5 | F138: 535919 | G138: 21704720
A139: 118 | B139: 2023-07-31 | C139: 2023-08-25 | D139: 15.5 | E139: 40.5 | F139: 302.57 | G139: 12254
A140: 119 | B140: 2023-07-31 | C140: 2023-08-25 | D140: 15.5 | E140: 40.5 | F140: 53100 | G140: 2150550
A141: 120 | B141: 2023-07-31 | C141: 2023-08-25 | D141: 15.5 | E141: 40.5 | F141: 36135 | G141: 1463468
A142: 121 | B142: 2023-07-31 | C142: 2023-08-25 | D142: 15.5 | E142: 40.5 | F142: 26400 | G142: 1069200
A143: 122 | B143: 2023-07-31 | C143: 2023-08-25 | D143: 15.5 | E143: 40.5 | F143: 14839.5 | G143: 601000
A144: 123 | B144: 2023-07-31 | C144: 2023-08-25 | D144: 15.5 | E144: 40.5 | F144: 209549.75 | G144: 8486765
A145: 124 | B145: 2023-07-31 | C145: 2023-08-25 | D145: 15.5 | E145: 40.5 | F145: 410935 | G145: 16642868
A146: 125 | B146: 2023-07-31 | C146: 2023-08-25 | D146: 15.5 | E146: 40.5 | F146: 155094.5 | G146: 6281327
A147: 126 | B147: 2023-07-31 | C147: 2023-08-25 | D147: 15.5 | E147: 40.5 | F147: 15589.5 | G147: 631375
A148: 127 | B148: 2023-07-31 | C148: 2023-08-25 | D148: 15.5 | E148: 40.5 | F148: 3560 | G148: 144180
A149: 128 | B149: 2023-07-31 | C149: 2023-08-25 | D149: 15.5 | E149: 40.5 | F149: 152025 | G149: 6157013
A150: 129 | B150: 2023-07-31 | C150: 2023-08-25 | D150: 15.5 | E150: 40.5 | F150: 33270 | G150: 1347435
A151: 130 | B151: 2023-07-31 | C151: 2023-08-25 | D151: 15.5 | E151: 40.5 | F151: 282699 | G151: 11449310
A152: 131 | B152: 2023-07-31 | C152: 2023-08-25 | D152: 15.5 | E152: 40.5 | F152: 66565 | G152: 2695883
A153: 132 | B153: 2023-07-31 | C153: 2023-08-25 | D153: 15.5 | E153: 40.5 | F153: 7330 | G153: 296865
A155: =A153+1 -> 133 | B155: =B131+31 -> 2023-08-31 | C155: 2023-09-25 | D155: 15.5 | E155: =C155-B155+D155 -> 40.5 | F155: 4995 | G155: =ROUND(E155*F155,0) -> 202298
A156: 134 | B156: =B155 -> 2023-08-31 | C156: 2023-09-25 | D156: 15.5 | E156: 40.5 | F156: 21186 | G156: 858033
A157: 135 | B157: =B156 -> 2023-08-31 | C157: 2023-09-25 | D157: 15.5 | E157: 40.5 | F157: 33052.25 | G157: 1338616
A158: 136 | B158: 2023-08-31 | C158: 2023-09-25 | D158: 15.5 | E158: 40.5 | F158: 43671.25 | G158: 1768686
A159: 137 | B159: 2023-08-31 | C159: 2023-09-25 | D159: 15.5 | E159: 40.5 | F159: 171962.53 | G159: 6964482
A160: 138 | B160: 2023-08-31 | C160: 2023-09-25 | D160: 15.5 | E160: 40.5 | F160: 56708.9 | G160: 2296710
A161: 139 | B161: 2023-08-31 | C161: 2023-09-25 | D161: 15.5 | E161: 40.5 | F161: 171131 | G161: 6930806
A162: 140 | B162: 2023-08-31 | C162: 2023-09-25 | D162: 15.5 | E162: 40.5 | F162: 11420 | G162: 462510
A163: 141 | B163: 2023-08-31 | C163: 2023-09-25 | D163: 15.5 | E163: 40.5 | F163: 47882 | G163: 1939221
A164: 142 | B164: 2023-08-31 | C164: 2023-09-25 | D164: 15.5 | E164: 40.5 | F164: 287.82 | G164: 11657
A165: 143 | B165: 2023-08-31 | C165: 2023-09-25 | D165: 15.5 | E165: 40.5 | F165: 17380 | G165: 703890
A166: 144 | B166: 2023-08-31 | C166: 2023-09-25 | D166: 15.5 | E166: 40.5 | F166: 197175 | G166: 7985588
A167: 145 | B167: 2023-08-31 | C167: 2023-09-25 | D167: 15.5 | E167: 40.5 | F167: 18769 | G167: 760145
A168: 146 | B168: 2023-08-31 | C168: 2023-09-25 | D168: 15.5 | E168: 40.5 | F168: 23550 | G168: 953775
A169: 147 | B169: 2023-08-31 | C169: 2023-09-25 | D169: 15.5 | E169: 40.5 | F169: 4400 | G169: 178200
A170: 148 | B170: 2023-08-31 | C170: 2023-09-25 | D170: 15.5 | E170: 40.5 | F170: 244585 | G170: 9905693
A171: 149 | B171: 2023-08-31 | C171: 2023-09-25 | D171: 15.5 | E171: 40.5 | F171: 707497.5 | G171: 28653649
A172: 150 | B172: 2023-08-31 | C172: 2023-09-25 | D172: 15.5 | E172: 40.5 | F172: 8977.5 | G172: 363589
A173: 151 | B173: 2023-08-31 | C173: 2023-09-25 | D173: 15.5 | E173: 40.5 | F173: 24470 | G173: 991035
A174: 152 | B174: 2023-08-31 | C174: 2023-09-25 | D174: 15.5 | E174: 40.5 | F174: 116232.5 | G174: 4707416
A175: 153 | B175: 2023-08-31 | C175: 2023-09-25 | D175: 15.5 | E175: 40.5 | F175: 80400 | G175: 3256200
A176: 154 | B176: 2023-08-31 | C176: 2023-09-25 | D176: 15.5 | E176: 40.5 | F176: 12298.25 | G176: 498079
A178: =A176+1 -> 155 | B178: =B155+30 -> 2023-09-30 | C178: 2023-10-25 | D178: 15 | E178: =C178-B178+D178 -> 40 | F178: 401951.38 | G178: =ROUND(E178*F178,0) -> 16078055
A179: 156 | B179: =B178 -> 2023-09-30 | C179: 2023-10-25 | D179: =D178 -> 15 | E179: 40 | F179: 222600 | G179: 8904000
A180: 157 | B180: =B179 -> 2023-09-30 | C180: 2023-10-25 | D180: =D179 -> 15 | E180: 40 | F180: 15850 | G180: 634000
A181: 158 | B181: 2023-09-30 | C181: 2023-10-25 | D181: 15 | E181: 40 | F181: 6474 | G181: 258960
A182: 159 | B182: 2023-09-30 | C182: 2023-10-25 | D182: 15 | E182: 40 | F182: 316 | G182: 12640
A183: 160 | B183: 2023-09-30 | C183: 2023-10-25 | D183: 15 | E183: 40 | F183: 49091.35 | G183: 1963654
A184: 161 | B184: 2023-09-30 | C184: 2023-10-25 | D184: 15 | E184: 40 | F184: 46326 | G184: 1853040
A185: 162 | B185: 2023-09-30 | C185: 2023-10-25 | D185: 15 | E185: 40 | F185: 4650 | G185: 186000
A186: 163 | B186: 2023-09-30 | C186: 2023-10-25 | D186: 15 | E186: 40 | F186: 176.63 | G186: 7065
A187: 164 | B187: 2023-09-30 | C187: 2023-10-25 | D187: 15 | E187: 40 | F187: 8872.5 | G187: 354900
A188: 165 | B188: 2023-09-30 | C188: 2023-10-25 | D188: 15 | E188: 40 | F188: 8182.5 | G188: 327300
A189: 166 | B189: 2023-09-30 | C189: 2023-10-25 | D189: 15 | E189: 40 | F189: 34085 | G189: 1363400
A190: 167 | B190: 2023-09-30 | C190: 2023-10-25 | D190: 15 | E190: 40 | F190: 159000 | G190: 6360000
A191: 168 | B191: 2023-09-30 | C191: 2023-10-25 | D191: 15 | E191: 40 | F191: 9359 | G191: 374360
A192: 169 | B192: 2023-09-30 | C192: 2023-10-25 | D192: 15 | E192: 40 | F192: 80270 | G192: 3210800
A193: 170 | B193: 2023-09-30 | C193: 2023-10-25 | D193: 15 | E193: 40 | F193: 50342 | G193: 2013680
A194: 171 | B194: 2023-09-30 | C194: 2023-10-25 | D194: 15 | E194: 40 | F194: 29108.5 | G194: 1164340
A195: 172 | B195: 2023-09-30 | C195: 2023-10-25 | D195: 15 | E195: 40 | F195: 127404.53 | G195: 5096181
A196: 173 | B196: 2023-09-30 | C196: 2023-10-25 | D196: 15 | E196: 40 | F196: 3230 | G196: 129200
A197: 174 | B197: 2023-09-30 | C197: 2023-10-25 | D197: 15 | E197: 40 | F197: 99872.5 | G197: 3994900
A198: 175 | B198: 2023-09-30 | C198: 2023-10-25 | D198: 15 | E198: 40 | F198: 9198 | G198: 367920
A200: =A198+1 -> 176 | B200: =B178+31 -> 2023-10-31 | C200: 2023-11-27 | D200: 15.5 | E200: =C200-B200+D200 -> 42.5 | F200: 8400 | G200: =ROUND(E200*F200,0) -> 357000
A201: 177 | B201: =B200 -> 2023-10-31 | C201: 2023-11-27 | D201: 15.5 | E201: 42.5 | F201: 1815.25 | G201: 77148
A202: 178 | B202: =B201 -> 2023-10-31 | C202: 2023-11-27 | D202: 15.5 | E202: 42.5 | F202: 34978.25 | G202: 1486576
A203: 179 | B203: 2023-10-31 | C203: 2023-11-27 | D203: 15.5 | E203: 42.5 | F203: 968 | G203: 41140
A204: 180 | B204: 2023-10-31 | C204: 2023-11-27 | D204: 15.5 | E204: 42.5 | F204: 100457.25 | G204: 4269433
A205: 181 | B205: 2023-10-31 | C205: 2023-11-27 | D205: 15.5 | E205: 42.5 | F205: 18833.5 | G205: 800424
A206: 182 | B206: 2023-10-31 | C206: 2023-11-27 | D206: 15.5 | E206: 42.5 | F206: 38946.08 | G206: 1655208
A207: =A206+1 -> 183 | B207: 2023-10-31 | C207: 2023-11-27 | D207: 15.5 | E207: 42.5 | F207: 675940.5 | G207: 28727471
A208: 184 | B208: 2023-10-31 | C208: 2023-11-27 | D208: 15.5 | E208: 42.5 | F208: 19265 | G208: 818763
A209: 185 | B209: 2023-10-31 | C209: 2023-11-27 | D209: 15.5 | E209: 42.5 | F209: 17480.25 | G209: 742911
A210: 186 | B210: 2023-10-31 | C210: 2023-11-27 | D210: 15.5 | E210: 42.5 | F210: 67200 | G210: 2856000
A211: 187 | B211: 2023-10-31 | C211: 2023-11-27 | D211: 15.5 | E211: 42.5 | F211: 219.33 | G211: 9322
A212: 188 | B212: 2023-10-31 | C212: 2023-11-27 | D212: 15.5 | E212: 42.5 | F212: 1890 | G212: 80325
... 55 more rows

Sheet Sh 2b - Transportation
A1: ='(WP) Instructions & Input'!B2 -> COLUMBIA GAS OF KENTUCKY, INC.
A2: ='(WP) Instructions & Input'!B9 -> CASE NO. 2024-00092
A3: ='(WP) Instructions & Input'!B3 -> CASH WORKING CAPITAL
A4: GAS PURCHASED - TRANSPORTATION COSTS
A5: ='(WP) Instructions & Input'!B4 -> TME: DECEMBER 31, 2023
G7: ='(WP) Instructions & Input'!$B$11 -> Attachment KLJ-CWC-1
G8: SHEET 2b - Page 1 of 1
G9: ='(WP) Instructions & Input'!$B$12 -> WITNESS: JOHNSON
D11: Midpoint of
A12: Line | B12: Service | C12: Payment | D12: Service | E12: Lag | G12: Weighted
A13: No. | B13: Month | C13: Date | D13: Period | E13: Days | F13: Payment | G13: Days
B14: (1) | C14: (2) | D14: (3) | E14: (4)=(2-1+3) | F14: (5) | G14: (6)=(4*5)
A16: 1 | B16: =42369-334+365+366+365+365+365+365+366+365 -> 2023-01-31 | C16: 2023-02-21 | D16: 15.5 | E16: =C16-B16+D16 -> 36.5 | F16: 1575216.89 | G16: =ROUND(E16*F16,0) -> 57495416
A17: =A16+1 -> 2 | B17: =B16 -> 2023-01-31 | C17: 2023-02-21 | D17: =D16 -> 15.5 | E17: =C17-B17+D17 -> 36.5 | F17: 54782.28 | G17: =ROUND(E17*F17,0) -> 1999553
A19: =A17+1 -> 3 | B19: =B16+28 -> 2023-02-28 | C19: 2023-03-23 | D19: 14 | E19: =C19-B19+D19 -> 37 | F19: 1644610.29 | G19: =ROUND(E19*F19,0) -> 60850581
A20: 4 | B20: =B19 -> 2023-02-28 | C20: 2023-03-20 | D20: 14 | E20: =C20-B20+D20 -> 34 | F20: 54805.33 | G20: =ROUND(E20*F20,0) -> 1863381
A22: =A20+1 -> 5 | B22: =B19+31 -> 2023-03-31 | C22: 2023-04-24 | D22: 15.5 | E22: =C22-B22+D22 -> 39.5 | F22: 1740136.08 | G22: =ROUND(E22*F22,0) -> 68735375
A23: 6 | B23: =B22 -> 2023-03-31 | C23: 2023-04-24 | D23: 15.5 | E23: =C23-B23+D23 -> 39.5 | F23: 54834.46 | G23: =ROUND(E23*F23,0) -> 2165961
A25: =A23+1 -> 7 | B25: =B22+30 -> 2023-04-30 | C25: 2023-05-22 | D25: 15 | E25: =C25-B25+D25 -> 37 | F25: 1780415.9 | G25: =ROUND(E25*F25,0) -> 65875388
A26: 8 | B26: =B25 -> 2023-04-30 | C26: 2023-05-22 | D26: 15 | E26: =C26-B26+D26 -> 37 | F26: 54842.18 | G26: =ROUND(E26*F26,0) -> 2029161
A28: =A26+1 -> 9 | B28: =B25+31 -> 2023-05-31 | C28: 2023-06-22 | D28: 15.5 | E28: =C28-B28+D28 -> 37.5 | F28: 1768792.2 | G28: =ROUND(E28*F28,0) -> 66329708
A29: 10 | B29: =B28 -> 2023-05-31 | C29: 2023-06-22 | D29: 15.5 | E29: =C29-B29+D29 -> 37.5 | F29: 54922.01 | G29: =ROUND(E29*F29,0) -> 2059575
A31: =A29+1 -> 11 | B31: =B28+30 -> 2023-06-30 | C31: 2023-07-24 | D31: 15 | E31: =C31-B31+D31 -> 39 | F31: 1715266.79 | G31: =ROUND(E31*F31,0) -> 66895405
A32: 12 | B32: =B31 -> 2023-06-30 | C32: 2023-07-24 | D32: 15 | E32: =C32-B32+D32 -> 39 | F32: 54915.92 | G32: =ROUND(E32*F32,0) -> 2141721
A34: =A32+1 -> 13 | B34: =B31+31 -> 2023-07-31 | C34: 2023-08-21 | D34: 15.5 | E34: =C34-B34+D34 -> 36.5 | F34: 1696159.72 | G34: =ROUND(E34*F34,0) -> 61909830
A35: 14 | B35: =B34 -> 2023-07-31 | C35: 2023-08-21 | D35: =D34 -> 15.5 | E35: =C35-B35+D35 -> 36.5 | F35: 54971.22 | G35: =ROUND(E35*F35,0) -> 2006450
A37: =A35+1 -> 15 | B37: =B34+31 -> 2023-08-31 | C37: 2023-09-25 | D37: 15.5 | E37: =C37-B37+D37 -> 40.5 | F37: 1658780.38 | G37: =ROUND(E37*F37,0) -> 67180605
A38: =A37+1 -> 16 | B38: =B37 -> 2023-08-31 | C38: 2023-09-25 | D38: =D37 -> 15.5 | E38: =C38-B38+D38 -> 40.5 | F38: 55127.9 | G38: =ROUND(E38*F38,0) -> 2232680
A40: =A38+1 -> 17 | B40: =B37+30 -> 2023-09-30 | C40: 2023-10-23 | D40: 15 | E40: =C40-B40+D40 -> 38 | F40: 1577147.72 | G40: =ROUND(E40*F40,0) -> 59931613
A41: =A40+1 -> 18 | B41: =B40 -> 2023-09-30 | C41: 2023-10-23 | D41: =D40 -> 15 | E41: =C41-B41+D41 -> 38 | F41: 55464.31 | G41: =ROUND(E41*F41,0) -> 2107644
A43: =A41+1 -> 19 | B43: =B40+31 -> 2023-10-31 | C43: 2023-11-20 | D43: 15.5 | E43: =C43-B43+D43 -> 35.5 | F43: 1783083.53 | G43: =ROUND(E43*F43,0) -> 63299465
A44: =A43+1 -> 20 | B44: =B43 -> 2023-10-31 | C44: 2023-11-20 | D44: =D43 -> 15.5 | E44: =C44-B44+D44 -> 35.5 | F44: 55473.52 | G44: =ROUND(E44*F44,0) -> 1969310
A46: =A44+1 -> 21 | B46: =B43+30 -> 2023-11-30 | C46: 2023-12-22 | D46: 15 | E46: =C46-B46+D46 -> 37 | F46: 1617930.89 | G46: =ROUND(E46*F46,0) -> 59863443
A47: =A46+1 -> 22 | B47: =B46 -> 2023-11-30 | C47: 2023-12-22 | D47: =D46 -> 15 | E47: =C47-B47+D47 -> 37 | F47: 55521.02 | G47: =ROUND(E47*F47,0) -> 2054278
A49: =A47+1 -> 23 | B49: =B46+31 -> 2023-12-31 | C49: 2024-01-22 | D49: 15.5 | E49: =C49-B49+D49 -> 37.5 | F49: 1597873.72 | G49: =ROUND(E49*F49,0) -> 59920265
A50: =A49+1 -> 24 | B50: =B49 -> 2023-12-31 | C50: 2024-01-22 | D50: =D49 -> 15.5 | E50: =C50-B50+D50 -> 37.5 | F50: 55249.1 | G50: =ROUND(E50*F50,0) -> 2071841
A52: =A50+1 -> 25 | B52: Total | E52: =ROUND(G52/F52,2) -> 37.61 | F52: =SUM(F16:F50) -> 20816323.36 | G52: =SUM(G16:G50) -> 782988649

Sheet Sh 3 - Prepaid Insurance
A1: ='(WP) Instructions & Input'!B2 -> COLUMBIA GAS OF KENTUCKY, INC.
A2: ='(WP) Instructions & Input'!B9 -> CASE NO. 2024-00092
A3: ='(WP) Instructions & Input'!B3 -> CASH WORKING CAPITAL
A4: PREPAID INSURANCE COSTS
A5: ='(WP) Instructions & Input'!B4 -> TME: DECEMBER 31, 2023
H7: ='(WP) Instructions & Input'!$B$11 -> Attachment KLJ-CWC-1
H8: SHEET 3 Page 1 of 2
H9: ='(WP) Instructions & Input'!$B$12 -> WITNESS: JOHNSON
F11: Midpoint | H11: Dollar
A12: Line | C12: Payment | D12: Amount | E12: Policy | F12: of | G12: Lead | H12: Lead
A13: No. | B13: Fee | C13: Date | D13: Paid | E13: Period | F13: Period | G13: Days | H13: Days
B14: (1) | C14: (2) | D14: (3) | E14: (4) | F14: (5) | G14: (6) | H14: (7)=(3)*(6)
D15: $ | H15: $
A16: 1 | B16: Property | C16: 2023-11-29 | D16: 52415.36531 | E16: 11/1/23-11/1/24 | F16: 2024-05-01 | G16: =C16-F16 -> -154 | H16: =ROUND(G16*D16,0) -> -8071966
A17: =+A16+1 -> 2 | B17: Property | C17: 2023-12-01 | D17: 4767.503218 | E17: 11/1/23-11/1/24 | F17: 2024-05-01 | G17: -152 | H17: -724660
A18: =+A17+1 -> 3 | B18: Property | C18: 2023-11-20 | D18: 7285.831286 | E18: 11/1/23-11/1/24 | F18: 2024-05-01 | G18: -163 | H18: -1187590
A19: 4 | B19: Property | C19: 2023-11-20 | D19: 479.2168792 | E19: 11/1/23-11/1/24 | F19: 2024-05-01 | G19: -163 | H19: -78112
A20: 5 | B20: Property | C20: 2023-10-23 | D20: 2676.621427 | E20: 7/1/23-7/1/25 | F20: 2024-07-01 | G20: -252 | H20: -674509
A21: 6 | B21: Property | C21: 2023-11-20 | D21: 1626.301626 | E21: 11/1/23-11/1/24 | F21: 2024-05-01 | G21: -163 | H21: -265087
A22: 7 | B22: General & Auto Liability | C22: 2023-08-14 | D22: 2660.58 | E22: 7/1/23-7/1/24 | F22: 2024-01-01 | G22: -140 | H22: -372481
A23: 8 | B23: General & Auto Liability | C23: 2023-08-14 | D23: 6013.034 | E23: 7/1/23-7/1/24 | F23: 2024-01-01 | G23: -140 | H23: -841825
A24: 9 | B24: General & Auto Liability | C24: 2023-08-22 | D24: 4858.359945 | E24: 7/1/23-7/1/24 | F24: 2024-01-01 | G24: -132 | H24: -641304
A25: 10 | B25: General & Auto Liability | C25: 2023-08-14 | D25: 248778.8029 | E25: 7/1/23-7/1/24 | F25: 2024-01-01 | G25: -140 | H25: -34829032
A26: 11 | B26: General & Auto Liability | C26: 2023-09-20 | D26: 61092.54354 | E26: 7/1/23-7/1/24 | F26: 2024-01-01 | G26: -103 | H26: -6292532
A27: 12 | B27: General & Auto Liability | C27: 2023-10-23 | D27: 2999.9997 | E27: 7/1/23-7/1/25 | F27: 2024-07-01 | G27: -252 | H27: -756000
A28: 13 | B28: General & Auto Liability | C28: 2023-10-23 | D28: 5733.33276 | E28: 7/1/23-7/1/25 | F28: 2024-07-01 | G28: -252 | H28: -1444800
A29: 14 | B29: Excess Liability | C29: 2023-08-14 | D29: 233889.5177 | E29: 7/1/23-7/1/24 | F29: 2024-01-01 | G29: -140 | H29: -32744532
A30: 15 | B30: Excess Liability | C30: 2023-07-03 | D30: 600147.2479 | E30: 7/1/23-7/1/24 | F30: 2024-01-01 | G30: -182 | H30: -109226799
A31: 16 | B31: Excess Liability | C31: 2023-07-03 | D31: 184576.1409 | E31: 7/1/23-7/1/24 | F31: 2024-01-01 | G31: -182 | H31: -33592858
A32: 17 | B32: Excess Liability | C32: 2023-07-03 | D32: 4614.403524 | E32: 7/1/23-7/1/24 | F32: 2024-01-01 | G32: -182 | H32: -839821
A33: 18 | B33: Excess Liability | C33: 2023-09-01 | D33: 10388.75874 | E33: 7/1/23-7/1/24 | F33: 2024-01-01 | G33: -122 | H33: -1267429
A34: 19 | B34: Excess Liability | C34: 2023-07-25 | D34: 79771.21516 | E34: 7/1/23-7/1/24 | F34: 2024-01-01 | G34: -160 | H34: -12763394
A35: 20 | B35: Excess Liability | C35: 2023-08-22 | D35: 339960.6358 | E35: 7/1/23-7/1/24 | F35: 2024-01-01 | G35: -132 | H35: -44874804
A36: 21 | B36: Excess Liability | C36: 2023-08-21 | D36: 47810.71875 | E36: 7/1/23-7/1/24 | F36: 2024-01-01 | G36: -133 | H36: -6358826
A37: 22 | B37: Excess Liability | C37: 2023-08-21 | D37: 13128.91619 | E37: 7/1/23-7/1/24 | F37: 2024-01-01 | G37: -133 | H37: -1746146
A38: 23 | B38: Excess Liability | C38: 2023-08-21 | D38: 1217.356591 | E38: 7/1/23-7/1/24 | F38: 2024-01-01 | G38: -133 | H38: -161908
A39: 24 | B39: Excess Liability | C39: 2023-07-01 | D39: 19707.32101 | E39: 7/1/23-7/1/24 | F39: 2024-01-01 | G39: -184 | H39: -3626147
A40: 25 | B40: Excess Liability | C40: 2023-08-25 | D40: 690.7668672 | E40: 7/1/23-7/1/24 | F40: 2024-01-01 | G40: -129 | H40: -89109
A41: 26 | B41: Excess Liability | C41: 2023-07-01 | D41: 48005.01272 | E41: 7/1/23-7/1/24 | F41: 2024-01-01 | G41: -184 | H41: -8832922
A42: 27 | B42: Excess Liability | C42: 2023-12-11 | D42: 18191.37324 | E42: 7/1/23-7/1/24 | F42: 2024-01-01 | G42: -21 | H42: -382019
A43: 28 | B43: Excess Liability | C43: 2023-10-23 | D43: 26623.83271 | E43: 7/1/23-7/1/25 | F43: 2024-07-01 | G43: -252 | H43: -6709206
A44: 29 | B44: D&O Liability | C44: 2023-12-04 | D44: 104578.5516 | E44: 11/1/23-11/1/24 | F44: 2024-05-01 | G44: -149 | H44: -15582204
A45: 30 | B45: D&O Liability | C45: 2023-11-14 | D45: 21786.3608 | E45: 11/1/23-11/1/24 | F45: 2024-05-01 | G45: -169 | H45: -3681895
A46: 31 | B46: D&O Liability | C46: 2023-12-13 | D46: 1852.292 | E46: 11/1/23-11/1/24 | F46: 2024-05-01 | G46: -140 | H46: -259321
A47: 32 | B47: D&O Liability | C47: 2023-12-13 | D47: 1623.7604 | E47: 11/1/23-11/1/24 | F47: 2024-05-01 | G47: -140 | H47: -227326
A48: 33 | B48: D&O Liability | C48: 2023-10-23 | D48: 7139.125 | E48: 7/1/23-7/1/25 | F48: 2024-07-01 | G48: =C48-F48 -> -252 | H48: =ROUND(G48*D48,0) -> -1799060
A49: 34 | B49: D&O Liability | C49: 2023-12-14 | D49: 597 | E49: 11/1/23-11/1/24 | F49: 2024-05-01 | G49: -139 | H49: -82983
A50: 35 | B50: Fiduciary Liability | C50: 2023-12-05 | D50: 17925.4026 | E50: 11/1/23-11/1/24 | F50: 2024-05-01 | G50: -148 | H50: -2652960
A51: 36 | B51: Fiduciary Liability | C51: 2023-11-17 | D51: 4676.5 | E51: 11/1/23-11/1/24 | F51: 2024-05-01 | G51: -166 | H51: -776299
A52: 37 | B52: Commercial Crime | C52: 2023-11-21 | D52: 2616.4918 | E52: 11/1/23-11/1/24 | F52: 2024-05-01 | G52: -162 | H52: -423872
A53: 38 | B53: Commercial Crime | C53: 2023-12-05 | D53: 1014.9796 | E53: 11/1/23-11/1/24 | F53: 2024-05-01 | G53: -148 | H53: -150217
A54: 39 | B54: Commercial Crime | C54: 2023-12-05 | D54: 943.26 | E54: 11/1/23-11/1/24 | F54: 2024-05-01 | G54: -148 | H54: -139602
A55: 40 | B55: Commercial Crime | C55: 2023-12-06 | D55: 518.793 | E55: 11/1/23-11/1/24 | F55: 2024-05-01 | G55: -147 | H55: -76263
A56: 41 | B56: Special Crime | C56: 2023-12-05 | D56: 422.875 | E56: 11/1/23-11/1/26 | F56: 2025-05-01 | G56: -513 | H56: -216935
A57: 42 | B57: Cyber Liability | C57: 2023-12-04 | D57: 48383.55637 | E57: 11/1/23-11/1/24 | F57: 2024-05-01 | G57: -149 | H57: -7209150
A58: 43 | B58: Cyber Liability | C58: 2023-12-04 | D58: 5088.351125 | E58: 11/1/23-11/1/24 | F58: 2024-05-01 | G58: -149 | H58: -758164
A59: 44 | B59: Professional Liability | C59: 2023-08-23 | D59: 4907.1875 | E59: 7/1/23-7/1/24 | F59: 2024-01-01 | G59: -131 | H59: -642842
A60: 45 | B60: Travel Accident | C60: 2022-01-13 | D60: 1665.419 | E60: 1/1/22-1/1/25 | F60: 2023-07-01 | G60: -534 | H60: -889334
A61: 46 | B61: Workers' Compensation | C61: 2023-08-14 | D61: 54958.11588 | E61: 7/1/23-7/1/24 | F61: 2024-01-01 | G61: -140 | H61: -7694136
A62: 47 | B62: Workers' Compensation | C62: 2023-08-14 | D62: 114644.7968 | E62: 7/1/23-7/1/24 | F62: 2024-01-01 | G62: -140 | H62: -16050272
A63: 48 | B63: Workers' Compensation | C63: 2023-08-22 | D63: 7804.643218 | E63: 7/1/23-7/1/24 | F63: 2024-01-01 | G63: -132 | H63: -1030213
A64: 49 | B64: Workers' Compensation | C64: 2023-10-23 | D64: 2787.666 | E64: 7/1/23-7/1/25 | F64: 2024-07-01 | G64: -252 | H64: -702492
A65: 50 | B65: Medical Stop Loss | C65: 2023-02-07 | D65: 66375.51592 | E65: 1/1/23-12/31/23 | F65: 2023-07-01 | G65: -144 | H65: -9558074
A67: =+A65+1 -> 51 | B67: Total | D67: =SUM(D16:D66) -> 2502421.354 | H67: =SUM(H16:H66) -> -389999432
A68: =A67+1 -> 52 | B68: Weighted Average Days | G68: =ROUND(+H67/D67,2) -> -155.85

Sheet Sh 4 - Payroll
A1: ='(WP) Instructions & Input'!B2 -> COLUMBIA GAS OF KENTUCKY, INC.
A2: ='(WP) Instructions & Input'!B9 -> CASE NO. 2024-00092
A3: ='(WP) Instructions & Input'!B3 -> CASH WORKING CAPITAL
A4: EMPLOYEE PAYROLL COSTS
A5: ='(WP) Instructions & Input'!B4 -> TME: DECEMBER 31, 2023
F7: ='(WP) Instructions & Input'!$B$11 -> Attachment KLJ-CWC-1
F8: SHEET 4
F9: ='(WP) Instructions & Input'!$B$12 -> WITNESS: JOHNSON
F11: Dollar
A12: Line | D12: Payroll | E12: Lead | F12: Lead
A13: No. | B13: Description | C13: Reference | D13: Costs | E13: Days | F13: Days
D14: (1) | E14: (2) | F14: (3=1*2)
D15: $ | F15: $
A17: 1 | B17: Bi-Weekly: | C17: Sheet 4a | D17: ='Sh 4a - Bi-Pay'!G45 -> 15380347 | E17: =F17/D17 -> 3.344226694 | F17: ='Sh 4a - Bi-Pay'!H45 -> 51435367
A18: =A17+1 -> 2 | B18: Monthly: | C18: Sheet 4b | D18: ='Sh 4b - Month-Pay'!F31 -> 6940127 | E18: =F18/D18 -> 8.345342384 | F18: ='Sh 4b - Month-Pay'!G31 -> 57917736
A20: =A18+1 -> 3 | C20: Total Payroll Costs | D20: =D17+D18 -> 22320474 | E20: =ROUND(F20/D20,2) -> 4.9 | F20: =F17+F18 -> 109353103

Sheet Sh 4a - Bi-Pay
A1: ='(WP) Instructions & Input'!B2 -> COLUMBIA GAS OF KENTUCKY, INC.
A2: ='(WP) Instructions & Input'!B9 -> CASE NO. 2024-00092
A3: ='(WP) Instructions & Input'!B3 -> CASH WORKING CAPITAL
A4: BI-WEEKLY GROSS PAYROLL LEAD DAYS
A5: ='(WP) Instructions & Input'!B4 -> TME: DECEMBER 31, 2023
H7: ='(WP) Instructions & Input'!$B$11 -> Attachment KLJ-CWC-1
H8: SHEET 4a
H9: ='(WP) Instructions & Input'!$B$12 -> WITNESS: JOHNSON
D11: Days from | F11: Bi-Weekly
C12: End of | D12: Funding | F12: Gross Pay | G12: Normal | H12: Bi-Weekly
A13: Line | B13: Payroll | C13: Pay | D13: Date to | E13: Service | F13: Lead | G13: Bi-Weekly | H13: Gross Pay
A14: No. | B14: Funding Dates | C14: Period | D14: Pay Period | E14: Midpoint | F14: Days | G14: Gross Pay | H14: Dollar Days
B15: (1) | C15: (2) | D15: (3) | E15: (4) | F15: (5)=(3)+(4) | G15: (6) | H15: (7)=(5)*(6)
G16: ($)
A18: 1 | B18: 2023-01-11 | C18: 2023-01-14 | D18: =B18-C18 -> -3 | E18: 7 | F18: =D18+E18 -> 4 | G18: 670298.77 | H18: =G18*F18 -> 2681195.08
A19: =A18+1 -> 2 | B19: 2023-01-24 | C19: 2023-01-28 | D19: =B19-C19 -> -4 | E19: =$E$18 -> 7 | F19: =D19+E19 -> 3 | G19: 587364.36 | H19: 1762093.08
A20: =A19+1 -> 3 | B20: 2023-02-08 | C20: 2023-02-11 | D20: -3 | E20: =$E$18 -> 7 | F20: 4 | G20: 612882.69 | H20: 2451530.76
A21: =A20+1 -> 4 | B21: 2023-02-22 | C21: 2023-02-25 | D21: -3 | E21: 7 | F21: 4 | G21: 1161975.93 | H21: 4647903.72
A22: 5 | B22: 2023-03-08 | C22: 2023-03-11 | D22: -3 | E22: 7 | F22: 4 | G22: 592181.87 | H22: 2368727.48
A23: =A22+1 -> 6 | B23: 2023-03-22 | C23: 2023-03-25 | D23: -3 | E23: 7 | F23: 4 | G23: 600958.7 | H23: 2403834.8
A24: 7 | B24: 2023-04-05 | C24: 2023-04-08 | D24: -3 | E24: 7 | F24: 4 | G24: 548730.64 | H24: 2194922.56
A25: 8 | B25: 2023-04-19 | C25: 2023-04-22 | D25: -3 | E25: 7 | F25: 4 | G25: 554510.71 | H25: 2218042.84
A26: =A25+1 -> 9 | B26: 2023-05-03 | C26: 2023-05-06 | D26: -3 | E26: 7 | F26: 4 | G26: 562176.4 | H26: 2248705.6
A27: 10 | B27: 2023-05-16 | C27: 2023-05-20 | D27: -4 | E27: 7 | F27: 3 | G27: 548411.42 | H27: 1645234.26
A28: 11 | B28: 2023-05-31 | C28: 2023-06-03 | D28: -3 | E28: 7 | F28: 4 | G28: 544688.67 | H28: 2178754.68
A29: =A28+1 -> 12 | B29: 2023-06-12 | C29: 2023-06-17 | D29: -5 | E29: 7 | F29: 2 | G29: 550366.68 | H29: 1100733.36
A30: 13 | B30: 2023-06-27 | C30: 2023-07-01 | D30: -4 | E30: 7 | F30: 3 | G30: 549662.78 | H30: 1648988.34
A31: =A30+1 -> 14 | B31: 2023-07-11 | C31: 2023-07-15 | D31: -4 | E31: 7 | F31: 3 | G31: 563113.83 | H31: 1689341.49
A32: 15 | B32: 2023-07-24 | C32: 2023-07-29 | D32: -5 | E32: 7 | F32: 2 | G32: 550307.64 | H32: 1100615.28
A33: 16 | B33: 2023-08-08 | C33: 2023-08-12 | D33: -4 | E33: 7 | F33: 3 | G33: 576090.69 | H33: 1728272.07
A34: =A33+1 -> 17 | B34: 2023-08-22 | C34: 2023-08-26 | D34: -4 | E34: 7 | F34: 3 | G34: 555500.16 | H34: 1666500.48
A35: 18 | B35: 2023-09-06 | C35: 2023-09-09 | D35: -3 | E35: 7 | F35: 4 | G35: 546595.26 | H35: 2186381.04
A36: 19 | B36: 2023-09-19 | C36: 2023-09-23 | D36: -4 | E36: 7 | F36: 3 | G36: 548400.85 | H36: 1645202.55
A37: =A36+1 -> 20 | B37: 2023-10-03 | C37: 2023-10-07 | D37: -4 | E37: 7 | F37: 3 | G37: 578560.5 | H37: 1735681.5
A38: 21 | B38: 2023-10-17 | C38: 2023-10-21 | D38: -4 | E38: 7 | F38: 3 | G38: 543975.7 | H38: 1631927.1
A39: =A38+1 -> 22 | B39: 2023-10-31 | C39: 2023-11-04 | D39: -4 | E39: 7 | F39: 3 | G39: 605748.88 | H39: 1817246.64
A40: 23 | B40: 2023-11-14 | C40: 2023-11-18 | D40: -4 | E40: 7 | F40: 3 | G40: 560877.42 | H40: 1682632.26
A41: 24 | B41: 2023-11-28 | C41: 2023-12-02 | D41: -4 | E41: 7 | F41: 3 | G41: 551293.9 | H41: 1653881.7
A42: =A41+1 -> 25 | B42: 2023-12-12 | C42: 2023-12-16 | D42: -4 | E42: 7 | F42: 3 | G42: 562481.67 | H42: 1687445.01
A43: =A42+1 -> 26 | B43: 2023-12-26 | C43: 2023-12-30 | D43: -4 | E43: 7 | F43: 3 | G43: 553191.12 | H43: 1659573.36
A45: =A43+1 -> 27 | E45: Bi-Weekly Lead Days | F45: =ROUND(H45/G45,2) -> 3.34 | G45: =ROUND((SUM(G18:G43)),0) -> 15380347 | H45: =ROUND((SUM(H18:H43)),0) -> 51435367
A47: Payment lead days represent days from the funding of payroll to midpoint of pay period.

Sheet Sh 4b - Month-Pay
A1: ='(WP) Instructions & Input'!B2 -> COLUMBIA GAS OF KENTUCKY, INC.
A2: ='(WP) Instructions & Input'!B9 -> CASE NO. 2024-00092
A3: ='(WP) Instructions & Input'!B3 -> CASH WORKING CAPITAL
A4: MONTHLY GROSS PAYROLL LEAD DAYS
A5: ='(WP) Instructions & Input'!B4 -> TME: DECEMBER 31, 2023
G7: ='(WP) Instructions & Input'!$B$11 -> Attachment KLJ-CWC-1
G8: SHEET 4b
G9: ='(WP) Instructions & Input'!$B$12 -> WITNESS: JOHNSON
E11: Monthly
B12: Monthly | E12: Gross Pay | F12: Normal | G12: Monthly
A13: Line | B13: Payroll | C13: End of Pay | D13: Service | E13: Lead | F13: Monthly | G13: Gross Pay
A14: No. | B14: Funding Dates | C14: Period | D14: Midpoint | E14: Days | F14: Gross Pay | G14: Dollar Days
B15: (1) | C15: (2) | D15: (3) | E15: (4)=(1)-(2)+(3) | F15: (5) | G15: (6)=(4)*(5)
F16: ($)
A18: 1 | B18: 2023-01-24 | C18: 2023-01-31 | D18: 15.5 | E18: =B18-C18+D18 -> 8.5 | F18: 489554.86 | G18: =ROUND(F18*E18,0) -> 4161216
A19: =A18+1 -> 2 | B19: 2023-02-22 | C19: 2023-02-28 | D19: 14 | E19: =B19-C19+D19 -> 8 | F19: 1375016.08 | G19: 11000129
A20: 3 | B20: 2023-03-27 | C20: 2023-03-31 | D20: 15.5 | E20: =B20-C20+D20 -> 11.5 | F20: 917123.98 | G20: 10546926
A21: 4 | B21: 2023-04-24 | C21: 2023-04-30 | D21: 15 | E21: 9 | F21: 434244.77 | G21: 3908203
A22: 5 | B22: 2023-05-23 | C22: 2023-05-31 | D22: 15.5 | E22: 7.5 | F22: 438135.1 | G22: 3286013
A23: 6 | B23: 2023-06-23 | C23: 2023-06-30 | D23: 15 | E23: 8 | F23: 437344.84 | G23: 3498759
A24: 7 | B24: 2023-07-25 | C24: 2023-07-31 | D24: 15.5 | E24: 9.5 | F24: 434313.89 | G24: 4125982
A25: 8 | B25: 2023-08-24 | C25: 2023-08-31 | D25: 15.5 | E25: 8.5 | F25: 444822.97 | G25: 3780995
A26: 9 | B26: 2023-09-22 | C26: 2023-09-30 | D26: 15 | E26: 7 | F26: 571603.12 | G26: 4001222
A27: 10 | B27: 2023-10-24 | C27: 2023-10-31 | D27: 15.5 | E27: 8.5 | F27: 426934.24 | G27: 3628941
A28: 11 | B28: 2023-11-22 | C28: 2023-11-30 | D28: 15 | E28: 7 | F28: 425779.22 | G28: 2980455
A29: 12 | B29: 2023-12-21 | C29: 2023-12-31 | D29: 15.5 | E29: 5.5 | F29: 545253.69 | G29: 2998895
A31: =A29+1 -> 13 | D31: Monthly Lead Days | E31: =ROUND(G31/F31,2) -> 8.35 | F31: =ROUND((SUM(F18:F29)),0) -> 6940127 | G31: =ROUND((SUM(G18:G29)),0) -> 57917736
A33: Payment lead days represent days from the funding of payroll to midpoint of pay period.

Sheet Sh 6 - OPEB (do not file) (hidden)
I1: ='(WP) Instructions & Input'!B11 -> Attachment KLJ-CWC-1
I2: ='(WP) Instructions & Input'!B12 -> WITNESS: JOHNSON
I3: ='(WP) Instructions & Input'!B6 -> 0
I4: Sheet 6
A6: ='(WP) Instructions & Input'!B2 -> COLUMBIA GAS OF KENTUCKY, INC.
A7: ='(WP) Instructions & Input'!B3 -> CASH WORKING CAPITAL
A8: OPEB Costs
A9: ='(WP) Instructions & Input'!B4 -> TME: DECEMBER 31, 2023
A10: ='(WP) Instructions & Input'!B9 -> CASE NO. 2024-00092
D12: Midpoint
A13: Line | B13: End of | C13: Payment | D13: of Service | E13: Amount | F13: Lead | G13: Lead
A14: No. | B14: Service Period | C14: Date | D14: Period | E14: Paid | F14: Days | G14: Days
B15: (1) | C15: (2) | D15: (3) | E15: (4) | F15: (5)=(2-1+3) | G15: (6)=(4x5) | I15: Notes
E16: $ | G16: $
A18: 1 | B18: 2014-12-31 | C18: 2015-01-31 | D18: 15.5 | E18: 23390.36 | F18: =C18-B18+D18 -> 46.5 | G18: =ROUND(F18*E18,0) -> 1087652 | I18: Retiree Deferral
A19: =+A18+1 -> 2 | B19: 2015-01-31 | C19: 2015-02-28 | D19: 15.5 | E19: 21934.91 | F19: =C19-B19+D19 -> 43.5 | G19: =ROUND(F19*E19,0) -> 954169 | I19: Retiree Deferral
A20: =+A19+1 -> 3 | B20: 2015-02-28 | C20: 2015-03-30 | D20: 14 | E20: 13408.17 | F20: 44 | G20: 589959 | I20: Retiree Deferral
A21: 4 | B21: 2015-02-28 | C21: 2015-03-30 | D21: 45 | E21: -58733.44 | F21: 75 | G21: -4405008 | I21: Reimbursement from Trust
A22: 5 | B22: 2015-03-31 | C22: 2015-03-30 | D22: 45 | E22: 50000 | F22: 44 | G22: 2200000 | I22: Payment to Trust
A23: 6 | B23: 2015-03-31 | C23: 2015-04-30 | D23: 15.5 | E23: 14337.84 | F23: 45.5 | G23: 652372 | I23: Retiree Deferral
A24: 7 | B24: 2015-04-30 | C24: 2015-05-31 | D24: 15 | E24: 20694.75 | F24: 46 | G24: 951959 | I24: Retiree Deferral
A25: 8 | B25: 2015-05-31 | C25: 2015-06-30 | D25: 15.5 | E25: 20880.24 | F25: 45.5 | G25: 950051 | I25: Retiree Deferral
A26: 9 | B26: 2015-05-31 | C26: 2015-06-30 | D26: 46 | E26: -55912.83 | F26: 76 | G26: -4249375 | I26: Reimbursement from Trust
A27: 10 | B27: 2015-06-30 | C27: 2015-06-19 | D27: 45.5 | E27: 50000 | F27: 34.5 | G27: 1725000 | I27: Payment to Trust
A28: 11 | B28: 2015-06-30 | C28: 2015-07-31 | D28: 15 | E28: 26452.67 | F28: 46 | G28: 1216823 | I28: Retiree Deferral
A29: 12 | B29: 2015-07-31 | C29: 2015-08-31 | D29: 15.5 | E29: 17580.45 | F29: 46.5 | G29: 817491 | I29: Retiree Deferral
A30: 13 | B30: 2015-08-31 | C30: 2015-09-30 | D30: 15.5 | E30: 21011.35 | F30: 45.5 | G30: 956016 | I30: Retiree Deferral
A31: 14 | B31: 2015-08-31 | C31: 2015-09-28 | D31: 46 | E31: -58586.09 | F31: 74 | G31: -4335371 | I31: Reimbursement from Trust
A32: 15 | B32: 2015-09-30 | C32: 2015-09-25 | D32: 46 | E32: 50000 | F32: 41 | G32: 2050000 | I32: Payment to Trust
A33: 16 | B33: 2015-09-30 | C33: 2015-10-31 | D33: 15 | E33: 17376.37 | F33: 46 | G33: 799313 | I33: Retiree Deferral
A34: 17 | B34: 2015-10-31 | C34: 2015-11-30 | D34: 15.5 | E34: 22034.07 | F34: 45.5 | G34: 1002550 | I34: Retiree Deferral
A35: 18 | B35: 2015-11-30 | C35: 2015-12-31 | D35: 15 | E35: 32043.02 | F35: 46 | G35: 1473979 | I35: Retiree Deferral
A36: 19 | B36: 2015-11-30 | C36: 2015-12-28 | D36: 45.5 | E36: -77911.83 | F36: 73.5 | G36: -5726520 | I36: Reimbursement from Trust
A37: 20 | B37: 2015-12-31 | C37: 2015-12-28 | D37: 46 | E37: 50000 | F37: 43 | G37: 2150000 | I37: Payment to Trust
A38: 21
A39: 22 | B39: Total | E39: =SUM(E18:E37) -> 200000.01 | F39: =ROUND(G39/E39,2) -> 4.31 | G39: =SUM(G18:G37) -> 861060

Sheet Sh 5 - Incent Comp
A1: ='(WP) Instructions & Input'!B2 -> COLUMBIA GAS OF KENTUCKY, INC.
A2: ='(WP) Instructions & Input'!B9 -> CASE NO. 2024-00092
A3: ='(WP) Instructions & Input'!B3 -> CASH WORKING CAPITAL
A4: INCENTIVE COMPENSATION
A5: ='(WP) Instructions & Input'!B4 -> TME: DECEMBER 31, 2023
G7: ='(WP) Instructions & Input'!$B$11 -> Attachment KLJ-CWC-1
G8: SHEET 5
G9: ='(WP) Instructions & Input'!$B$12 -> WITNESS: JOHNSON
E11: Incentive Comp | G11: Incentive Comp
A12: Line | C12: End of Pay | D12: Service | E12: Lead | F12: Incentive Comp | G12: Gross Pay
A13: No. | B13: Pay Dates | C13: Period | D13: Midpoint | E13: Days | F13: Gross Pay | G13: Dollar Days
B14: (1) | C14: (2) | D14: (3) | E14: (4)=(1)-(2)+(3) | F14: (5) | G14: (6)=(4)*(5)
F15: ($)
A17: 1 | B17: 2/24/2023 | C17: 12/31/2022 | D17: =365/2 -> 182.5 | E17: =D17+31+24 -> 237.5 | F17: 568668.99 | G17: =ROUND(F17*E17,0) -> 135058885
A18: =A17+1 -> 2 | B18: 2/28/2023 | C18: 12/31/2022 | D18: =365/2 -> 182.5 | E18: =D18+31+28 -> 241.5 | F18: 830493.87 | G18: =ROUND(F18*E18,0) -> 200564270
A20: =A18+1 -> 3 | C20: Total | F20: =SUM(F17:F19) -> 1399162.86 | G20: =SUM(G17:G19) -> 335623155
A22: =A20+1 -> 4 | C22: Monthly Lead Days | F22: =G20/F20 -> 239.8742595

Sheet Sh 6 - Benefits
A1: ='(WP) Instructions & Input'!B2 -> COLUMBIA GAS OF KENTUCKY, INC.
A2: ='(WP) Instructions & Input'!$B$9 -> CASE NO. 2024-00092
A3: ='(WP) Instructions & Input'!B3 -> CASH WORKING CAPITAL
A4: EMPLOYEE BENEFITS
A5: ='(WP) Instructions & Input'!B4 -> TME: DECEMBER 31, 2023
H7: ='(WP) Instructions & Input'!$B$11 -> Attachment KLJ-CWC-1
H8: SHEET 6
H9: ='(WP) Instructions & Input'!$B$12 -> WITNESS: JOHNSON
E11: Midpoint | H11: Weighted
A12: Line | B12: End of | C12: Payment | E12: of Service | F12: Lead | H12: Lead
A13: No. | B13: Service Period | C13: Date | E13: Period | F13: Days | G13: Payment | H13: Days
B14: (1) | C14: (2) | E14: (3) | F14: (4)=(2)-(1)+(3) | G14: (5) | H14: (6)=(4)*(5)
G15: $ | H15: $
A16: 1 | B16: 2023-01-31 | C16: 2023-01-31 | E16: 15.5 | F16: =C16-B16+E16 -> 15.5 | G16: 304279.86 | H16: =ROUND(G16*F16,0) -> 4716338
A17: =A16+1 -> 2 | B17: 2023-02-28 | C17: 2023-02-27 | E17: 14 | F17: 13 | G17: 489504.82 | H17: 6363563
A18: =A17+1 -> 3 | B18: 2023-03-31 | C18: 2023-03-30 | E18: 15.5 | F18: 14.5 | G18: 242121.8 | H18: 3510766
A19: 4 | B19: 2023-04-30 | C19: 2023-04-27 | E19: 15 | F19: 12 | G19: 356227.75 | H19: 4274733
A20: 5 | B20: 2023-05-31 | C20: 2023-05-31 | E20: 15.5 | F20: 15.5 | G20: 316637.9 | H20: 4907887
A21: 6 | B21: 2023-06-30 | C21: 2023-06-28 | E21: 15 | F21: 13 | G21: 436168.42 | H21: 5670189
A22: 7 | B22: 2023-07-31 | C22: 2023-07-31 | E22: 15.5 | F22: 15.5 | G22: 292027.74 | H22: 4526430
A23: 8 | B23: 2023-08-31 | C23: 2023-08-30 | E23: 15.5 | F23: 14.5 | G23: 398370.56 | H23: 5776373
A24: 9 | B24: 2023-09-30 | C24: 2023-09-28 | E24: 15 | F24: 13 | G24: 539448.34 | H24: 7012828
A25: 10 | B25: 2023-10-31 | C25: 2023-10-31 | E25: 15.5 | F25: 15.5 | G25: 163893.92 | H25: 2540356
A26: 11 | B26: 2023-11-30 | C26: 2023-11-29 | E26: 15 | F26: =C26-B26+E26 -> 14 | G26: 511287.15 | H26: 7158020
A27: 12 | B27: 2023-12-31 | C27: 2023-12-27 | E27: 15.5 | F27: =C27-B27+E27 -> 11.5 | G27: 449288.86 | H27: =ROUND(G27*F27,0) -> 5166822
A28: 13 | C28: Total | G28: =SUM(G16:G27) -> 4499257.12 | H28: =SUM(H16:H27) -> 61624305
A29: 14 | B29: Weighted Average Days (Col. 6/Col. 5) | F29: =ROUND(H28/G28,1) -> 13.7

Sheet Sh 7 - Pension OPEB
A1: ='(WP) Instructions & Input'!B2 -> COLUMBIA GAS OF KENTUCKY, INC.
A2: ='(WP) Instructions & Input'!$B$9 -> CASE NO. 2024-00092
A3: ='(WP) Instructions & Input'!B3 -> CASH WORKING CAPITAL
A4: OPEB & PENSION EXPENSE
A5: ='(WP) Instructions & Input'!B4 -> TME: DECEMBER 31, 2023
H7: ='(WP) Instructions & Input'!$B$11 -> Attachment KLJ-CWC-1
H8: SHEET 7
H9: ='(WP) Instructions & Input'!$B$12 -> WITNESS: JOHNSON
A11: OPEB
E12: Midpoint | H12: Weighted
A13: Line | B13: Service Period | D13: Payment | E13: of Service | F13: Lead | G13: Amount | H13: Lead
A14: No. | B14: Beginning | C14: Ending | D14: Date | E14: Period | F14: Days | G14: Paid | H14: Days
B15: (1) | C15: (2) | D15: (3) | E15: (4) | F15: (5)=(3)-(4) | G15: (6) | H15: (7)=(5)*(6)
G16: $ | H16: $
A18: 1 | B18: 2023-01-01 | C18: 2023-03-31 | D18: 2023-03-29 | E18: =(C18-B18-1)/2+B18 -> 2023-02-14 | F18: =D18-E18 -> 43 | G18: 50000 | H18: =ROUND(F18*G18,0) -> 2150000
A20: =A18+1 -> 2 | B20: 2023-04-01 | C20: 2023-06-30 | D20: 2023-06-29 | E20: =(C20-B20-1)/2+B20 -> 2023-05-15T12:00:00 | F20: =D20-E20 -> 44.5 | G20: 50000 | H20: =ROUND(F20*G20,0) -> 2225000
A22: =+A20+1 -> 3 | B22: 2023-07-01 | C22: 2023-09-30 | D22: 2023-09-28 | E22: =(C22-B22-1)/2+B22 -> 2023-08-15 | F22: =D22-E22 -> 44 | G22: 50000 | H22: =ROUND(F22*G22,0) -> 2200000
A24: =+A22+1 -> 4 | B24: 2023-10-01 | C24: 2023-12-31 | D24: 2023-12-27 | E24: =(C24-B24-1)/2+B24 -> 2023-11-15 | F24: =D24-E24 -> 42 | G24: 50000 | H24: =ROUND(F24*G24,0) -> 2100000
A26: =+A24+1 -> 5 | B26: Total | G26: =SUM(G17:G24) -> 200000 | H26: =SUM(H17:H24) -> 8675000
A28: =+A26+1 -> 6 | B28: Weighted Average Days | F28: =IF(H26=0,0,ROUND(+H26/G26,1)) -> 43.4
A30: CKY did not make any Pension contributions made during 2023

Sheet Sh 8 - Corp Srvs
A1: ='(WP) Instructions & Input'!B2 -> COLUMBIA GAS OF KENTUCKY, INC.
A2: ='(WP) Instructions & Input'!B9 -> CASE NO. 2024-00092
A3: ='(WP) Instructions & Input'!B3 -> CASH WORKING CAPITAL
A4: CORPORATE SERVICES
A5: ='(WP) Instructions & Input'!B4 -> TME: DECEMBER 31, 2023
H7: ='(WP) Instructions & Input'!$B$11 -> Attachment KLJ-CWC-1
H8: SHEET 8
H9: ='(WP) Instructions & Input'!$B$12 -> WITNESS: JOHNSON
E11: Midpoint | H11: Weighted
A12: Line | B12: End of | C12: Payment | E12: of Service | F12: Lead | H12: Lead
A13: No. | B13: Service Period | C13: Date | E13: Period | F13: Days | G13: Payment | H13: Days
B14: (1) | C14: (2) | E14: (3) | F14: (4)=(2)-(1)+(3) | G14: (5) | H14: (6)=(4)*(5)
G15: $ | H15: $
A16: 1 | B16: 2023-01-31 | C16: 2023-02-22 | E16: 15.5 | F16: =C16-B16+E16 -> 37.5 | G16: 2714524.85 | H16: =ROUND(G16*F16,0) -> 101794682
A17: =A16+1 -> 2 | B17: 2023-02-28 | C17: 2023-03-27 | E17: 14 | F17: 41 | G17: 2346998.23 | H17: 96226927
A18: =A17+1 -> 3 | B18: 2023-03-31 | C18: 2023-04-24 | E18: 15.5 | F18: 39.5 | G18: 2605001.84 | H18: 102897573
A19: 4 | B19: 2023-04-30 | C19: 2023-05-24 | E19: 15 | F19: 39 | G19: 2243716.19 | H19: 87504931
A20: 5 | B20: 2023-05-31 | C20: 2023-06-26 | E20: 15.5 | F20: 41.5 | G20: 2562636.69 | H20: 106349423
A21: 6 | B21: 2023-06-30 | C21: 2023-07-25 | E21: 15 | F21: 40 | G21: 2717295.25 | H21: 108691810
A22: 7 | B22: 2023-07-31 | C22: 2023-08-25 | E22: 15.5 | F22: 40.5 | G22: 2288146.77 | H22: 92669944
A23: 8 | B23: 2023-08-31 | C23: 2023-09-25 | E23: 15.5 | F23: 40.5 | G23: 2564543.59 | H23: 103864015
A24: 9 | B24: 2023-09-30 | C24: 2023-10-25 | E24: 15 | F24: 40 | G24: 2749918.3 | H24: 109996732
A25: 10 | B25: 2023-10-31 | C25: 2023-11-21 | E25: 15.5 | F25: 36.5 | G25: 2707696.88 | H25: 98830936
A26: 11 | B26: 2023-11-30 | C26: 2023-12-22 | E26: 15 | F26: =C26-B26+E26 -> 37 | G26: 3221395.33 | H26: 119191627
A27: 12 | B27: 2023-12-31 | C27: 2024-01-25 | E27: 15.5 | F27: =C27-B27+E27 -> 40.5 | G27: 3677529.86 | H27: =ROUND(G27*F27,0) -> 148939959
A28: 13 | C28: Total | G28: =SUM(G16:G27) -> 32399403.78 | H28: =SUM(H16:H27) -> 1276958559
A29: 14 | B29: Weighted Average Days (Col. 6/Col. 5) | F29: =ROUND(H28/G28,1) -> 39.4

Sheet Sh 9 - Other O&M
A1: ='(WP) Instructions & Input'!B2 -> COLUMBIA GAS OF KENTUCKY, INC.
A2: ='(WP) Instructions & Input'!B9 -> CASE NO. 2024-00092
A3: ='(WP) Instructions & Input'!B3 -> CASH WORKING CAPITAL
A4: OTHER OPERATION AND MAINTENANCE COSTS
A5: ='(WP) Instructions & Input'!B4 -> TME: DECEMBER 31, 2023
H7: ='(WP) Instructions & Input'!$B$11 -> Attachment KLJ-CWC-1
H8: SHEET 9
H9: ='(WP) Instructions & Input'!$B$12 -> WITNESS: JOHNSON
C11: Approved | F11: Dollar
A12: Line | C12: Check | D12: Lead | F12: Weighted | H12: Lead
A13: No. | B13: Description | C13: Amount | D13: Days | E13: Notes | F13: Days | G13: Percentage | H13: Days
B14: (1) | C14: (2) | D14: (3)=(5/2) | E14: (4) | F14: (5) | G14: (6) | H14: (7)=(3)*(6)
C15: $ | G15: %
A17: 1 | B17: Total Work Management Contracts | C17: 3180507.06 | D17: =ROUND(F17/C17,2) -> 26.6 | E17: 1_/ | F17: 84592624.09 | G17: 0.7553 | H17: =ROUND(D17*G17,2) -> 20.09
A19: =A17+1 -> 2 | B19: Total General Office Source | C19: ='(WP) Sh 9 AP'!H413 -> 281643.83 | D19: =ROUND(F19/C19,2) -> 24.46 | E19: 2_/ | F19: ='(WP) Sh 9 AP'!I413 -> 6889473 | G19: 0.2447 | H19: =ROUND(D19*G19,2) -> 5.99
A21: =A19+1 -> 3 | B21: Total | C21: =+C17+C19 -> 3462150.89 | F21: =+F17+F19 -> 91482097.09 | G21: =+G17+G19 -> 1 | H21: =+H17+H19 -> 26.08
A25: Notes:
A27: 1_/ | B27: This data is made up of numerous invoices and is maintained in an excel spreadsheet.
B28: An electronic copy of this data may be provided upon request.
A30: 2_/ | B30: Days were based on 400 invoices randomly selected from the company's accounts payable system.
B31: An electronic copy of this data may be provided upon request.

Sheet Sh 10 - Payroll Taxes
A1: ='(WP) Instructions & Input'!B2 -> COLUMBIA GAS OF KENTUCKY, INC.
A2: ='(WP) Instructions & Input'!B9 -> CASE NO. 2024-00092
A3: ='(WP) Instructions & Input'!B3 -> CASH WORKING CAPITAL
A4: COMPANY PAID PAYROLL TAXES
A5: ='(WP) Instructions & Input'!B4 -> TME: DECEMBER 31, 2023
F7: ='(WP) Instructions & Input'!$B$11 -> Attachment KLJ-CWC-1
F8: SHEET 10
F9: ='(WP) Instructions & Input'!$B$12 -> WITNESS: JOHNSON
F12: Dollar
A13: Line | D13: Payroll | E13: Lead | F13: Lead
A14: No. | B14: Description | C14: Reference | D14: Costs | E14: Days | F14: Days
D15: (1) | E15: (2) | F15: (3)
D16: $ | F16: $
A18: 1 | B18: F.I.C.A. | C18: Sheet 10a | D18: ='Sh 10a Pg 2 FICA-Bi'!G45+'Sh 10a Pg 3 FICA-Mo'!F30 -> 3095713.44 | E18: ='Sh 10a - FICA'!E19 -> 8.37 | F18: ='Sh 10a - FICA'!F19 -> 25908132
A19: 2 | B19: Federal Unemployment | C19: Sheet 10b | D19: ='Sh 10b - FUTA,SUTA'!F56 -> 8746.55 | E19: ='Sh 10b - FUTA,SUTA'!H58 -> 74.5 | F19: ='Sh 10b - FUTA,SUTA'!H56 -> 651618
A20: 3 | B20: State Unemployment | C20: Sheet 10b | D20: ='Sh 10b - FUTA,SUTA'!G56 -> 6894.76 | E20: ='Sh 10b - FUTA,SUTA'!I58 -> 74.5 | F20: ='Sh 10b - FUTA,SUTA'!I56 -> 513658
A22: 4 | C22: Total | D22: =SUM(D18:D20) -> 3111354.75 | E22: =ROUND(F22/D22,2) -> 8.7 | F22: =SUM(F18:F20) -> 27073408

Sheet Sh 10a - FICA
A1: ='(WP) Instructions & Input'!B2 -> COLUMBIA GAS OF KENTUCKY, INC.
A2: ='(WP) Instructions & Input'!B9 -> CASE NO. 2024-00092
A3: ='(WP) Instructions & Input'!B3 -> CASH WORKING CAPITAL
A4: EMPLOYEE'S FICA WITHHELD LEAD DAY CALCULATION
A5: ='(WP) Instructions & Input'!B4 -> TME: DECEMBER 31, 2023
F7: ='(WP) Instructions & Input'!$B$11 -> Attachment KLJ-CWC-1
F8: SHEET 10a - Page 1 of 3
F9: ='(WP) Instructions & Input'!$B$12 -> WITNESS: JOHNSON
D11: Employee's | F11: Dollar
A12: Line | D12: FICA | E12: Lead | F12: Weighted
A13: No. | B13: Pay Type | C13: Reference | D13: Withholding | E13: Days | F13: Days
D14: (1) | E14: (2) | F14: (3)
A16: 1 | B16: Bi-Weekly | C16: Sheet 10a, Page 2 | D16: =+'Sh 10a Pg 2 FICA-Bi'!G45 -> 2230275 | E16: =+'Sh 10a Pg 2 FICA-Bi'!F45 -> 5.999999103 | F16: =+'Sh 10a Pg 2 FICA-Bi'!H45 -> 13381648
A17: =A16+1 -> 2 | B17: Monthly | C17: Sheet 10a, Page 3 | D17: =+'Sh 10a Pg 3 FICA-Mo'!F30 -> 865438.44 | E17: =+'Sh 10a Pg 3 FICA-Mo'!E30 -> 14.47414792 | F17: =+'Sh 10a Pg 3 FICA-Mo'!G30 -> 12526484
A19: =A17+1 -> 3 | C19: Total | D19: =SUM(D15:D17) -> 3095713.44 | E19: =ROUND(F19/D19,2) -> 8.37 | F19: =SUM(F15:F17) -> 25908132

Sheet Sh 10a Pg 2 FICA-Bi
A1: ='(WP) Instructions & Input'!B2 -> COLUMBIA GAS OF KENTUCKY, INC.
A2: ='(WP) Instructions & Input'!B9 -> CASE NO. 2024-00092
A3: ='(WP) Instructions & Input'!B3 -> CASH WORKING CAPITAL
A4: PAYROLL TAXES - FICA BI-WEEKLY
A5: ='(WP) Instructions & Input'!B4 -> TME: DECEMBER 31, 2023
H7: ='(WP) Instructions & Input'!$B$11 -> Attachment KLJ-CWC-1
H8: SHEET 10a - Page 2 of 3
H9: ='(WP) Instructions & Input'!$B$12 -> WITNESS: JOHNSON
F11: Bi-Weekly | G11: Total
C12: End of | D12: Days from | F12: FICA | G12: Bi-Weekly
A13: Line | C13: Pay | D13: Pay Date to | E13: Service | F13: Lead | G13: FICA | H13: Weighted
A14: No. | B14: Pay Date | C14: Period | D14: Pay Period | E14: Midpoint | F14: Days | G14: Withheld | H14: FICA
B15: (1) | C15: (2) | D15: (3) | E15: (4) | F15: (5)=(3)+(4) | G15: (6) | H15: (7=5x6)
G16: ($)
A18: 1 | B18: 2023-01-13 | C18: 2023-01-14 | D18: =B18-C18 -> -1 | E18: 7 | F18: =D18+E18 -> 6 | G18: 97361.16 | H18: =G18*F18 -> 584166.96
A19: =A18+1 -> 2 | B19: 2023-01-27 | C19: 2023-01-28 | D19: =B19-C19 -> -1 | E19: 7 | F19: =D19+E19 -> 6 | G19: 84672 | H19: =G19*F19 -> 508032
A20: =A19+1 -> 3 | B20: 2023-02-10 | C20: 2023-02-11 | D20: -1 | E20: 7 | F20: 6 | G20: 88567.92 | H20: 531407.52
A21: 4 | B21: 2023-02-24 | C21: 2023-02-25 | D21: -1 | E21: 7 | F21: 6 | G21: 172587.18 | H21: 1035523.08
A22: 5 | B22: 2023-03-10 | C22: 2023-03-11 | D22: -1 | E22: 7 | F22: 6 | G22: 85395.3 | H22: 512371.8
A23: 6 | B23: 2023-03-24 | C23: 2023-03-25 | D23: -1 | E23: 7 | F23: 6 | G23: 86737.14 | H23: 520422.84
A24: 7 | B24: 2023-04-07 | C24: 2023-04-08 | D24: -1 | E24: 7 | F24: 6 | G24: 78787.88 | H24: 472727.28
A25: 8 | B25: 2023-04-21 | C25: 2023-04-22 | D25: -1 | E25: 7 | F25: 6 | G25: 79587.4 | H25: 477524.4
A26: 9 | B26: 2023-05-05 | C26: 2023-05-06 | D26: -1 | E26: 7 | F26: 6 | G26: 80803.68 | H26: 484822.08
A27: 10 | B27: 2023-05-19 | C27: 2023-05-20 | D27: -1 | E27: 7 | F27: 6 | G27: 78742.14 | H27: 472452.84
A28: 11 | B28: 2023-06-02 | C28: 2023-06-03 | D28: -1 | E28: 7 | F28: 6 | G28: 78172.2 | H28: 469033.2
A29: 12 | B29: 2023-06-16 | C29: 2023-06-17 | D29: -1 | E29: 7 | F29: 6 | G29: 79044.28 | H29: 474265.68
A30: 13 | B30: 2023-06-30 | C30: 2023-07-01 | D30: -1 | E30: 7 | F30: 6 | G30: 84098.12 | H30: 504588.72
A31: 14 | B31: 2023-07-14 | C31: 2023-07-15 | D31: -1 | E31: 7 | F31: 6 | G31: 80954.32 | H31: 485725.92
A32: 15 | B32: 2023-07-28 | C32: 2023-07-29 | D32: -1 | E32: 7 | F32: 6 | G32: 79064.6 | H32: 474387.6
A33: 16 | B33: 2023-08-11 | C33: 2023-08-12 | D33: -1 | E33: 7 | F33: 6 | G33: 83084.02 | H33: 498504.12
A34: 17 | B34: 2023-08-25 | C34: 2023-08-26 | D34: -1 | E34: 7 | F34: 6 | G34: 79974.9 | H34: 479849.4
A35: 18 | B35: 2023-09-08 | C35: 2023-09-09 | D35: -1 | E35: 7 | F35: 6 | G35: 78598.4 | H35: 471590.4
A36: 19 | B36: 2023-09-22 | C36: 2023-09-23 | D36: -1 | E36: 7 | F36: 6 | G36: 78786.72 | H36: 472720.32
A37: 20 | B37: 2023-10-06 | C37: 2023-10-07 | D37: -1 | E37: 7 | F37: 6 | G37: 83460.74 | H37: 500764.44
A38: 21 | B38: 2023-10-20 | C38: 2023-10-21 | D38: -1 | E38: 7 | F38: 6 | G38: 78188.88 | H38: 469133.28
A39: 22 | B39: 2023-11-03 | C39: 2023-11-04 | D39: -1 | E39: 7 | F39: 6 | G39: 87672.52 | H39: 526035.12
A40: 23 | B40: 2023-11-17 | C40: 2023-11-18 | D40: -1 | E40: 7 | F40: 6 | G40: 80811.64 | H40: 484869.84
A41: 24 | B41: 2023-12-01 | C41: 2023-12-02 | D41: -1 | E41: 7 | F41: 6 | G41: 79390.12 | H41: 476340.72
A42: 25 | B42: 2023-12-15 | C42: 2023-12-16 | D42: -1 | E42: 7 | F42: 6 | G42: 81093.38 | H42: 486560.28
A43: 26 | B43: 2023-12-29 | C43: 2023-12-30 | D43: -1 | E43: 7 | F43: 6 | G43: 84638.04 | H43: 507828.24
A45: =A43+1 -> 27 | B45: Total | F45: =H45/G45 -> 5.999999103 | G45: =ROUND((SUM(G18:G44)),0) -> 2230275 | H45: =ROUND((SUM(H18:H44)),0) -> 13381648

Sheet Sh 10a Pg 3 FICA-Mo
A1: ='(WP) Instructions & Input'!B2 -> COLUMBIA GAS OF KENTUCKY, INC.
A2: ='(WP) Instructions & Input'!B9 -> CASE NO. 2024-00092
A3: ='(WP) Instructions & Input'!B3 -> CASH WORKING CAPITAL
A4: PAYROLL TAXES - FICA MONTHLY PAY
A5: ='(WP) Instructions & Input'!B4 -> TME: DECEMBER 31, 2023
G7: ='(WP) Instructions & Input'!$B$11 -> Attachment KLJ-CWC-1
G8: SHEET 10a - Page 3 of 3
G9: ='(WP) Instructions & Input'!$B$12 -> WITNESS: JOHNSON
E11: Days From | F11: Monthly
A12: Line | C12: End of Pay | D12: Service | E12: Midpoint | F12: Total FICA | G12: Weighted
A13: No. | B13: Pay Date | C13: Period | D13: Midpoint | E13: To Pay Date 1/ | F13: Withheld | G13: FICA
B14: (1) | C14: (2) | D14: (3) | E14: (4) | F14: -5 | G14: (6=3x5)
F15: ($)
A17: 1 | B17: 2023-01-31 | C17: 2023-01-31 | D17: 15.5 | E17: =B17-C17+D17 -> 15.5 | F17: 70889.44 | G17: =ROUND(F17*E17,0) -> 1098786
A18: =A17+1 -> 2 | B18: 2023-02-28 | C18: 2023-02-28 | D18: 14 | E18: =B18-C18+D18 -> 14 | F18: 200345.57 | G18: 2804838
A19: =A18+1 -> 3 | B19: 2023-03-31 | C19: 2023-03-31 | D19: 15.5 | E19: =B19-C19+D19 -> 15.5 | F19: 81827.66 | G19: 1268329
A20: 4 | B20: 2023-04-28 | C20: 2023-04-30 | D20: 15 | E20: 13 | F20: 55285.47 | G20: 718711
A21: 5 | B21: 2023-05-31 | C21: 2023-05-31 | D21: 15.5 | E21: 15.5 | F21: 54691.44 | G21: 847717
A22: 6 | B22: 2023-06-30 | C22: 2023-06-30 | D22: 15 | E22: 15 | F22: 53891.58 | G22: 808374
A23: 7 | B23: 2023-07-28 | C23: 2023-07-31 | D23: 15.5 | E23: 12.5 | F23: 53617.68 | G23: 670221
A24: 8 | B24: 2023-08-31 | C24: 2023-08-31 | D24: 15.5 | E24: 15.5 | F24: 54415.71 | G24: 843444
A25: 9 | B25: 2023-09-29 | C25: 2023-09-30 | D25: 15 | E25: 14 | F25: 63165.75 | G25: 884321
A26: 10 | B26: 2023-10-31 | C26: 2023-10-31 | D26: 15.5 | E26: 15.5 | F26: 53913.22 | G26: 835655
A27: 11 | B27: 2023-11-30 | C27: 2023-11-30 | D27: 15 | E27: 15 | F27: 53504.2 | G27: 802563
A28: 12 | B28: 2023-12-29 | C28: 2023-12-31 | D28: 15.5 | E28: 13.5 | F28: 69890.72 | G28: 943525
A30: =A28+1 -> 13 | B30: Total | E30: =+G30/F30 -> 14.47414792 | F30: =SUM(F17:F28) -> 865438.44 | G30: =SUM(G17:G28) -> 12526484

Sheet Sh 10b - FUTA,SUTA
A1: ='(WP) Instructions & Input'!B2 -> COLUMBIA GAS OF KENTUCKY, INC.
A2: ='(WP) Instructions & Input'!B9 -> CASE NO. 2024-00092
A3: ='(WP) Instructions & Input'!B3 -> CASH WORKING CAPITAL
A4: PAYROLL TAXES - UNEMPLOYMENT TAXES
A5: ='(WP) Instructions & Input'!B4 -> TME: DECEMBER 31, 2023
I7: ='(WP) Instructions & Input'!$B$11 -> Attachment KLJ-CWC-1
I8: SHEET 10b
I9: ='(WP) Instructions & Input'!$B$12 -> WITNESS: JOHNSON
B11: Service | C11: Days
A12: Line | B12: Period | C12: From | D12: Deposit | E12: Lead | F12: Federal | G12: State | H12: Federal | I12: State
A13: No. | B13: Qtr Ended | C13: Midpoint | D13: Paid | E13: Days | F13: Paid | G13: Paid | H13: $ Weighted | I13: $ Weighted
B14: (1) | C14: (2) | D14: (3) | E14: (4=3-1+2) | F14: (5) | G14: (6) | H14: (7=4*5) | I14: (8=4*6)
F15: $ | G15: $
A16: Monthly
A17: 1 | B17: 2023-01-31 | C17: 15.5 | D17: 2023-03-31 | E17: =D17-B17+C17 -> 74.5 | F17: 1748.51 | G17: 1133.83 | H17: =ROUND($E$17*F17,0) -> 130264 | I17: =ROUND($E$17*G17,0) -> 84470
A18: =A17+1 -> 2 | B18: 2023-02-28 | C18: 14 | D18: 2023-03-31 | E18: 45 | F18: 46.72 | G18: 280.38 | H18: 3481 | I18: 20888
A19: 3 | B19: 2023-03-31 | C19: 15.5 | D19: 2023-03-31 | E19: 15.5 | F19: 0 | G19: 0 | H19: 0 | I19: 0
A20: 4 | B20: 2023-04-30 | C20: 15 | D20: 2023-06-30 | E20: 76 | F20: 0 | G20: 0 | H20: 0 | I20: 0
A21: 5 | B21: 2023-05-31 | C21: 15.5 | D21: 2023-06-30 | E21: 45.5 | F21: 0 | G21: 0 | H21: 0 | I21: 0
A22: 6 | B22: 2023-06-30 | C22: 15 | D22: 2023-06-30 | E22: 15 | F22: 0 | G22: 0 | H22: 0 | I22: 0
A23: 7 | B23: 2023-07-31 | C23: 15.5 | D23: 2023-09-30 | E23: 76.5 | F23: 0 | G23: 0 | H23: 0 | I23: 0
A24: 8 | B24: 2023-08-31 | C24: 15.5 | D24: 2023-09-30 | E24: 45.5 | F24: 0 | G24: 0 | H24: 0 | I24: 0
A25: 9 | B25: 2023-09-30 | C25: 15 | D25: 2023-09-30 | E25: 15 | F25: 42 | G25: 33.3 | H25: 3129 | I25: 2481
A26: 10 | B26: 2023-10-31 | C26: 15.5 | D26: 2023-12-29 | E26: 74.5 | F26: 0 | G26: 0 | H26: 0 | I26: 0
A27: 11 | B27: 2023-11-30 | C27: 15 | D27: 2023-12-29 | E27: 44 | F27: 0 | G27: 0 | H27: 0 | I27: 0
A28: 12 | B28: 2023-12-31 | C28: 15.5 | D28: 2023-12-29 | E28: 13.5 | F28: 42 | G28: 33.3 | H28: 3129 | I28: 2481
A29: Bi-weekly
A30: =A28+1 -> 13 | B30: 2023-01-14 | C30: 7 | D30: 2023-03-31 | E30: =D30-B30+C30 -> 83 | F30: 3603.43 | G30: 1851.18 | H30: =ROUND($E$17*F30,0) -> 268456 | I30: =ROUND($E$17*G30,0) -> 137913
A31: =A30+1 -> 14 | B31: 2023-01-28 | C31: =C30 -> 7 | D31: 2023-03-31 | E31: 69 | F31: 2511.35 | G31: 1598.84 | H31: 187096 | I31: 119114
A32: 15 | B32: 2023-02-11 | C32: 7 | D32: 2023-03-31 | E32: 55 | F32: 457.99 | G32: 1298.61 | H32: 34120 | I32: 96746
A33: 16 | B33: 2023-02-25 | C33: 7 | D33: 2023-03-31 | E33: 41 | F33: 127.34 | G33: 504.12 | H33: 9487 | I33: 37557
A34: 17 | B34: 2023-03-11 | C34: 7 | D34: 2023-03-31 | E34: 27 | F34: 0 | G34: 36.38 | H34: 0 | I34: 2710
A35: 18 | B35: 2023-03-25 | C35: 7 | D35: 2023-03-31 | E35: 13 | F35: 0 | G35: 4.32 | H35: 0 | I35: 322
A36: 19 | B36: 2023-04-08 | C36: 7 | D36: 2023-03-31 | E36: -1 | F36: 0 | G36: 0 | H36: 0 | I36: 0
A37: 20 | B37: 2023-04-22 | C37: 7 | D37: 2023-06-30 | E37: 76 | F37: 0.14 | G37: 0.07 | H37: 10 | I37: 5
A38: 21 | B38: 2023-05-06 | C38: 7 | D38: 2023-06-30 | E38: 62 | F38: 0 | G38: 0 | H38: 0 | I38: 0
A39: 22 | B39: 2023-05-20 | C39: 7 | D39: 2023-06-30 | E39: 48 | F39: 0 | G39: 0 | H39: 0 | I39: 0
A40: 23 | B40: 2023-06-03 | C40: 7 | D40: 2023-06-30 | E40: 34 | F40: 0 | G40: 0 | H40: 0 | I40: 0
A41: 24 | B41: 2023-06-17 | C41: 7 | D41: 2023-06-30 | E41: 20 | F41: 0 | G41: 0 | H41: 0 | I41: 0
A42: 25 | B42: 2023-07-01 | C42: 7 | D42: 2023-06-30 | E42: 6 | F42: 0 | G42: 0 | H42: 0 | I42: 0
A43: 26 | B43: 2023-07-15 | C43: 7 | D43: 2023-09-30 | E43: 84 | F43: 10.03 | G43: 5.02 | H43: 747 | I43: 374
A44: 27 | B44: 2023-07-29 | C44: 7 | D44: 2023-09-30 | E44: 70 | F44: 10.68 | G44: 5.33 | H44: 796 | I44: 397
A45: 28 | B45: 2023-08-12 | C45: 7 | D45: 2023-09-30 | E45: 56 | F45: 52.73 | G45: 38.67 | H45: 3928 | I45: 2881
A46: 29 | B46: 2023-08-26 | C46: 7 | D46: 2023-09-30 | E46: 42 | F46: 10.04 | G46: 5.02 | H46: 748 | I46: 374
A47: 30 | B47: 2023-09-09 | C47: 7 | D47: 2023-09-30 | E47: 28 | F47: 0.38 | G47: 5.01 | H47: 28 | I47: 373
A48: 31 | B48: 2023-09-23 | C48: 7 | D48: 2023-09-30 | E48: 14 | F48: 0 | G48: 5.02 | H48: 0 | I48: 374
A49: 32 | B49: 2023-10-07 | C49: 7 | D49: 2023-09-30 | E49: 0 | F49: 0 | G49: 2.46 | H49: 0 | I49: 183
A50: 33 | B50: 2023-10-21 | C50: 7 | D50: 2023-12-31 | E50: 78 | F50: 0 | G50: 0 | H50: 0 | I50: 0
A51: 34 | B51: 2023-11-04 | C51: 7 | D51: 2023-12-31 | E51: 64 | F51: 0 | G51: 0 | H51: 0 | I51: 0
A52: 35 | B52: 2023-11-18 | C52: 7 | D52: 2023-12-31 | E52: 50 | F52: 0 | G52: 0 | H52: 0 | I52: 0
A53: 36 | B53: 2023-12-02 | C53: 7 | D53: 2023-12-31 | E53: 36 | F53: 39.03 | G53: 19.51 | H53: 2908 | I53: 1453
A54: 37 | B54: 2023-12-16 | C54: 7 | D54: 2023-12-31 | E54: 22 | F54: 30.26 | G54: 18.25 | H54: 2254 | I54: 1360
A55: =A54+1 -> 38 | B55: 2023-12-30 | C55: 7 | D55: 2023-12-31 | E55: 8 | F55: 13.92 | G55: 16.14 | H55: 1037 | I55: 1202
A56: =A55+1 -> 39 | B56: Total | F56: =SUM(F17:F55) -> 8746.55 | G56: =SUM(G17:G55) -> 6894.76 | H56: =SUM(H17:H55) -> 651618 | I56: =SUM(I17:I55) -> 513658
A58: =A56+1 -> 40 | B58: Net Lead Days | H58: =ROUND(H56/F56,2) -> 74.5 | I58: =ROUND(I56/G56,2) -> 74.5

Sheet Sh 11 - Property Taxes
A1: ='(WP) Instructions & Input'!B2 -> COLUMBIA GAS OF KENTUCKY, INC.
A2: ='(WP) Instructions & Input'!B9 -> CASE NO. 2024-00092
A3: ='(WP) Instructions & Input'!B3 -> CASH WORKING CAPITAL
A4: PROPERTY TAXES
A5: ='(WP) Instructions & Input'!B4 -> TME: DECEMBER 31, 2023
G7: ='(WP) Instructions & Input'!$B$11 -> Attachment KLJ-CWC-1
G8: SHEET 11 - Page 1 of 3
G9: ='(WP) Instructions & Input'!$B$12 -> WITNESS: JOHNSON
A11: Line | D11: Date | E11: Midpoint | F11: Lag | G11: Weighted
A12: No. | B12: Taxing Authority | C12: Payments | D12: Paid | E12: of Tax Year | F12: Days | G12: Lag Days
B13: (1) | C13: (2) | D13: (3) | E13: (4) | F13: (5)=(3-4) | G13: (6)=(5*2)
C14: ($) | G14: ($)
A16: =A15+1 -> 1 | B16: BATH COUNTY SHERIFF | C16: 24.6 | D16: 2023-04-11 | E16: 2022-07-01 | F16: =D16-E16 -> 284 | G16: =ROUND(C16*F16,0) -> 6986
A17: =A16+1 -> 2 | B17: BATH COUNTY SHERIFF | C17: 12.76 | D17: 2023-05-30 | E17: 2022-07-01 | F17: 333 | G17: =ROUND(C17*F17,0) -> 4249
A18: =A17+1 -> 3 | B18: BOURBON COUNTY SHERIFF | C18: 50953.73 | D18: 2023-05-26 | E18: 2022-07-01 | F18: 329 | G18: =ROUND(C18*F18,0) -> 16763777
A19: 4 | B19: BOURBON COUNTY SHERIFF | C19: 98204.58 | D19: 2023-04-11 | E19: 2022-07-01 | F19: 284 | G19: =ROUND(C19*F19,0) -> 27890101
A20: 5 | B20: BOYD COUNTY SHERIFF | C20: 50 | D20: 2023-12-13 | E20: 2023-07-01 | F20: 165 | G20: =ROUND(F20*C20,0) -> 8250
A21: 6 | B21: BOYD COUNTY SHERIFF | C21: 112597.53 | D21: 2023-07-13 | E21: 2022-07-01 | F21: 377 | G21: 42449269
A22: 7 | B22: BOYD COUNTY SHERIFF | C22: 1965.88 | D22: 2023-11-27 | E22: 2023-07-01 | F22: 149 | G22: 292916
A23: 8 | B23: BOYD COUNTY SHERIFF | C23: 50 | D23: 2023-12-14 | E23: 2023-07-01 | F23: 166 | G23: =ROUND(F23*C23,0) -> 8300
A24: 9 | B24: BOYD COUNTY SHERIFF | C24: 217073.08 | D24: 2023-03-26 | E24: 2022-07-01 | F24: 268 | G24: 58175585
A25: 10 | B25: BOYD COUNTY SHERIFF | C25: 50 | D25: 2023-04-11 | E25: 2022-07-01 | F25: 284 | G25: 14200
A26: 11 | B26: BRACKEN COUNTY SHERIFF | C26: 1787.2 | D26: 2023-03-26 | E26: 2022-07-01 | F26: 268 | G26: =ROUND(F26*C26,0) -> 478970
A27: 12 | B27: BRACKEN COUNTY SHERIFF | C27: 926.59 | D27: 2023-05-30 | E27: 2022-07-01 | F27: 333 | G27: 308554
A28: 13 | B28: CARTER COUNTY SHERIFF | C28: 60.32 | D28: 2023-03-26 | E28: 2022-07-01 | F28: 268 | G28: =ROUND(F28*C28,0) -> 16166
A29: 14 | B29: CARTER COUNTY SHERIFF | C29: 37.87 | D29: 2023-10-19 | E29: 2022-07-01 | F29: 475 | G29: 17988
A30: 15 | B30: CITY OF ASHLAND | C30: 145850.42 | D30: 2023-04-11 | E30: 2022-07-01 | F30: 284 | G30: =ROUND(F30*C30,0) -> 41421519
A31: 16 | B31: CITY OF ASHLAND | C31: 75667.36 | D31: 2023-05-30 | E31: 2022-07-01 | F31: 333 | G31: 25197231
A32: 17 | B32: CITY OF BELLEFONTE | C32: 3136.3 | D32: 2023-12-13 | E32: 2023-07-01 | F32: 165 | G32: 517490
A33: 18 | B33: CITY OF CATLETTSBURG KENTUCKY | C33: 4255.14 | D33: 2023-05-19 | E33: 2022-07-01 | F33: 322 | G33: 1370155
A34: 19 | B34: CITY OF CATLETTSBURG KENTUCKY | C34: 8201.9 | D34: 2023-03-26 | E34: 2022-07-01 | F34: 268 | G34: 2198109
A35: 20 | B35: CITY OF CYNTHIANA | C35: 6229.69 | D35: 2023-06-21 | E35: 2022-07-01 | F35: 355 | G35: 2211540
A36: 21 | B36: CITY OF FLATWOODS | C36: 13429.03 | D36: 2023-12-14 | E36: 2023-07-01 | F36: 166 | G36: 2229219
A37: 22 | B37: CITY OF FLATWOODS | C37: 4492.17 | D37: 2023-05-30 | E37: 2022-07-01 | F37: 333 | G37: 1495893
A38: 23 | B38: CITY OF FRANKFORT | C38: 126873.6 | D38: 2023-04-11 | E38: 2022-07-01 | F38: 284 | G38: 36032102
A39: 24 | B39: CITY OF FRANKFORT | C39: 65827.38 | D39: 2023-05-30 | E39: 2022-07-01 | F39: 333 | G39: 21920518
A40: 25 | B40: CITY OF GEORGETOWN | C40: 3292.96 | D40: 2023-05-30 | E40: 2022-07-01 | F40: 333 | G40: 1096556
A41: 26 | B41: CITY OF GEORGETOWN | C41: 6346.84 | D41: 2023-04-11 | E41: 2022-07-01 | F41: 284 | G41: 1802503
A42: 27 | B42: CITY OF HINDMAN | C42: 62.93 | D42: 2023-08-24 | E42: 2022-07-01 | F42: 419 | G42: 26368
A43: 28 | B43: CITY OF IRVINE | C43: 11398.55 | D43: 2023-04-11 | E43: 2022-07-01 | F43: 284 | G43: 3237188
A44: 29 | B44: CITY OF LOUISA | C44: 3568.32 | D44: 2023-11-08 | E44: 2022-07-01 | F44: 495 | G44: 1766318
A45: 30 | B45: CITY OF MAYSVILLE | C45: 9580.65 | D45: 2023-05-30 | E45: 2022-07-01 | F45: 333 | G45: 3190356
A46: 31 | B46: CITY OF MAYSVILLE | C46: 18464.95 | D46: 2023-04-11 | E46: 2022-07-01 | F46: 284 | G46: 5244046
A47: 32 | B47: CITY OF MIDWAY | C47: 478.23 | D47: 2023-03-26 | E47: 2022-07-01 | F47: 268 | G47: 128166
B48: (continued)
A49: =A48+1 -> 1 | B49: CITY OF MOUNT STERLING | C49: 2878.37 | D49: 2023-05-30 | E49: 2022-07-01 | F49: =D49-E49 -> 333 | G49: 958497
A50: 2 | B50: CITY OF MOUNT STERLING | C50: 5548.85 | D50: 2023-04-23 | E50: 2022-07-01 | F50: 296 | G50: 1642460
A51: 3 | B51: CITY OF PARIS | C51: 11825.9 | D51: 2023-04-23 | E51: 2022-07-01 | F51: 296 | G51: 3500466
A52: 4 | B52: CITY OF PARIS | C52: 6135.65 | D52: 2023-06-08 | E52: 2022-07-01 | F52: 342 | G52: 2098392
A53: 5 | B53: CITY OF RAVENNA | C53: 1391.13 | D53: 2023-04-23 | E53: 2022-07-01 | F53: 296 | G53: 411774
A54: 6 | B54: CITY OF RUSSELL | C54: 5138.8 | D54: 2023-05-30 | E54: 2022-07-01 | F54: 333 | G54: 1711220
A55: 7 | B55: CITY OF RUSSELL | C55: 9906.98 | D55: 2023-03-26 | E55: 2022-07-01 | F55: 268 | G55: 2655071
A56: 8 | B56: CITY OF SOUTH SHORE | C56: 1966.53 | D56: 2023-05-30 | E56: 2022-07-01 | F56: 333 | G56: 654854
A57: 9 | B57: CITY OF SOUTH SHORE | C57: 1078.9 | D57: 2023-03-26 | E57: 2022-07-01 | F57: 268 | G57: 289145
A58: 10 | B58: CITY OF VERSAILLES | C58: 2668.97 | D58: 2023-04-11 | E58: 2022-07-01 | F58: 284 | G58: 757987
A59: 11 | B59: CITY OF WINCHESTER | C59: 13557.52 | D59: 2023-05-30 | E59: 2022-07-01 | F59: 333 | G59: 4514654
A60: 12 | B60: CITY OF WORTHINGTON | C60: 1211.65 | D60: 2023-05-30 | E60: 2022-07-01 | F60: 333 | G60: 403479
A61: 13 | B61: CITY OF WORTHINGTON | C61: 2336 | D61: 2023-03-26 | E61: 2022-07-01 | F61: 268 | G61: 626048
A62: 14 | B62: CITY OF WURTLAND | C62: 1473.73 | D62: 2023-03-26 | E62: 2022-07-01 | F62: 268 | G62: 394960
A63: 15 | B63: CITY OF WURTLAND | C63: 764.4 | D63: 2023-05-30 | E63: 2022-07-01 | F63: 333 | G63: 254545
A64: 16 | B64: CLARK COUNTY SHERIFF | C64: 18204.15 | D64: 2023-06-21 | E64: 2022-07-01 | F64: 355 | G64: 6462473
A65: 17 | B65: CLARK COUNTY SHERIFF | C65: 182041.5 | D65: 2023-06-21 | E65: 2022-07-01 | F65: 355 | G65: 64624733
A66: 18 | B66: CLAY COUNTY SHERIFF | C66: 89.25 | D66: 2023-03-26 | E66: 2022-07-01 | F66: 268 | G66: 23919
A67: 19 | B67: CLAY COUNTY SHERIFF | C67: 46.3 | D67: 2023-05-30 | E67: 2022-07-01 | F67: 333 | G67: 15418
A68: 20 | B68: ESTILL COUNTY SHERIFF | C68: 42359.91 | D68: 2023-03-26 | E68: 2022-07-01 | F68: 268 | G68: 11352456
A69: 21 | B69: FAYETTE COUNTY | C69: 705304.21 | D69: 2023-05-30 | E69: 2022-07-01 | F69: 333 | G69: 234866302
A70: 22 | B70: FAYETTE COUNTY | C70: 1359545.91 | D70: 2023-03-26 | E70: 2022-07-01 | F70: 268 | G70: 364358304
A71: 23 | B71: FLOYD COUNTY SHERIFF | C71: 19494.87 | D71: 2023-05-30 | E71: 2022-07-01 | F71: 333 | G71: 6491792
A72: 24 | B72: FLOYD COUNTY SHERIFF | C72: 12836.13 | D72: 2023-03-26 | E72: 2022-07-01 | F72: 268 | G72: 3440083
A73: 25 | B73: FRANKLIN COUNTY SHERIFF | C73: 264505.29 | D73: 2023-03-26 | E73: 2022-07-01 | F73: 268 | G73: 70887418
A74: 26 | B74: FRANKLIN COUNTY SHERIFF | C74: 166049.86 | D74: 2023-05-30 | E74: 2022-07-01 | F74: 333 | G74: 55294603
A75: 27 | B75: GREENUP COUNTY SHERIFF | C75: 78789.12 | D75: 2023-05-30 | E75: 2022-07-01 | F75: 333 | G75: 26236777
A76: 28 | B76: GREENUP COUNTY SHERIFF | C76: 151876.22 | D76: 2023-03-29 | E76: 2022-07-01 | F76: 271 | G76: 41158456
A77: 29 | B77: HARRISON COUNTY SHERIFF | C77: 16222.8 | D77: 2023-05-30 | E77: 2022-07-01 | F77: 333 | G77: 5402192
A78: 30 | B78: HARRISON COUNTY SHERIFF | C78: 31270.89 | D78: 2023-03-26 | E78: 2022-07-01 | F78: =D78-E78 -> 268 | G78: 8380599
A79: 31 | B79: JESSAMINE COUNTY SHERIFF | C79: 10948.93 | D79: 2023-05-30 | E79: 2022-07-01 | F79: 333 | G79: 3645994
A80: 32 | B80: JESSAMINE COUNTY SHERIFF | C80: 17440.66 | D80: 2023-03-26 | E80: 2022-07-01 | F80: 268 | G80: 4674097
A81: 33 | B81: JOHNSON COUNTY SHERIFF | C81: 428.25 | D81: 2023-05-30 | E81: 2022-07-01 | F81: 333 | G81: 142607
A82: 34 | B82: JOHNSON COUNTY SHERIFF | C82: 825.72 | D82: 2023-03-26 | E82: 2022-07-01 | F82: 268 | G82: 221293
A83: 35 | B83: KENTUCKY STATE TREASURER | C83: 234000 | D83: 2023-04-17 | E83: 2022-07-01 | F83: 290 | G83: 67860000
A84: 36 | B84: KNOTT COUNTY SHERIFF | C84: 2933.47 | D84: 2023-06-18 | E84: 2022-07-01 | F84: 352 | G84: =ROUND(F84*C84,0) -> 1032581
B85: (continued)
A86: 1 | B86: KNOTT COUNTY SHERIFF | C86: 5654.71 | D86: 2023-03-26 | E86: 2022-07-01 | F86: 268 | G86: 1515462
A87: 2 | B87: LAWRENCE COUNTY SHERIFF | C87: 11306.89 | D87: 2023-05-30 | E87: 2022-07-01 | F87: 333 | G87: 3765194
A88: 3 | B88: LAWRENCE COUNTY SHERIFF | C88: 21793.93 | D88: 2023-04-11 | E88: 2022-07-01 | F88: 284 | G88: 6189476
A89: 4 | B89: LEE COUNTY SHERIFF | C89: 21.14 | D89: 2023-04-11 | E89: 2022-07-01 | F89: 284 | G89: 6004
A90: 5 | B90: LEE COUNTY SHERIFF | C90: 32.1 | D90: 2023-05-30 | E90: 2022-07-01 | F90: 333 | G90: 10689
A91: 6 | B91: LEWIS COUNTY SHERIFF | C91: 446.76 | D91: 2023-05-30 | E91: 2022-07-01 | F91: 333 | G91: 148771
A92: 7 | B92: LEWIS COUNTY SHERIFF | C92: 861.09 | D92: 2023-03-26 | E92: 2022-07-01 | F92: 268 | G92: 230772
A93: 8 | B93: MADISON COUNTY SHERIFF | C93: 4505.18 | D93: 2023-03-26 | E93: 2022-07-01 | F93: 268 | G93: 1207388
A94: 9 | B94: MADISON COUNTY SHERIFF | C94: 2336.44 | D94: 2023-05-30 | E94: 2022-07-01 | F94: 333 | G94: 778035
A95: 10 | B95: MARTIN COUNTY SHERIFF | C95: 23589.64 | D95: 2023-05-30 | E95: 2022-07-01 | F95: 333 | G95: 7855350
A96: 11 | B96: MASON COUNTY SHERIFF | C96: 64308.69 | D96: 2023-05-30 | E96: 2022-07-01 | F96: 333 | G96: 21414794
A97: 12 | B97: MASON COUNTY SHERIFF | C97: 123945.52 | D97: 2023-03-26 | E97: 2022-07-01 | F97: 268 | G97: 33217399
A98: 13 | B98: MENIFEE COUNTY SHERIFF | C98: 152.18 | D98: 2023-04-23 | E98: 2022-07-01 | F98: 296 | G98: 45045
A99: 14 | B99: MENIFEE COUNTY SHERIFF | C99: 78.81 | D99: 2023-05-30 | E99: 2022-07-01 | F99: 333 | G99: 26244
A100: 15 | B100: MONTGOMERY COUNTY SHERIFF | C100: 21148.22 | D100: 2023-07-18 | E100: 2022-07-01 | F100: 382 | G100: 8078620
A101: 16 | B101: MONTGOMERY COUNTY SHERIFF | C101: 40770.87 | D101: 2023-04-18 | E101: 2022-07-01 | F101: 291 | G101: 11864323
A102: 17 | B102: NICHOLAS COUNTY SHERIFF | C102: 18097.34 | D102: 2023-03-26 | E102: 2022-07-01 | F102: 268 | G102: 4850087
A103: 18 | B103: NICHOLAS COUNTY SHERIFF | C103: 9383.14 | D103: 2023-05-30 | E103: 2022-07-01 | F103: 333 | G103: 3124586
A104: 19 | B104: OWSLEY COUNTY SHERIFF | C104: 133.3 | D104: 2023-02-21 | E104: 2021-07-01 | F104: 600 | G104: 79980
A105: 20 | B105: OWSLEY COUNTY SHERIFF | C105: 158.3 | D105: 2023-03-26 | E105: 2022-07-01 | F105: 268 | G105: 42424
A106: 21 | B106: PARIS INDEPENDENT | C106: 13251.85 | D106: 2023-05-17 | E106: 2022-07-01 | F106: 320 | G106: 4240592
A107: 22 | B107: PARIS INDEPENDENT | C107: 25542.28 | D107: 2023-03-26 | E107: 2022-07-01 | F107: 268 | G107: 6845331
A108: 23 | B108: PIKE COUNTY SHERIFF | C108: 26508.8 | D108: 2023-08-07 | E108: 2022-07-01 | F108: 402 | G108: 10656538
A109: 24 | B109: PRESTONSBURG CITYS UTILITIES COMM | C109: 10.89 | D109: 2023-05-30 | E109: 2022-07-01 | F109: 333 | G109: 3626
A110: 25 | B110: ROBERTSON COUNTY SHERIFF | C110: 57.74 | D110: 2023-03-26 | E110: 2022-07-01 | F110: 268 | G110: 15474
A111: 26 | B111: ROBERTSON COUNTY SHERIFF | C111: 29.95 | D111: 2023-05-30 | E111: 2022-07-01 | F111: 333 | G111: 9973
A112: 27 | B112: SCOTT COUNTY SHERIFF | C112: 54081.74 | D112: 2023-05-30 | E112: 2022-07-01 | F112: 333 | G112: 18009219
A113: 28 | B113: SCOTT COUNTY SHERIFF | C113: 104245.62 | D113: 2023-03-26 | E113: 2022-07-01 | F113: =D113-E113 -> 268 | G113: 27937826
A114: =A113+1 -> 29 | B114: WEST VIRGINIA STATE AUDITORS | C114: 102552.99 | D114: 2023-08-29 | E114: 2022-07-01 | F114: 424 | G114: 43482468
A115: 30 | B115: WEST VIRGINIA STATE AUDITORS | C115: 84358.54 | D115: 2023-02-23 | E115: 2022-07-01 | F115: 237 | G115: 19992974
A116: 31 | B116: WOODFORD COUNTY SHERIFF | C116: 87562.7 | D116: 2023-03-26 | E116: 2022-07-01 | F116: 268 | G116: 23466804
A117: 32 | B117: WOODFORD COUNTY SHERIFF | C117: 45427.48 | D117: 2023-05-30 | E117: 2022-07-01 | F117: 333 | G117: 15127351
A118: 33 | B118: Total | C118: =SUM(C16:C117) -> 5266402.21 | F118: =ROUND(G118/C118,2) -> 297.97 | G118: =SUM(G16:G117) -> 1569205056

Sheet Sh 12 - Other Taxes
A1: ='(WP) Instructions & Input'!B2 -> COLUMBIA GAS OF KENTUCKY, INC.
A2: ='(WP) Instructions & Input'!B9 -> CASE NO. 2024-00092
A3: ='(WP) Instructions & Input'!B3 -> CASH WORKING CAPITAL
A4: OTHER TAXES
A5: ='(WP) Instructions & Input'!B4 -> TME: DECEMBER 31, 2023
G7: ='(WP) Instructions & Input'!$B$11 -> Attachment KLJ-CWC-1
G8: SHEET 12
G9: ='(WP) Instructions & Input'!$B$12 -> WITNESS: JOHNSON
A11: Line | B11: End of Service | C11: Midpoint of | D11: Payment | E11: Amount | F11: Lead | G11: Weighted
A12: No. | B12: Period | C12: Service Period | D12: Date | E12: Paid | F12: Days | G12: Tax Dollars
B13: (1) | C13: (2) | D13: (3) | E13: (4) | F13: (5) | G13: (6=4*5)
E14: $ | G14: $
B15: Severance Tax
A16: 1 | B16: 2022-12-31 | C16: 15.5 | D16: 2023-01-31 | E16: 230.61 | F16: =(D16-B16)+C16 -> 46.5 | G16: =ROUND(E16*F16,0) -> 10723
A17: =A16+1 -> 2 | B17: 2023-01-31 | C17: 15.5 | D17: 2023-02-28 | E17: 178.36 | F17: 43.5 | G17: 7759
A18: =A17+1 -> 3 | B18: 2023-02-28 | C18: 14 | D18: 2023-03-30 | E18: 269.56 | F18: 44 | G18: 11861
A19: 4 | B19: 2023-03-31 | C19: 15.5 | D19: 2023-04-30 | E19: 184.62 | F19: 45.5 | G19: 8400
A20: 5 | B20: 2023-04-30 | C20: 15 | D20: 2023-05-30 | E20: 109.59 | F20: 45 | G20: 4932
A21: 6 | B21: 2023-05-31 | C21: 15.5 | D21: 2023-06-30 | E21: 107.73 | F21: 45.5 | G21: 4902
A22: 7 | B22: 2023-06-30 | C22: 15 | D22: 2023-07-30 | E22: 82.12 | F22: 45 | G22: 3695
A23: 8 | B23: 2023-07-31 | C23: 15.5 | D23: 2023-08-30 | E23: 92.56 | F23: 45.5 | G23: 4211
A24: 9 | B24: 2023-08-31 | C24: 15.5 | D24: 2023-09-30 | E24: 124.76 | F24: 45.5 | G24: 5677
A25: 10 | B25: 2023-09-30 | C25: 15 | D25: 2023-10-30 | E25: 78.2 | F25: 45 | G25: 3519
A26: 11 | B26: 2023-10-31 | C26: 15.5 | D26: 2023-11-30 | E26: 22.29 | F26: 45.5 | G26: 1014
A27: 12 | B27: 2023-11-30 | C27: 15 | D27: 2023-12-30 | E27: 50.69 | F27: 45 | G27: 2281
A28: 13 | E28: =SUM(E16:E27) -> 1531.09 | F28: =ROUND(G28/E28,1) -> 45 | G28: =SUM(G16:G27) -> 68974
A30: =A28+1 -> 14 | B30: TOTAL OTHER TAXES | E30: =E28 -> 1531.09 | F30: =ROUND(G30/E30,1) -> 45 | G30: =G28 -> 68974

Sheet Sh 13 - FIT
A1: ='(WP) Instructions & Input'!B2 -> COLUMBIA GAS OF KENTUCKY, INC.
A2: ='(WP) Instructions & Input'!B9 -> CASE NO. 2024-00092
A3: ='(WP) Instructions & Input'!B3 -> CASH WORKING CAPITAL
A4: FEDERAL INCOME TAXES
A5: ='(WP) Instructions & Input'!B4 -> TME: DECEMBER 31, 2023
G7: ='(WP) Instructions & Input'!$B$11 -> Attachment KLJ-CWC-1
G8: SHEET 13
G9: ='(WP) Instructions & Input'!$B$12 -> WITNESS: JOHNSON
E11: Midpoint | G11: Weighted
A12: Line | B12: Amount | C12: Service | D12: Date | E12: of | F12: Lead | G12: Lead
A13: No. | B13: Due | C13: Period | D13: Paid | E13: Year | F13: Days | G13: Days
B14: (1) | C14: (2) | D14: (3) | E14: (4) | F14: (5) | G14: (6=1*5)
A17: 1 | B17: 0.25 | C17: 2023 | D17: =DATE(2023,4,15) -> 2023-04-15 | E17: =DATE(2023,7,1) -> 2023-07-01 | F17: =D17-E17 -> -77 | G17: =ROUND(F17*B17,2) -> -19.25
A18: =A17+1 -> 2 | B18: 0.25 | C18: 2023 | D18: =DATE(2023,6,15) -> 2023-06-15 | E18: =DATE(2023,7,1) -> 2023-07-01 | F18: =D18-E18 -> -16 | G18: =ROUND(F18*B18,2) -> -4
A19: =A18+1 -> 3 | B19: 0.25 | C19: 2023 | D19: =DATE(2023,9,15) -> 2023-09-15 | E19: 2023-07-01 | F19: =D19-E19 -> 76 | G19: =ROUND(F19*B19,2) -> 19
A20: =A19+1 -> 4 | B20: 0.25 | C20: 2023 | D20: =DATE(2023,12,15) -> 2023-12-15 | E20: 2023-07-01 | F20: =D20-E20 -> 167 | G20: =ROUND(F20*B20,2) -> 41.75
A22: =A20+1 -> 5 | F22: Total Federal Income Tax Lead Days | G22: =SUM(G17:G21) -> 37.5
A24: ( ) Denotes Credit

Sheet Sh 14 - Int
A1: ='(WP) Instructions & Input'!B2 -> COLUMBIA GAS OF KENTUCKY, INC.
A2: ='(WP) Instructions & Input'!B9 -> CASE NO. 2024-00092
A3: ='(WP) Instructions & Input'!B3 -> CASH WORKING CAPITAL
A4: INTEREST ON DEBT
A5: ='(WP) Instructions & Input'!B4 -> TME: DECEMBER 31, 2023
E7: ='(WP) Instructions & Input'!$B$11 -> Attachment KLJ-CWC-1
E8: SHEET 14
E9: ='(WP) Instructions & Input'!$B$12 -> WITNESS: JOHNSON
E11: Dollar
A12: Line | D12: Lead | E12: Lead
A13: No. | B13: Instrument | C13: Amount | D13: Days | E13: Days
C14: (1) | D14: (2) | E14: (3=1*2)
C15: $ | E15: $
A18: 1 | B18: Installment Promissory Notes | C18: ='Sh 14a - Int'!F47 -> 10232267.21 | D18: =ROUND((E18/C18),2) -> 91.57 | E18: ='Sh 14a - Int'!G47 -> 936986931
A20: =A18+1 -> 2 | B20: Money Pool | C20: ='Sh 14a - Int'!F29 -> 1234961.18 | D20: =ROUND((E20/C20),2) -> 16.21 | E20: ='Sh 14a - Int'!G29 -> 20017498
A22: =A20+1 -> 3 | B22: Total | C22: =SUM(C18:C20) -> 11467228.39 | D22: =ROUND(E22/C22,2) -> 83.46 | E22: =SUM(E18:E20) -> 957004429

Sheet Sh 14a - Int
A1: ='(WP) Instructions & Input'!B2 -> COLUMBIA GAS OF KENTUCKY, INC.
A2: ='(WP) Instructions & Input'!B9 -> CASE NO. 2024-00092
A3: ='Sh 14 - Int'!A3:E3 -> CASH WORKING CAPITAL
A4: MONEY POOL INTEREST
A5: ='(WP) Instructions & Input'!B4 -> TME: DECEMBER 31, 2023
G7: ='(WP) Instructions & Input'!$B$11 -> Attachment KLJ-CWC-1
G8: SHEET 14a
G9: ='(WP) Instructions & Input'!$B$12 -> WITNESS: JOHNSON
A11: Line | B11: End of | C11: Payment | D11: Midpoint | E11: Lead | F11: Amount | G11: Weighted
A12: No. | B12: Period | C12: Date | D12: of Service | E12: Days | F12: Paid | G12: Tax Dollars
B13: (1) | C13: (2) | D13: (3) | E13: (4)=(1-2+3) | F13: (5) | G13: (6)=4*5)
A14: Money Pool | F14: $
A16: 1 | B16: 2023-01-31 | C16: 2023-02-01 | D16: 15.5 | E16: =C16-B16+D16 -> 16.5 | F16: 165064.76 | G16: =ROUND(E16*F16,0) -> 2723569
A17: =A16+1 -> 2 | B17: 2023-02-28 | C17: 2023-03-01 | D17: 14 | E17: =C17-B17+D17 -> 15 | F17: 114597.83 | G17: 1718967
A18: 3 | B18: 2023-03-31 | C18: 2023-04-01 | D18: 15.5 | E18: 16.5 | F18: 82340.29 | G18: 1358615
A19: 4 | B19: 2023-04-30 | C19: 2023-05-01 | D19: 15 | E19: 16 | F19: 47929.4 | G19: 766870
A20: 5 | B20: 2023-05-31 | C20: 2023-06-01 | D20: 15.5 | E20: 16.5 | F20: 48994.23 | G20: 808405
A21: 6 | B21: 2023-06-30 | C21: 2023-07-01 | D21: 15 | E21: 16 | F21: 89530.28 | G21: 1432484
A22: 7 | B22: 2023-07-31 | C22: 2023-08-01 | D22: 15.5 | E22: 16.5 | F22: 123816.69 | G22: 2042975
A23: 8 | B23: 2023-08-31 | C23: 2023-09-01 | D23: 15.5 | E23: 16.5 | F23: 184225.34 | G23: 3039718
A24: 9 | B24: 2023-09-30 | C24: 2023-10-01 | D24: 15 | E24: 16 | F24: 191751.52 | G24: 3068024
A25: 10 | B25: 2023-10-31 | C25: 2023-11-01 | D25: 15.5 | E25: 16.5 | F25: 54843.42 | G25: 904916
A26: 11 | B26: 2023-11-30 | C26: 2023-12-01 | D26: 15 | E26: 16 | F26: 45714.32 | G26: 731429
A27: 12 | B27: 2023-12-31 | C27: 2024-01-01 | D27: 15.5 | E27: 16.5 | F27: 86153.1 | G27: 1421526
A29: =A27+1 -> 13 | E29: =ROUND(G29/F29,2) -> 16.21 | F29: =SUM(F15:F27) -> 1234961.18 | G29: =SUM(G14:G27) -> 20017498
A32: Installment Promissory Notes
A34: =+A29+1 -> 14 | B34: 2023-01-31 | C34: 2023-06-01 | D34: 15.5 | E34: =C34-B34+D34 -> 136.5 | F34: 823844.11 | G34: =ROUND(E34*F34,0) -> 112454721
A35: =A34+1 -> 15 | B35: 2023-02-28 | C35: 2023-06-01 | D35: 14 | E35: =C35-B35+D35 -> 107 | F35: 744117.25 | G35: 79620546
A36: 16 | B36: 2023-03-31 | C36: 2023-06-01 | D36: 15.5 | E36: 77.5 | F36: 823844.11 | G36: 63847919
A37: 17 | B37: 2023-04-30 | C37: 2023-06-01 | D37: 15 | E37: 47 | F37: 797268.49 | G37: 37471619
A38: 18 | B38: 2023-05-31 | C38: 2023-06-01 | D38: 15.5 | E38: 16.5 | F38: 823844.11 | G38: 13593428
A39: 19 | B39: 2023-06-30 | C39: 2023-12-01 | D39: 15 | E39: 169 | F39: 797268.49 | G39: 134738375
A40: 20 | B40: 2023-07-31 | C40: 2023-12-01 | D40: 15.5 | E40: 138.5 | F40: 823844.11 | G40: 114102409
A41: 21 | B41: 2023-08-31 | C41: 2023-12-01 | D41: 15.5 | E41: 107.5 | F41: 823844.11 | G41: 88563242
A42: 22 | B42: 2023-09-30 | C42: 2023-12-01 | D42: 15 | E42: 77 | F42: =797268.49+11322.71 -> 808591.2 | G42: 62261522
A43: 23 | B43: 2023-10-31 | C43: 2023-12-01 | D43: 15.5 | E43: 46.5 | F43: 999346.07 | G43: 46469592
A44: 24 | B44: 2023-11-30 | C44: 2023-12-01 | D44: 15 | E44: 16 | F44: 967109.09 | G44: 15473745
A45: 25 | B45: 2023-12-31 | C45: 2024-06-01 | D45: 15.5 | E45: 168.5 | F45: 999346.07 | G45: 168389813
A47: =A45+1 -> 26 | E47: =ROUND(G47/F47,2) -> 91.57 | F47: =SUM(F33:F45) -> 10232267.21 | G47: =SUM(G32:G45) -> 936986931

Sheet Sh 15 - Franchise & GR Tax
A1: ='(WP) Instructions & Input'!B2 -> COLUMBIA GAS OF KENTUCKY, INC.
A2: ='(WP) Instructions & Input'!B9 -> CASE NO. 2024-00092
A3: ='(WP) Instructions & Input'!B3 -> CASH WORKING CAPITAL
A4: FRANCHISE AND GROSS RECEIPTS TAXES
A5: ='(WP) Instructions & Input'!B4 -> TME: DECEMBER 31, 2023
G7: ='(WP) Instructions & Input'!$B$11 -> Attachment KLJ-CWC-1
G8: SHEET 15
G9: ='(WP) Instructions & Input'!$B$12 -> WITNESS: JOHNSON
A11: Line | B11: End of Service | C11: Midpoint of | D11: Payment | E11: Amount | F11: Lead | G11: Weighted
A12: No. | B12: Period | C12: Service Period | D12: Date | E12: Paid | F12: Days | G12: Tax Dollars
B13: (1) | C13: (2) | D13: (3) | E13: (4) | F13: (5) | G13: (6=4*5)
D14: $ | G14: $
B15: Franchise Tax
A17: 1 | B17: 2022-12-31 | C17: 15.5 | D17: 2023-01-30 | E17: 818284.86 | F17: =(D17-B17)+C17 -> 45.5 | G17: =ROUND(E17*F17,0) -> 37231961
A18: =A17+1 -> 2 | B18: 2023-01-30 | C18: 15.5 | D18: 2023-02-28 | E18: 1074929.38 | F18: =(D18-B18)+C18 -> 44.5 | G18: 47834357
A19: =A18+1 -> 3 | B19: 2023-02-28 | C19: 14 | D19: 2023-03-30 | E19: 926468.85 | F19: 44 | G19: 40764629
A20: 4 | B20: 2023-03-31 | C20: 15.5 | D20: 2023-04-30 | E20: 628503.61 | F20: 45.5 | G20: 28596914
A21: 5 | B21: 2023-04-30 | C21: 15 | D21: 2023-05-30 | E21: 474957.76 | F21: 45 | G21: 21373099
A22: 6 | B22: 2023-05-31 | C22: 15.5 | D22: 2023-06-30 | E22: 293836.1 | F22: 45.5 | G22: 13369543
A23: 7 | B23: 2023-06-30 | C23: 15 | D23: 2023-07-30 | E23: 208647.69 | F23: 45 | G23: 9389146
A24: 8 | B24: 2023-07-31 | C24: 15.5 | D24: 2023-08-30 | E24: 194414.66 | F24: 45.5 | G24: 8845867
A25: 9 | B25: 2023-08-31 | C25: 15.5 | D25: 2023-09-30 | E25: 180570.57 | F25: 45.5 | G25: 8215961
A26: 10 | B26: 2023-09-30 | C26: 15 | D26: 2023-10-30 | E26: 160791.82 | F26: 45 | G26: 7235632
A27: 11 | B27: 2023-10-31 | C27: 15.5 | D27: 2023-11-30 | E27: 179487.38 | F27: 45.5 | G27: 8166676
A28: 12 | B28: 2023-11-30 | C28: 15 | D28: 2023-12-30 | E28: 271012.98 | F28: 45 | G28: 12195584
A29: 13 | E29: =SUM(E17:E28) -> 5411905.66 | F29: =ROUND(G29/E29,1) -> 44.9 | G29: =SUM(G17:G28) -> 243219369
B31: Gross Receipts Tax
A32: =A29+1 -> 14 | B32: 2022-12-31 | C32: 15.5 | D32: 2023-01-20 | E32: 953965.94 | F32: =(D32-B32)+C32 -> 35.5 | G32: =ROUND(E32*F32,0) -> 33865791
A33: =A32+1 -> 15 | B33: 2023-01-30 | C33: 15.5 | D33: 2023-02-20 | E33: 1229915.68 | F33: =(D33-B33)+C33 -> 36.5 | G33: 44891922
A34: =A33+1 -> 16 | B34: 2023-02-28 | C34: 14 | D34: 2023-03-20 | E34: 1080686.11 | F34: 34 | G34: 36743328
A35: 17 | B35: 2023-03-31 | C35: 15.5 | D35: 2023-04-20 | E35: 729407.51 | F35: 35.5 | G35: 25893967
A36: 18 | B36: 2023-04-30 | C36: 15 | D36: 2023-05-22 | E36: 548000.37 | F36: 37 | G36: 20276014
A37: 19 | B37: 2023-05-31 | C37: 15.5 | D37: 2023-06-20 | E37: 343640.84 | F37: 35.5 | G37: 12199250
A38: 20 | B38: 2023-06-30 | C38: 15 | D38: 2023-07-20 | E38: 239327.09 | F38: 35 | G38: 8376448
A39: 21 | B39: 2023-07-31 | C39: 15.5 | D39: 2023-08-20 | E39: 223233.47 | F39: 35.5 | G39: 7924788
A40: 22 | B40: 2023-08-31 | C40: 15.5 | D40: 2023-09-20 | E40: 207857.92 | F40: 35.5 | G40: 7378956
A41: 23 | B41: 2023-09-30 | C41: 15 | D41: 2023-10-20 | E41: 184907.06 | F41: 35 | G41: 6471747
A42: 24 | B42: 2023-10-31 | C42: 15.5 | D42: 2023-11-20 | E42: 207133.48 | F42: 35.5 | G42: 7353239
A43: 25 | B43: 2023-11-30 | C43: 15 | D43: 2023-12-20 | E43: 318712.94 | F43: 35 | G43: 11154953
A44: 26 | E44: =SUM(E32:E43) -> 6266788.41 | F44: =ROUND(G44/E44,1) -> 35.5 | G44: =SUM(G32:G43) -> 222530403

Sheet Sh 16 - Sales & Use
A1: ='(WP) Instructions & Input'!B2 -> COLUMBIA GAS OF KENTUCKY, INC.
A2: ='(WP) Instructions & Input'!B9 -> CASE NO. 2024-00092
A3: ='(WP) Instructions & Input'!B3 -> CASH WORKING CAPITAL
A4: SALES & USE TAXES
A5: ='(WP) Instructions & Input'!B4 -> TME: DECEMBER 31, 2023
G7: ='(WP) Instructions & Input'!$B$11 -> Attachment KLJ-CWC-1
G8: SHEET 16
G9: ='(WP) Instructions & Input'!$B$12 -> WITNESS: JOHNSON
A11: Line | B11: End of Service | C11: Midpoint of | D11: Payment | E11: Amount | F11: Lead | G11: Weighted
A12: No. | B12: Period | C12: Service Period | D12: Date | E12: Paid | F12: Days | G12: Tax Dollars
B13: (1) | C13: (2) | D13: (3) | E13: (4) | F13: (5) | G13: (6=4*5)
E14: $ | G14: $
B15: Direct Payment Use Tax
A17: 1 | B17: 2022-12-31 | C17: 15.5 | D17: 2023-01-25 | E17: 3542.55 | F17: =(D17-B17)+C17 -> 40.5 | G17: =ROUND(E17*F17,0) -> 143473
A18: 2 | B18: 2023-01-31 | C18: 15.5 | D18: 2023-02-25 | E18: 5425.44 | F18: 40.5 | G18: 219730
A19: 3 | B19: 2023-02-28 | C19: 14 | D19: 2023-03-25 | E19: 27710.3 | F19: 39 | G19: 1080702
A20: 4 | B20: 2023-03-31 | C20: 15.5 | D20: 2023-04-26 | E20: 12350.49 | F20: 41.5 | G20: 512545
A21: 5 | B21: 2023-04-30 | C21: 15 | D21: 2023-05-25 | E21: 12843.93 | F21: 40 | G21: 513757
A22: 6 | B22: 2023-05-31 | C22: 15.5 | D22: 2023-06-25 | E22: 20194.68 | F22: 40.5 | G22: 817885
A23: 7 | B23: 2023-06-30 | C23: 15 | D23: 2023-07-25 | E23: 24602.26 | F23: 40 | G23: 984090
A24: 8 | B24: 2023-07-31 | C24: 15.5 | D24: 2023-08-25 | E24: 54658.34 | F24: 40.5 | G24: 2213663
A25: 9 | B25: 2023-08-31 | C25: 15.5 | D25: 2023-09-25 | E25: 0 | F25: 40.5 | G25: 0
A26: 10 | B26: 2023-09-30 | C26: 15 | D26: 2023-10-24 | E26: 11784.61 | F26: 39 | G26: 459600
A27: 11 | B27: 2023-10-31 | C27: 15.5 | D27: 2023-11-25 | E27: 7650.89 | F27: 40.5 | G27: 309861
A28: 12 | B28: 2023-11-30 | C28: 15 | D28: 2023-12-23 | E28: 20623.24 | F28: 38 | G28: 783683
A29: =A28+1 -> 13 | E29: =SUM(E17:E28) -> 201386.73 | F29: =ROUND(G29/E29,1) -> 39.9 | G29: =SUM(G17:G28) -> 8038989
B31: Sales Tax
A32: =A29+1 -> 14 | B32: 2022-12-31 | C32: 15.5 | D32: 2023-01-25 | E32: 690654.4 | F32: =(D32-B32)+C32 -> 40.5 | G32: =ROUND(E32*F32,0) -> 27971503
A33: =A32+1 -> 15 | B33: 2023-01-31 | C33: 15.5 | D33: 2023-02-25 | E33: 966715.28 | F33: 40.5 | G33: 39151969
A34: =A33+1 -> 16 | B34: 2023-02-28 | C34: 14 | D34: 2023-03-25 | E34: 658762.62 | F34: 39 | G34: 25691742
A35: 17 | B35: 2023-03-31 | C35: 15.5 | D35: 2023-04-26 | E35: 374778.37 | F35: 41.5 | G35: 15553302
A36: 18 | B36: 2023-04-30 | C36: 15 | D36: 2023-05-25 | E36: 343393.73 | F36: 40 | G36: 13735749
A37: 19 | B37: 2023-05-31 | C37: 15.5 | D37: 2023-06-25 | E37: 220003.9 | F37: 40.5 | G37: 8910158
A38: 20 | B38: 2023-06-30 | C38: 15 | D38: 2023-07-25 | E38: 190148.56 | F38: 40 | G38: 7605942
A39: 21 | B39: 2023-07-31 | C39: 15.5 | D39: 2023-08-25 | E39: 211203.64 | F39: 40.5 | G39: 8553747
A40: 22 | B40: 2023-08-31 | C40: 15.5 | D40: 2023-09-25 | E40: 167137.98 | F40: 40.5 | G40: 6769088
A41: 23 | B41: 2023-09-30 | C41: 15 | D41: 2023-10-24 | E41: 155213.67 | F41: 39 | G41: 6053333
A42: 24 | B42: 2023-10-31 | C42: 15.5 | D42: 2023-11-25 | E42: 186502.19 | F42: 40.5 | G42: 7553339
A43: 25 | B43: 2023-11-30 | C43: 15 | D43: 2023-12-23 | E43: 294450.2 | F43: 38 | G43: 11189108
A44: 26 | E44: =SUM(E32:E43) -> 4458964.54 | F44: =ROUND(G44/E44,1) -> 40.1 | G44: =SUM(G32:G43) -> 178738980
A46: =A44+1 -> 27 | E46: =E44+E29 -> 4660351.27 | F46: =ROUND(G46/E46,1) -> 40.1 | G46: =G44+G29 -> 186777969

Sheet DO NOT FILE ------->>>>>>

Sheet (WP) Instructions & Input
A1: 1
A2: 2 | B2: COLUMBIA GAS OF KENTUCKY, INC.
A3: 3 | B3: CASH WORKING CAPITAL
A4: 4 | B4: TME: DECEMBER 31, 2023
A5: 5
A6: 6
A7: 7
A8: 8 | B8: Page No.
A9: 9 | B9: CASE NO. 2024-00092
A10: 10 | B10: Work Papers
A11: 11 | B11: Attachment KLJ-CWC-1
A12: 12 | B12: WITNESS: JOHNSON

Sheet (WP) 3c Bill Lag DIS
A1: ='(WP) Instructions & Input'!B2 -> COLUMBIA GAS OF KENTUCKY, INC.
A2: ='(WP) Instructions & Input'!B9 -> CASE NO. 2024-00092
A3: ='(WP) Instructions & Input'!B3 -> CASH WORKING CAPITAL
A4: BILLING LAG CALCULATION - DIS
A5: ='(WP) Instructions & Input'!B4 -> TME: DECEMBER 31, 2023
E7: ='(WP) Instructions & Input'!$B$11 -> Attachment KLJ-CWC-1
E8: (WORKPAPER) SHEET 3c
E9: ='(WP) Instructions & Input'!$B$12 -> WITNESS: JOHNSON
A11: Line | B11: Billing | C11: Meter Reading | D11: Bill Release
A12: No. | B12: Unit | C12: Date | D12: Date | E12: Days
C13: (1) | D13: (2) | E13: (3)=(2)-(1)
A15: =A14+1 -> 1 | B15: 1 | C15: 2022-12-30 | D15: 2023-01-03 | E15: =D15-C15 -> 4
A16: 2 | B16: 2 | C16: 2023-01-03 | D16: 2023-01-04 | E16: 1
A17: 3 | B17: 3 | C17: 2023-01-04 | D17: 2023-01-05 | E17: 1
A18: 4 | B18: 4 | C18: 2023-01-05 | D18: 2023-01-06 | E18: 1
A19: 5 | B19: 5 | C19: 2023-01-06 | D19: 2023-01-09 | E19: 3
A20: 6 | B20: 6 | C20: 2023-01-09 | D20: 2023-01-10 | E20: 1
A21: 7 | B21: 7 | C21: 2023-01-10 | D21: 2023-01-11 | E21: 1
A22: 8 | B22: 8 | C22: 2023-01-11 | D22: 2023-01-12 | E22: 1
A23: 9 | B23: 9 | C23: 2023-01-12 | D23: 2023-01-13 | E23: 1
A24: 10 | B24: 10 | C24: 2023-01-13 | D24: 2023-01-16 | E24: 3
A25: 11 | B25: 11 | C25: 2023-01-16 | D25: 2023-01-17 | E25: 1
A26: 12 | B26: 12 | C26: 2023-01-17 | D26: 2023-01-18 | E26: 1
A27: 13 | B27: 13 | C27: 2023-01-18 | D27: 2023-01-19 | E27: 1
A28: 14 | B28: 14 | C28: 2023-01-19 | D28: 2023-01-20 | E28: 1
A29: 15 | B29: 15 | C29: 2023-01-20 | D29: 2023-01-23 | E29: 3
A30: 16 | B30: 16 | C30: 2023-01-23 | D30: 2023-01-24 | E30: 1
A31: 17 | B31: 17 | C31: 2023-01-24 | D31: 2023-01-25 | E31: 1
A32: 18 | B32: 18 | C32: 2023-01-25 | D32: 2023-01-26 | E32: 1
A33: 19 | B33: 19 | C33: 2023-01-26 | D33: 2023-01-27 | E33: 1
A34: 20 | B34: 20 | C34: 2023-01-27 | D34: 2023-01-30 | E34: 3
A35: 21 | B35: 21 | C35: 2023-01-30 | D35: 2023-01-31 | E35: 1
A36: 22 | B36: 1 | C36: 2023-01-31 | D36: 2023-02-01 | E36: 1
A37: 23 | B37: 2 | C37: 2023-02-01 | D37: 2023-02-02 | E37: 1
A38: 24 | B38: 3 | C38: 2023-02-02 | D38: 2023-02-03 | E38: 1
A39: 25 | B39: 4 | C39: 2023-02-03 | D39: 2023-02-06 | E39: 3
A40: 26 | B40: 5 | C40: 2023-02-06 | D40: 2023-02-07 | E40: 1
A41: 27 | B41: 6 | C41: 2023-02-07 | D41: 2023-02-08 | E41: 1
A42: 28 | B42: 7 | C42: 2023-02-08 | D42: 2023-02-09 | E42: 1
A43: 29 | B43: 8 | C43: 2023-02-09 | D43: 2023-02-10 | E43: 1
A44: 30 | B44: 9 | C44: 2023-02-10 | D44: 2023-02-13 | E44: 3
A45: 31 | B45: 10 | C45: 2023-02-13 | D45: 2023-02-14 | E45: 1
A46: 32 | B46: 11 | C46: 2023-02-14 | D46: 2023-02-15 | E46: 1
A47: 33 | B47: 12 | C47: 2023-02-15 | D47: 2023-02-16 | E47: 1
A48: 34 | B48: 13 | C48: 2023-02-16 | D48: 2023-02-17 | E48: 1
A49: 35 | B49: 14 | C49: 2023-02-17 | D49: 2023-02-20 | E49: 3
A50: 36 | B50: 15 | C50: 2023-02-20 | D50: 2023-02-21 | E50: 1
A51: 37 | B51: 16 | C51: 2023-02-21 | D51: 2023-02-22 | E51: 1
A52: 38 | B52: 17 | C52: 2023-02-22 | D52: 2023-02-23 | E52: 1
A53: 39 | B53: 18 | C53: 2023-02-23 | D53: 2023-02-24 | E53: 1
A54: 40 | B54: 19 | C54: 2023-02-24 | D54: 2023-02-27 | E54: 3
A55: 41 | B55: 20 | C55: 2023-02-27 | D55: 2023-02-28 | E55: 1
A56: 42 | B56: 21 | C56: 2023-02-28 | D56: 2023-03-01 | E56: 1
A57: 43 | B57: 1 | C57: 2023-03-01 | D57: 2023-03-02 | E57: 1
A58: 44 | B58: 2 | C58: 2023-03-02 | D58: 2023-03-03 | E58: 1
A59: 45 | B59: 3 | C59: 2023-03-03 | D59: 2023-03-06 | E59: 3
A60: 46 | B60: 4 | C60: 2023-03-06 | D60: 2023-03-07 | E60: 1
A61: 47 | B61: 5 | C61: 2023-03-07 | D61: 2023-03-08 | E61: 1
A62: 48 | B62: 6 | C62: 2023-03-08 | D62: 2023-03-09 | E62: 1
A63: 49 | B63: 7 | C63: 2023-03-09 | D63: 2023-03-10 | E63: 1
A64: 50 | B64: 8 | C64: 2023-03-10 | D64: 2023-03-13 | E64: 3
A65: 51 | B65: 9 | C65: 2023-03-13 | D65: 2023-03-14 | E65: 1
A66: 52 | B66: 10 | C66: 2023-03-14 | D66: 2023-03-15 | E66: 1
A67: 53 | B67: 11 | C67: 2023-03-15 | D67: 2023-03-16 | E67: 1
A68: 54 | B68: 12 | C68: 2023-03-16 | D68: 2023-03-17 | E68: 1
A69: 55 | B69: 13 | C69: 2023-03-17 | D69: 2023-03-20 | E69: 3
A70: 56 | B70: 14 | C70: 2023-03-20 | D70: 2023-03-21 | E70: 1
A71: 57 | B71: 15 | C71: 2023-03-21 | D71: 2023-03-22 | E71: 1
A72: 58 | B72: 16 | C72: 2023-03-22 | D72: 2023-03-23 | E72: 1
A73: 59 | B73: 17 | C73: 2023-03-23 | D73: 2023-03-24 | E73: 1
A74: 60 | B74: 18 | C74: 2023-03-24 | D74: 2023-03-27 | E74: 3
A75: 61 | B75: 19 | C75: 2023-03-27 | D75: 2023-03-28 | E75: 1
A76: 62 | B76: 20 | C76: 2023-03-28 | D76: 2023-03-29 | E76: 1
A77: 63 | B77: 21 | C77: 2023-03-29 | D77: 2023-03-30 | E77: 1
A78: 64 | B78: 1 | C78: 2023-03-30 | D78: 2023-03-31 | E78: 1
A79: =A78+1 -> 65 | B79: 2 | C79: 2023-03-31 | D79: 2023-04-03 | E79: =D79-C79 -> 3
A80: 66 | B80: 3 | C80: 2023-04-03 | D80: 2023-04-04 | E80: 1
A81: 67 | B81: 4 | C81: 2023-04-04 | D81: 2023-04-05 | E81: 1
A82: 68 | B82: 5 | C82: 2023-04-05 | D82: 2023-04-06 | E82: 1
A83: 69 | B83: 6 | C83: 2023-04-06 | D83: 2023-04-10 | E83: 4
A84: 70 | B84: 7 | C84: 2023-04-10 | D84: 2023-04-11 | E84: 1
A85: 71 | B85: 8 | C85: 2023-04-11 | D85: 2023-04-12 | E85: 1
A86: 72 | B86: 9 | C86: 2023-04-12 | D86: 2023-04-13 | E86: 1
A87: 73 | B87: 10 | C87: 2023-04-13 | D87: 2023-04-14 | E87: 1
A88: 74 | B88: 11 | C88: 2023-04-14 | D88: 2023-04-17 | E88: 3
A89: 75 | B89: 12 | C89: 2023-04-17 | D89: 2023-04-18 | E89: 1
A90: 76 | B90: 13 | C90: 2023-04-18 | D90: 2023-04-19 | E90: 1
A91: 77 | B91: 14 | C91: 2023-04-19 | D91: 2023-04-20 | E91: 1
A92: 78 | B92: 15 | C92: 2023-04-20 | D92: 2023-04-21 | E92: 1
A93: 79 | B93: 16 | C93: 2023-04-21 | D93: 2023-04-24 | E93: 3
A94: 80 | B94: 17 | C94: 2023-04-24 | D94: 2023-04-25 | E94: 1
A95: 81 | B95: 18 | C95: 2023-04-25 | D95: 2023-04-26 | E95: 1
A96: 82 | B96: 19 | C96: 2023-04-26 | D96: 2023-04-27 | E96: 1
A97: 83 | B97: 20 | C97: 2023-04-27 | D97: 2023-04-28 | E97: 1
A98: 84 | B98: 21 | C98: 2023-04-28 | D98: 2023-05-01 | E98: 3
A99: 85 | B99: 1 | C99: 2023-05-01 | D99: 2023-05-02 | E99: 1
A100: 86 | B100: 2 | C100: 2023-05-02 | D100: 2023-05-03 | E100: 1
A101: 87 | B101: 3 | C101: 2023-05-03 | D101: 2023-05-04 | E101: 1
A102: 88 | B102: 4 | C102: 2023-05-04 | D102: 2023-05-05 | E102: 1
A103: 89 | B103: 5 | C103: 2023-05-05 | D103: 2023-05-08 | E103: 3
A104: 90 | B104: 6 | C104: 2023-05-08 | D104: 2023-05-09 | E104: 1
A105: 91 | B105: 7 | C105: 2023-05-09 | D105: 2023-05-10 | E105: 1
A106: 92 | B106: 8 | C106: 2023-05-10 | D106: 2023-05-11 | E106: 1
A107: 93 | B107: 9 | C107: 2023-05-11 | D107: 2023-05-12 | E107: 1
A108: 94 | B108: 10 | C108: 2023-05-12 | D108: 2023-05-15 | E108: 3
A109: 95 | B109: 11 | C109: 2023-05-15 | D109: 2023-05-16 | E109: 1
A110: 96 | B110: 12 | C110: 2023-05-16 | D110: 2023-05-17 | E110: 1
A111: 97 | B111: 13 | C111: 2023-05-17 | D111: 2023-05-18 | E111: 1
A112: 98 | B112: 14 | C112: 2023-05-18 | D112: 2023-05-19 | E112: 1
A113: 99 | B113: 15 | C113: 2023-05-19 | D113: 2023-05-22 | E113: 3
A114: 100 | B114: 16 | C114: 2023-05-22 | D114: 2023-05-23 | E114: 1
A115: 101 | B115: 17 | C115: 2023-05-23 | D115: 2023-05-24 | E115: 1
A116: 102 | B116: 18 | C116: 2023-05-24 | D116: 2023-05-25 | E116: 1
A117: 103 | B117: 19 | C117: 2023-05-25 | D117: 2023-05-26 | E117: 1
A118: 104 | B118: 20 | C118: 2023-05-26 | D118: 2023-05-30 | E118: 4
A119: 105 | B119: 21 | C119: 2023-05-30 | D119: 2023-05-31 | E119: 1
A120: 106 | B120: 1 | C120: 2023-05-31 | D120: 2023-06-01 | E120: 1
A121: 107 | B121: 2 | C121: 2023-06-01 | D121: 2023-06-02 | E121: 1
A122: 108 | B122: 3 | C122: 2023-06-02 | D122: 2023-06-05 | E122: 3
A123: 109 | B123: 4 | C123: 2023-06-05 | D123: 2023-06-06 | E123: 1
A124: 110 | B124: 5 | C124: 2023-06-06 | D124: 2023-06-07 | E124: 1
A125: 111 | B125: 6 | C125: 2023-06-07 | D125: 2023-06-08 | E125: 1
A126: 112 | B126: 7 | C126: 2023-06-08 | D126: 2023-06-09 | E126: 1
A127: 113 | B127: 8 | C127: 2023-06-09 | D127: 2023-06-12 | E127: 3
A128: 114 | B128: 9 | C128: 2023-06-12 | D128: 2023-06-13 | E128: 1
A129: 115 | B129: 10 | C129: 2023-06-13 | D129: 2023-06-14 | E129: 1
A130: 116 | B130: 11 | C130: 2023-06-14 | D130: 2023-06-15 | E130: 1
A131: 117 | B131: 12 | C131: 2023-06-15 | D131: 2023-06-16 | E131: 1
A132: 118 | B132: 13 | C132: 2023-06-16 | D132: 2023-06-19 | E132: 3
A133: 119 | B133: 14 | C133: 2023-06-19 | D133: 2023-06-20 | E133: 1
A134: 120 | B134: 15 | C134: 2023-06-20 | D134: 2023-06-21 | E134: 1
A135: 121 | B135: 16 | C135: 2023-06-21 | D135: 2023-06-22 | E135: 1
A136: 122 | B136: 17 | C136: 2023-06-22 | D136: 2023-06-23 | E136: 1
A137: 123 | B137: 18 | C137: 2023-06-23 | D137: 2023-06-26 | E137: 3
A138: 124 | B138: 19 | C138: 2023-06-26 | D138: 2023-06-27 | E138: 1
A139: 125 | B139: 20 | C139: 2023-06-27 | D139: 2023-06-28 | E139: 1
A140: 126 | B140: 21 | C140: 2023-06-28 | D140: 2023-06-29 | E140: 1
A141: 127 | B141: 1 | C141: 2023-06-29 | D141: 2023-06-30 | E141: 1
A142: 128 | B142: 2 | C142: 2023-06-30 | D142: 2023-07-03 | E142: 3
A143: =A142+1 -> 129 | B143: 3 | C143: 2023-07-03 | D143: 2023-07-05 | E143: =D143-C143 -> 2
A144: 130 | B144: 4 | C144: 2023-07-05 | D144: 2023-07-06 | E144: 1
A145: 131 | B145: 5 | C145: 2023-07-06 | D145: 2023-07-07 | E145: 1
A146: 132 | B146: 6 | C146: 2023-07-07 | D146: 2023-07-10 | E146: 3
A147: 133 | B147: 7 | C147: 2023-07-10 | D147: 2023-07-11 | E147: 1
A148: 134 | B148: 8 | C148: 2023-07-11 | D148: 2023-07-12 | E148: 1
A149: 135 | B149: 9 | C149: 2023-07-12 | D149: 2023-07-13 | E149: 1
A150: 136 | B150: 10 | C150: 2023-07-13 | D150: 2023-07-14 | E150: 1
A151: 137 | B151: 11 | C151: 2023-07-14 | D151: 2023-07-17 | E151: 3
A152: 138 | B152: 12 | C152: 2023-07-17 | D152: 2023-07-18 | E152: 1
A153: 139 | B153: 13 | C153: 2023-07-18 | D153: 2023-07-19 | E153: 1
A154: 140 | B154: 14 | C154: 2023-07-19 | D154: 2023-07-20 | E154: 1
A155: 141 | B155: 15 | C155: 2023-07-20 | D155: 2023-07-21 | E155: 1
A156: 142 | B156: 16 | C156: 2023-07-21 | D156: 2023-07-24 | E156: 3
A157: 143 | B157: 17 | C157: 2023-07-24 | D157: 2023-07-25 | E157: 1
A158: 144 | B158: 18 | C158: 2023-07-25 | D158: 2023-07-26 | E158: 1
A159: 145 | B159: 19 | C159: 2023-07-26 | D159: 2023-07-27 | E159: 1
A160: 146 | B160: 20 | C160: 2023-07-27 | D160: 2023-07-28 | E160: 1
A161: 147 | B161: 21 | C161: 2023-07-28 | D161: 2023-07-31 | E161: 3
A162: 148 | B162: 1 | C162: 2023-07-31 | D162: 2023-08-01 | E162: 1
A163: 149 | B163: 2 | C163: 2023-08-01 | D163: 2023-08-02 | E163: 1
A164: 150 | B164: 3 | C164: 2023-08-02 | D164: 2023-08-03 | E164: 1
A165: 151 | B165: 4 | C165: 2023-08-03 | D165: 2023-08-04 | E165: 1
A166: 152 | B166: 5 | C166: 2023-08-04 | D166: 2023-08-07 | E166: 3
A167: 153 | B167: 6 | C167: 2023-08-07 | D167: 2023-08-08 | E167: 1
A168: 154 | B168: 7 | C168: 2023-08-08 | D168: 2023-08-09 | E168: 1
A169: 155 | B169: 8 | C169: 2023-08-09 | D169: 2023-08-10 | E169: 1
A170: 156 | B170: 9 | C170: 2023-08-10 | D170: 2023-08-11 | E170: 1
A171: 157 | B171: 10 | C171: 2023-08-11 | D171: 2023-08-14 | E171: 3
A172: 158 | B172: 11 | C172: 2023-08-14 | D172: 2023-08-15 | E172: 1
A173: 159 | B173: 12 | C173: 2023-08-15 | D173: 2023-08-16 | E173: 1
A174: 160 | B174: 13 | C174: 2023-08-16 | D174: 2023-08-17 | E174: 1
A175: 161 | B175: 14 | C175: 2023-08-17 | D175: 2023-08-18 | E175: 1
A176: 162 | B176: 15 | C176: 2023-08-18 | D176: 2023-08-21 | E176: 3
A177: 163 | B177: 16 | C177: 2023-08-21 | D177: 2023-08-22 | E177: 1
A178: 164 | B178: 17 | C178: 2023-08-22 | D178: 2023-08-23 | E178: 1
A179: 165 | B179: 18 | C179: 2023-08-23 | D179: 2023-08-24 | E179: 1
A180: 166 | B180: 19 | C180: 2023-08-24 | D180: 2023-08-25 | E180: 1
A181: 167 | B181: 20 | C181: 2023-08-25 | D181: 2023-08-28 | E181: 3
A182: 168 | B182: 21 | C182: 2023-08-28 | D182: 2023-08-29 | E182: 1
A183: 169 | B183: 1 | C183: 2023-08-29 | D183: 2023-08-30 | E183: 1
A184: 170 | B184: 2 | C184: 2023-08-30 | D184: 2023-08-31 | E184: 1
A185: 171 | B185: 3 | C185: 2023-08-31 | D185: 2023-09-01 | E185: 1
A186: 172 | B186: 4 | C186: 2023-09-01 | D186: 2023-09-05 | E186: 4
A187: 173 | B187: 5 | C187: 2023-09-05 | D187: 2023-09-06 | E187: 1
A188: 174 | B188: 6 | C188: 2023-09-06 | D188: 2023-09-07 | E188: 1
A189: 175 | B189: 7 | C189: 2023-09-07 | D189: 2023-09-08 | E189: 1
A190: 176 | B190: 8 | C190: 2023-09-08 | D190: 2023-09-11 | E190: 3
A191: 177 | B191: 9 | C191: 2023-09-11 | D191: 2023-09-12 | E191: 1
A192: 178 | B192: 10 | C192: 2023-09-12 | D192: 2023-09-13 | E192: 1
A193: 179 | B193: 11 | C193: 2023-09-13 | D193: 2023-09-14 | E193: 1
A194: 180 | B194: 12 | C194: 2023-09-14 | D194: 2023-09-15 | E194: 1
A195: 181 | B195: 13 | C195: 2023-09-15 | D195: 2023-09-18 | E195: 3
A196: 182 | B196: 14 | C196: 2023-09-18 | D196: 2023-09-19 | E196: 1
A197: 183 | B197: 15 | C197: 2023-09-19 | D197: 2023-09-20 | E197: 1
A198: 184 | B198: 16 | C198: 2023-09-20 | D198: 2023-09-21 | E198: 1
A199: 185 | B199: 17 | C199: 2023-09-21 | D199: 2023-09-22 | E199: 1
A200: 186 | B200: 18 | C200: 2023-09-22 | D200: 2023-09-25 | E200: 3
A201: 187 | B201: 19 | C201: 2023-09-25 | D201: 2023-09-26 | E201: 1
A202: 188 | B202: 20 | C202: 2023-09-26 | D202: 2023-09-27 | E202: 1
A203: 189 | B203: 21 | C203: 2023-09-27 | D203: 2023-09-28 | E203: 1
... 64 more rows

Sheet (WP) 3c Bill Lag GTS
A1: ='(WP) Instructions & Input'!B2 -> COLUMBIA GAS OF KENTUCKY, INC.
A2: ='(WP) Instructions & Input'!B9 -> CASE NO. 2024-00092
A3: ='(WP) Instructions & Input'!B3 -> CASH WORKING CAPITAL
A4: BILLING LAG CALCULATION - GTS
A5: ='(WP) Instructions & Input'!B4 -> TME: DECEMBER 31, 2023
F7: ='(WP) Instructions & Input'!$B$11 -> Attachment KLJ-CWC-1
F8: (WORKPAPER) SHEET 3c
F9: ='(WP) Instructions & Input'!$B$12 -> WITNESS: JOHNSON
A11: Line | B11: Meter Reading | C11: Billing | E11: Total Billing | F11: Weighted
A12: No. | B12: Date | C12: Date | D12: Days | E12: Amount | F12: Amount
B13: (1) | C13: (2) | D13: (3)=(2)-(1) | E13: (4) | F13: (5)
A15: =A14+1 -> 1 | B15: 2023-01-04 | C15: 2023-02-10 | D15: =C15-B15 -> 37 | E15: 7505.71 | F15: =E15*D15 -> 277711.27
A16: 2 | B16: 2023-01-05 | C16: 2023-02-10 | D16: 36 | E16: 10673.91 | F16: 384260.76
A17: 3 | B17: 2023-01-06 | C17: 2023-02-10 | D17: 35 | E17: 4122.68 | F17: 144293.8
A18: 4 | B18: 2023-01-09 | C18: 2023-02-10 | D18: 32 | E18: 3569.33 | F18: 114218.56
A19: 5 | B19: 2023-01-10 | C19: 2023-02-10 | D19: 31 | E19: 337.93 | F19: 10475.83
A20: 6 | B20: 2023-01-10 | C20: 2023-02-10 | D20: 31 | E20: 6544.29 | F20: 202872.99
A21: 7 | B21: 2023-01-11 | C21: 2023-02-10 | D21: 30 | E21: 566.26 | F21: 16987.8
A22: 8 | B22: 2023-01-11 | C22: 2023-02-10 | D22: 30 | E22: 1039.33 | F22: 31179.9
A23: 9 | B23: 2023-01-11 | C23: 2023-02-10 | D23: 30 | E23: 4860.48 | F23: 145814.4
A24: 10 | B24: 2023-01-11 | C24: 2023-02-10 | D24: 30 | E24: 5227.21 | F24: 156816.3
A25: 11 | B25: 2023-01-11 | C25: 2023-02-10 | D25: 30 | E25: 6210.21 | F25: 186306.3
A26: 12 | B26: 2023-01-12 | C26: 2023-02-10 | D26: 29 | E26: 3358.84 | F26: 97406.36
A27: 13 | B27: 2023-01-17 | C27: 2023-02-10 | D27: 24 | E27: 83.71 | F27: 2009.04
A28: 14 | B28: 2023-01-23 | C28: 2023-02-10 | D28: 18 | E28: 1278.66 | F28: 23015.88
A29: 15 | B29: 2023-01-23 | C29: 2023-02-10 | D29: 18 | E29: 6537.89 | F29: 117682.02
A30: 16 | B30: 2023-01-27 | C30: 2023-02-10 | D30: 14 | E30: 1797.35 | F30: 25162.9
A31: 17 | B31: 2023-01-30 | C31: 2023-02-10 | D31: 11 | E31: 5523.61 | F31: 60759.71
A32: 18 | B32: 2023-02-01 | C32: 2023-02-10 | D32: 9 | E32: 63.93 | F32: 575.37
A33: 19 | B33: 2023-02-01 | C33: 2023-02-10 | D33: 9 | E33: 260.11 | F33: 2340.99
A34: 20 | B34: 2023-02-01 | C34: 2023-02-10 | D34: 9 | E34: 310.53 | F34: 2794.77
A35: 21 | B35: 2023-02-01 | C35: 2023-02-10 | D35: 9 | E35: 1418.16 | F35: 12763.44
A36: 22 | B36: 2023-02-01 | C36: 2023-02-10 | D36: 9 | E36: 1488.73 | F36: 13398.57
A37: 23 | B37: 2023-02-01 | C37: 2023-02-10 | D37: 9 | E37: 2365.52 | F37: 21289.68
A38: 24 | B38: 2023-02-01 | C38: 2023-02-10 | D38: 9 | E38: 3050.52 | F38: 27454.68
A39: 25 | B39: 2023-02-01 | C39: 2023-02-10 | D39: 9 | E39: 3339.31 | F39: 30053.79
A40: 26 | B40: 2023-02-01 | C40: 2023-02-10 | D40: 9 | E40: 3531.3 | F40: 31781.7
A41: 27 | B41: 2023-02-01 | C41: 2023-02-10 | D41: 9 | E41: 3982.3 | F41: 35840.7
A42: 28 | B42: 2023-02-01 | C42: 2023-02-10 | D42: 9 | E42: 3982.3 | F42: 35840.7
A43: 29 | B43: 2023-02-01 | C43: 2023-02-10 | D43: 9 | E43: 3982.3 | F43: 35840.7
A44: 30 | B44: 2023-02-01 | C44: 2023-02-10 | D44: 9 | E44: 3982.3 | F44: 35840.7
A45: 31 | B45: 2023-02-01 | C45: 2023-02-10 | D45: 9 | E45: 3982.3 | F45: 35840.7
A46: 32 | B46: 2023-02-01 | C46: 2023-02-10 | D46: 9 | E46: 3982.3 | F46: 35840.7
A47: 33 | B47: 2023-02-01 | C47: 2023-02-10 | D47: 9 | E47: 4202.97 | F47: 37826.73
A48: 34 | B48: 2023-02-01 | C48: 2023-02-10 | D48: 9 | E48: 4558.85 | F48: 41029.65
A49: 35 | B49: 2023-02-01 | C49: 2023-02-10 | D49: 9 | E49: 4712.92 | F49: 42416.28
A50: 36 | B50: 2023-02-01 | C50: 2023-02-10 | D50: 9 | E50: 4894.46 | F50: 44050.14
A51: 37 | B51: 2023-02-01 | C51: 2023-02-10 | D51: 9 | E51: 5617.95 | F51: 50561.55
A52: 38 | B52: 2023-02-01 | C52: 2023-02-10 | D52: 9 | E52: 5755.55 | F52: 51799.95
A53: 39 | B53: 2023-02-01 | C53: 2023-02-10 | D53: 9 | E53: 5805.91 | F53: 52253.19
A54: 40 | B54: 2023-02-01 | C54: 2023-02-10 | D54: 9 | E54: 5816.55 | F54: 52348.95
A55: 41 | B55: 2023-02-01 | C55: 2023-02-10 | D55: 9 | E55: 5930.75 | F55: 53376.75
A56: 42 | B56: 2023-02-01 | C56: 2023-02-10 | D56: 9 | E56: 5931.46 | F56: 53383.14
A57: 43 | B57: 2023-02-01 | C57: 2023-02-10 | D57: 9 | E57: 6445.7 | F57: 58011.3
A58: 44 | B58: 2023-02-01 | C58: 2023-02-10 | D58: 9 | E58: 6501 | F58: 58509
A59: 45 | B59: 2023-02-01 | C59: 2023-02-10 | D59: 9 | E59: 6582.59 | F59: 59243.31
A60: 46 | B60: 2023-02-01 | C60: 2023-02-10 | D60: 9 | E60: 6704.98 | F60: 60344.82
A61: 47 | B61: 2023-02-01 | C61: 2023-02-10 | D61: 9 | E61: 6858.51 | F61: 61726.59
A62: 48 | B62: 2023-02-01 | C62: 2023-02-10 | D62: 9 | E62: 7001.08 | F62: 63009.72
A63: 49 | B63: 2023-02-01 | C63: 2023-02-10 | D63: 9 | E63: 7059.24 | F63: 63533.16
A64: 50 | B64: 2023-02-01 | C64: 2023-02-10 | D64: 9 | E64: 7118.82 | F64: 64069.38
A65: 51 | B65: 2023-02-01 | C65: 2023-02-10 | D65: 9 | E65: 7125.21 | F65: 64126.89
A66: 52 | B66: 2023-02-01 | C66: 2023-02-10 | D66: 9 | E66: 7129.7 | F66: 64167.3
A67: 53 | B67: 2023-02-01 | C67: 2023-02-10 | D67: 9 | E67: 7155 | F67: 64395
A68: 54 | B68: 2023-02-01 | C68: 2023-02-10 | D68: 9 | E68: 7199.68 | F68: 64797.12
A69: 55 | B69: 2023-02-01 | C69: 2023-02-10 | D69: 9 | E69: 7259.27 | F69: 65333.43
A70: 56 | B70: 2023-02-01 | C70: 2023-02-10 | D70: 9 | E70: 7277.71 | F70: 65499.39
A71: 57 | B71: 2023-02-01 | C71: 2023-02-10 | D71: 9 | E71: 7372.04 | F71: 66348.36
A72: 58 | B72: 2023-02-01 | C72: 2023-02-10 | D72: 9 | E72: 7443.68 | F72: 66993.12
A73: 59 | B73: 2023-02-01 | C73: 2023-02-10 | D73: 9 | E73: 7450.07 | F73: 67050.63
A74: 60 | B74: 2023-02-01 | C74: 2023-02-10 | D74: 9 | E74: 7462.84 | F74: 67165.56
A75: 61 | B75: 2023-02-01 | C75: 2023-02-10 | D75: 9 | E75: 7493.34 | F75: 67440.06
A76: 62 | B76: 2023-02-01 | C76: 2023-02-10 | D76: 9 | E76: 7605.4 | F76: 68448.6
A77: 63 | B77: 2023-02-01 | C77: 2023-02-10 | D77: 9 | E77: 7660.02 | F77: 68940.18
A78: 64 | B78: 2023-02-01 | C78: 2023-02-10 | D78: 9 | E78: 7888.42 | F78: 70995.78
A79: =A78+1 -> 65 | B79: 2023-02-01 | C79: 2023-02-10 | D79: =C79-B79 -> 9 | E79: 7911.5 | F79: =E79*D79 -> 71203.5
A80: 66 | B80: 2023-02-01 | C80: 2023-02-10 | D80: 9 | E80: 8382.09 | F80: 75438.81
A81: 67 | B81: 2023-02-01 | C81: 2023-02-10 | D81: 9 | E81: 8482.81 | F81: 76345.29
A82: 68 | B82: 2023-02-01 | C82: 2023-02-10 | D82: 9 | E82: 8499.12 | F82: 76492.08
A83: 69 | B83: 2023-02-01 | C83: 2023-02-10 | D83: 9 | E83: 8636.02 | F83: 77724.18
A84: 70 | B84: 2023-02-01 | C84: 2023-02-10 | D84: 9 | E84: 8819.73 | F84: 79377.57
A85: 71 | B85: 2023-02-01 | C85: 2023-02-10 | D85: 9 | E85: 8828.24 | F85: 79454.16
A86: 72 | B86: 2023-02-01 | C86: 2023-02-10 | D86: 9 | E86: 8966.55 | F86: 80698.95
A87: 73 | B87: 2023-02-01 | C87: 2023-02-10 | D87: 9 | E87: 10054.62 | F87: 90491.58
A88: 74 | B88: 2023-02-01 | C88: 2023-02-10 | D88: 9 | E88: 10268.83 | F88: 92419.47
A89: 75 | B89: 2023-02-01 | C89: 2023-02-10 | D89: 9 | E89: 10384.44 | F89: 93459.96
A90: 76 | B90: 2023-02-01 | C90: 2023-02-10 | D90: 9 | E90: 11161.13 | F90: 100450.17
A91: 77 | B91: 2023-02-01 | C91: 2023-02-10 | D91: 9 | E91: 11507.97 | F91: 103571.73
A92: 78 | B92: 2023-02-01 | C92: 2023-02-10 | D92: 9 | E92: 11592.38 | F92: 104331.42
A93: 79 | B93: 2023-02-01 | C93: 2023-02-10 | D93: 9 | E93: 12258.41 | F93: 110325.69
A94: 80 | B94: 2023-02-01 | C94: 2023-02-10 | D94: 9 | E94: 13421.66 | F94: 120794.94
A95: 81 | B95: 2023-02-01 | C95: 2023-02-10 | D95: 9 | E95: 13637.75 | F95: 122739.75
A96: 82 | B96: 2023-02-01 | C96: 2023-02-10 | D96: 9 | E96: 14375.67 | F96: 129381.03
A97: 83 | B97: 2023-02-01 | C97: 2023-02-10 | D97: 9 | E97: 14965.1 | F97: 134685.9
A98: 84 | B98: 2023-02-01 | C98: 2023-02-10 | D98: 9 | E98: 15254.78 | F98: 137293.02
A99: 85 | B99: 2023-02-01 | C99: 2023-02-10 | D99: 9 | E99: 16447.54 | F99: 148027.86
A100: 86 | B100: 2023-02-01 | C100: 2023-02-10 | D100: 9 | E100: 16605 | F100: 149445
A101: 87 | B101: 2023-02-01 | C101: 2023-02-10 | D101: 9 | E101: 17733.5 | F101: 159601.5
A102: 88 | B102: 2023-02-01 | C102: 2023-02-10 | D102: 9 | E102: 19872.75 | F102: 178854.75
A103: 89 | B103: 2023-02-01 | C103: 2023-02-10 | D103: 9 | E103: 19889.06 | F103: 179001.54
A104: 90 | B104: 2023-02-01 | C104: 2023-02-10 | D104: 9 | E104: 20768.59 | F104: 186917.31
A105: 91 | B105: 2023-02-01 | C105: 2023-02-10 | D105: 9 | E105: 21777.22 | F105: 195994.98
A106: 92 | B106: 2023-02-01 | C106: 2023-02-10 | D106: 9 | E106: 25361.12 | F106: 228250.08
A107: 93 | B107: 2023-02-01 | C107: 2023-02-10 | D107: 9 | E107: 27432.35 | F107: 246891.15
A108: 94 | B108: 2023-02-01 | C108: 2023-02-10 | D108: 9 | E108: 32057.71 | F108: 288519.39
A109: 95 | B109: 2023-02-01 | C109: 2023-02-10 | D109: 9 | E109: 55852.58 | F109: 502673.22
A110: 96 | B110: 2023-02-01 | C110: 2023-02-10 | D110: 9 | E110: 60615.43 | F110: 545538.87
A111: 97 | B111: 2023-02-01 | C111: 2023-02-10 | D111: 9 | E111: 78193.81 | F111: 703744.29
A112: 98 | B112: 2023-02-01 | C112: 2023-02-10 | D112: 9 | E112: 78320.72 | F112: 704886.48
A113: 99 | B113: 2023-02-02 | C113: 2023-03-09 | D113: 35 | E113: 6902.45 | F113: 241585.75
A114: 100 | B114: 2023-02-03 | C114: 2023-03-09 | D114: 34 | E114: 8920.55 | F114: 303298.7
A115: 101 | B115: 2023-02-06 | C115: 2023-03-09 | D115: 31 | E115: 4452.52 | F115: 138028.12
A116: 102 | B116: 2023-02-07 | C116: 2023-03-09 | D116: 30 | E116: 2855.4 | F116: 85662
A117: 103 | B117: 2023-02-08 | C117: 2023-03-09 | D117: 29 | E117: 337.93 | F117: 9799.97
A118: 104 | B118: 2023-02-08 | C118: 2023-03-09 | D118: 29 | E118: 6374.77 | F118: 184868.33
A119: 105 | B119: 2023-02-09 | C119: 2023-03-09 | D119: 28 | E119: 566.26 | F119: 15855.28
A120: 106 | B120: 2023-02-09 | C120: 2023-03-09 | D120: 28 | E120: 4294.11 | F120: 120235.08
A121: 107 | B121: 2023-02-09 | C121: 2023-03-09 | D121: 28 | E121: 4391.76 | F121: 122969.28
A122: 108 | B122: 2023-02-09 | C122: 2023-03-09 | D122: 28 | E122: 6112.33 | F122: 171145.24
A123: 109 | B123: 2023-02-10 | C123: 2023-03-09 | D123: 27 | E123: 3367.52 | F123: 90923.04
A124: 110 | B124: 2023-02-21 | C124: 2023-03-09 | D124: 16 | E124: 1278.66 | F124: 20458.56
A125: 111 | B125: 2023-02-21 | C125: 2023-03-09 | D125: 16 | E125: 5331.37 | F125: 85301.92
A126: 112 | B126: 2023-02-27 | C126: 2023-03-09 | D126: 10 | E126: 2207.66 | F126: 22076.6
A127: 113 | B127: 2023-02-28 | C127: 2023-03-09 | D127: 9 | E127: 5470.41 | F127: 49233.69
A128: 114 | B128: 2023-03-01 | C128: 2023-03-09 | D128: 8 | E128: 63.93 | F128: 511.44
A129: 115 | B129: 2023-03-01 | C129: 2023-03-09 | D129: 8 | E129: 260.11 | F129: 2080.88
A130: 116 | B130: 2023-03-01 | C130: 2023-03-09 | D130: 8 | E130: 310.53 | F130: 2484.24
A131: 117 | B131: 2023-03-01 | C131: 2023-03-09 | D131: 8 | E131: 1169.16 | F131: 9353.28
A132: 118 | B132: 2023-03-01 | C132: 2023-03-09 | D132: 8 | E132: 1488.73 | F132: 11909.84
A133: 119 | B133: 2023-03-01 | C133: 2023-03-09 | D133: 8 | E133: 2176.65 | F133: 17413.2
A134: 120 | B134: 2023-03-01 | C134: 2023-03-09 | D134: 8 | E134: 2365.52 | F134: 18924.16
A135: 121 | B135: 2023-03-01 | C135: 2023-03-09 | D135: 8 | E135: 3050.52 | F135: 24404.16
A136: 122 | B136: 2023-03-01 | C136: 2023-03-09 | D136: 8 | E136: 3163.43 | F136: 25307.44
A137: 123 | B137: 2023-03-01 | C137: 2023-03-09 | D137: 8 | E137: 3866.62 | F137: 30932.96
A138: 124 | B138: 2023-03-01 | C138: 2023-03-09 | D138: 8 | E138: 3923.04 | F138: 31384.32
A139: 125 | B139: 2023-03-01 | C139: 2023-03-09 | D139: 8 | E139: 3982.3 | F139: 31858.4
A140: 126 | B140: 2023-03-01 | C140: 2023-03-09 | D140: 8 | E140: 3982.3 | F140: 31858.4
A141: 127 | B141: 2023-03-01 | C141: 2023-03-09 | D141: 8 | E141: 3982.3 | F141: 31858.4
A142: 128 | B142: 2023-03-01 | C142: 2023-03-09 | D142: 8 | E142: 3982.3 | F142: 31858.4
A143: =A142+1 -> 129 | B143: 2023-03-01 | C143: 2023-03-09 | D143: =C143-B143 -> 8 | E143: 3982.3 | F143: =E143*D143 -> 31858.4
A144: 130 | B144: 2023-03-01 | C144: 2023-03-09 | D144: 8 | E144: 3985.14 | F144: 31881.12
A145: 131 | B145: 2023-03-01 | C145: 2023-03-09 | D145: 8 | E145: 4000.74 | F145: 32005.92
A146: 132 | B146: 2023-03-01 | C146: 2023-03-09 | D146: 8 | E146: 4430.82 | F146: 35446.56
A147: 133 | B147: 2023-03-01 | C147: 2023-03-09 | D147: 8 | E147: 4443.84 | F147: 35550.72
A148: 134 | B148: 2023-03-01 | C148: 2023-03-09 | D148: 8 | E148: 4813.6 | F148: 38508.8
A149: 135 | B149: 2023-03-01 | C149: 2023-03-09 | D149: 8 | E149: 4927.75 | F149: 39422
A150: 136 | B150: 2023-03-01 | C150: 2023-03-09 | D150: 8 | E150: 5062.29 | F150: 40498.32
A151: 137 | B151: 2023-03-01 | C151: 2023-03-09 | D151: 8 | E151: 5342.03 | F151: 42736.24
A152: 138 | B152: 2023-03-01 | C152: 2023-03-09 | D152: 8 | E152: 5400.19 | F152: 43201.52
A153: 139 | B153: 2023-03-01 | C153: 2023-03-09 | D153: 8 | E153: 5493.11 | F153: 43944.88
A154: 140 | B154: 2023-03-01 | C154: 2023-03-09 | D154: 8 | E154: 5562.62 | F154: 44500.96
A155: 141 | B155: 2023-03-01 | C155: 2023-03-09 | D155: 8 | E155: 5592.41 | F155: 44739.28
A156: 142 | B156: 2023-03-01 | C156: 2023-03-09 | D156: 8 | E156: 5622.91 | F156: 44983.28
A157: 143 | B157: 2023-03-01 | C157: 2023-03-09 | D157: 8 | E157: 6045.51 | F157: 48364.08
A158: 144 | B158: 2023-03-01 | C158: 2023-03-09 | D158: 8 | E158: 6166.94 | F158: 49335.52
A159: 145 | B159: 2023-03-01 | C159: 2023-03-09 | D159: 8 | E159: 6181.84 | F159: 49454.72
A160: 146 | B160: 2023-03-01 | C160: 2023-03-09 | D160: 8 | E160: 6203.12 | F160: 49624.96
A161: 147 | B161: 2023-03-01 | C161: 2023-03-09 | D161: 8 | E161: 6398.18 | F161: 51185.44
A162: 148 | B162: 2023-03-01 | C162: 2023-03-09 | D162: 8 | E162: 6418.75 | F162: 51350
A163: 149 | B163: 2023-03-01 | C163: 2023-03-09 | D163: 8 | E163: 6532.94 | F163: 52263.52
A164: 150 | B164: 2023-03-01 | C164: 2023-03-09 | D164: 8 | E164: 6563.44 | F164: 52507.52
A165: 151 | B165: 2023-03-01 | C165: 2023-03-09 | D165: 8 | E165: 6615.22 | F165: 52921.76
A166: 152 | B166: 2023-03-01 | C166: 2023-03-09 | D166: 8 | E166: 6669.84 | F166: 53358.72
A167: 153 | B167: 2023-03-01 | C167: 2023-03-09 | D167: 8 | E167: 6698.21 | F167: 53585.68
A168: 154 | B168: 2023-03-01 | C168: 2023-03-09 | D168: 8 | E168: 6776.23 | F168: 54209.84
A169: 155 | B169: 2023-03-01 | C169: 2023-03-09 | D169: 8 | E169: 6802.48 | F169: 54419.84
A170: 156 | B170: 2023-03-01 | C170: 2023-03-09 | D170: 8 | E170: 6935.12 | F170: 55480.96
A171: 157 | B171: 2023-03-01 | C171: 2023-03-09 | D171: 8 | E171: 7030.87 | F171: 56246.96
A172: 158 | B172: 2023-03-01 | C172: 2023-03-09 | D172: 8 | E172: 7159.25 | F172: 57274
A173: 159 | B173: 2023-03-01 | C173: 2023-03-09 | D173: 8 | E173: 7179.12 | F173: 57432.96
A174: 160 | B174: 2023-03-01 | C174: 2023-03-09 | D174: 8 | E174: 7191.17 | F174: 57529.36
A175: 161 | B175: 2023-03-01 | C175: 2023-03-09 | D175: 8 | E175: 7362.82 | F175: 58902.56
A176: 162 | B176: 2023-03-01 | C176: 2023-03-09 | D176: 8 | E176: 7457.87 | F176: 59662.96
A177: 163 | B177: 2023-03-01 | C177: 2023-03-09 | D177: 8 | E177: 7580.58 | F177: 60644.64
A178: 164 | B178: 2023-03-01 | C178: 2023-03-09 | D178: 8 | E178: 7862.88 | F178: 62903.04
A179: 165 | B179: 2023-03-01 | C179: 2023-03-09 | D179: 8 | E179: 8033.11 | F179: 64264.88
A180: 166 | B180: 2023-03-01 | C180: 2023-03-09 | D180: 8 | E180: 8044.46 | F180: 64355.68
A181: 167 | B181: 2023-03-01 | C181: 2023-03-09 | D181: 8 | E181: 8252.29 | F181: 66018.32
A182: 168 | B182: 2023-03-01 | C182: 2023-03-09 | D182: 8 | E182: 8495.58 | F182: 67964.64
A183: 169 | B183: 2023-03-01 | C183: 2023-03-09 | D183: 8 | E183: 8852.35 | F183: 70818.8
A184: 170 | B184: 2023-03-01 | C184: 2023-03-09 | D184: 8 | E184: 8953.78 | F184: 71630.24
A185: 171 | B185: 2023-03-01 | C185: 2023-03-09 | D185: 8 | E185: 9455.26 | F185: 75642.08
A186: 172 | B186: 2023-03-01 | C186: 2023-03-09 | D186: 8 | E186: 9493.43 | F186: 75947.44
A187: 173 | B187: 2023-03-01 | C187: 2023-03-09 | D187: 8 | E187: 9762.69 | F187: 78101.52
A188: 174 | B188: 2023-03-01 | C188: 2023-03-09 | D188: 8 | E188: 10143.28 | F188: 81146.24
A189: 175 | B189: 2023-03-01 | C189: 2023-03-09 | D189: 8 | E189: 10373.09 | F189: 82984.72
A190: 176 | B190: 2023-03-01 | C190: 2023-03-09 | D190: 8 | E190: 10535.52 | F190: 84284.16
A191: 177 | B191: 2023-03-01 | C191: 2023-03-09 | D191: 8 | E191: 12679.03 | F191: 101432.24
A192: 178 | B192: 2023-03-01 | C192: 2023-03-09 | D192: 8 | E192: 13154.26 | F192: 105234.08
A193: 179 | B193: 2023-03-01 | C193: 2023-03-09 | D193: 8 | E193: 13220.93 | F193: 105767.44
A194: 180 | B194: 2023-03-01 | C194: 2023-03-09 | D194: 8 | E194: 14530.3 | F194: 116242.4
A195: 181 | B195: 2023-03-01 | C195: 2023-03-09 | D195: 8 | E195: 15468.7 | F195: 123749.6
A196: 182 | B196: 2023-03-01 | C196: 2023-03-09 | D196: 8 | E196: 15855.98 | F196: 126847.84
A197: 183 | B197: 2023-03-01 | C197: 2023-03-09 | D197: 8 | E197: 16471.65 | F197: 131773.2
A198: 184 | B198: 2023-03-01 | C198: 2023-03-09 | D198: 8 | E198: 17112.86 | F198: 136902.88
A199: 185 | B199: 2023-03-01 | C199: 2023-03-09 | D199: 8 | E199: 18608.78 | F199: 148870.24
A200: 186 | B200: 2023-03-01 | C200: 2023-03-09 | D200: 8 | E200: 20099.72 | F200: 160797.76
A201: 187 | B201: 2023-03-01 | C201: 2023-03-09 | D201: 8 | E201: 21474.35 | F201: 171794.8
A202: 188 | B202: 2023-03-01 | C202: 2023-03-09 | D202: 8 | E202: 24185.29 | F202: 193482.32
A203: 189 | B203: 2023-03-01 | C203: 2023-03-09 | D203: 8 | E203: 24325.02 | F203: 194600.16
... 953 more rows

Sheet (WP) 3c Bill Lag GMB
A1: ='(WP) Instructions & Input'!B2 -> COLUMBIA GAS OF KENTUCKY, INC.
A2: ='(WP) Instructions & Input'!B9 -> CASE NO. 2024-00092
A3: ='(WP) Instructions & Input'!B3 -> CASH WORKING CAPITAL
A4: BILLING LAG CALCULATION - GMB
A5: ='(WP) Instructions & Input'!B4 -> TME: DECEMBER 31, 2023
F7: ='(WP) Instructions & Input'!$B$11 -> Attachment KLJ-CWC-1
F8: (WORKPAPER) SHEET 3c
F9: ='(WP) Instructions & Input'!$B$12 -> WITNESS: JOHNSON
A11: Line | B11: Meter Read | C11: Billing | E11: Billing | F11: Weighted
A12: No. | B12: Date | C12: Date | D12: Days | E12: Amount | F12: Amount
B13: (1) | C13: (2) | D13: (3)=(2)-(1) | E13: (4) | F13: (5)
A15: 1 | B15: 2023-02-01 | C15: 2023-02-01 | D15: =C15-B15 -> 0 | E15: 16586.11 | F15: =E15*D15 -> 0
A16: =A15+1 -> 2 | B16: 2023-02-01 | C16: 2023-02-01 | D16: 0 | E16: 14945.63 | F16: 0
A17: =A16+1 -> 3 | B17: 2023-02-01 | C17: 2023-02-01 | D17: 0 | E17: 86.22 | F17: 0
A18: 4 | B18: 2023-01-27 | C18: 2023-02-01 | D18: 5 | E18: 7483.83 | F18: 37419.15
A19: 5 | B19: 2023-01-27 | C19: 2023-02-01 | D19: 5 | E19: 4196.7 | F19: 20983.5
A20: 6 | B20: 2023-02-01 | C20: 2023-02-06 | D20: 5 | E20: 931.66 | F20: 4658.3
A21: 7 | B21: 2023-01-31 | C21: 2023-02-01 | D21: 1 | E21: 1015.35 | F21: 1015.35
A22: 8 | B22: 2023-02-01 | C22: 2023-02-01 | D22: 0 | E22: 11978.41 | F22: 0
A23: 9 | B23: 2023-02-01 | C23: 2023-02-01 | D23: 0 | E23: 8870.58 | F23: 0
A24: 10 | B24: 2023-02-01 | C24: 2023-02-01 | D24: 0 | E24: 89.7 | F24: 0
A25: 11 | B25: 2023-02-01 | C25: 2023-02-01 | D25: 0 | E25: 89.7 | F25: 0
A26: 12 | B26: 2023-02-01 | C26: 2023-02-01 | D26: 0 | E26: 17778.5 | F26: 0
A27: 13 | B27: 2023-02-01 | C27: 2023-02-01 | D27: 0 | E27: 14206.04 | F27: 0
A28: 14 | B28: 2023-02-01 | C28: 2023-02-01 | D28: 0 | E28: 115.55 | F28: 0
A29: 15 | B29: 2023-01-19 | C29: 2023-02-01 | D29: 13 | E29: 150.98 | F29: 1962.74
A30: 16 | B30: 2023-02-01 | C30: 2023-02-01 | D30: 0 | E30: 21898.35 | F30: 0
A31: 17 | B31: 2023-01-30 | C31: 2023-02-01 | D31: 2 | E31: 6675.44 | F31: 13350.88
A32: 18 | B32: 2023-02-01 | C32: 2023-02-02 | D32: 1 | E32: 677.72 | F32: 677.72
A33: 19 | B33: 2023-02-01 | C33: 2023-02-01 | D33: 0 | E33: 89.7 | F33: 0
A34: 20 | B34: 2023-01-30 | C34: 2023-02-01 | D34: 2 | E34: 5580.44 | F34: 11160.88
A35: 21 | B35: 2023-02-01 | C35: 2023-02-01 | D35: 0 | E35: 27752.78 | F35: 0
A36: 22 | B36: 2023-01-31 | C36: 2023-02-01 | D36: 1 | E36: 1860.55 | F36: 1860.55
A37: 23 | B37: 2023-02-01 | C37: 2023-02-01 | D37: 0 | E37: 23552.41 | F37: 0
A38: 24 | B38: 2023-02-01 | C38: 2023-02-03 | D38: 2 | E38: 7699.69 | F38: 15399.38
A39: 25 | B39: 2023-02-01 | C39: 2023-02-06 | D39: 5 | E39: 10208.43 | F39: 51042.15
A40: 26 | B40: 2023-02-01 | C40: 2023-02-01 | D40: 0 | E40: 11177.71 | F40: 0
A41: 27 | B41: 2023-02-01 | C41: 2023-02-01 | D41: 0 | E41: 3140.39 | F41: 0
A42: 28 | B42: 2023-02-01 | C42: 2023-02-01 | D42: 0 | E42: 1887.68 | F42: 0
A43: 29 | B43: 2023-02-01 | C43: 2023-02-01 | D43: 0 | E43: 11133.17 | F43: 0
A44: 30 | B44: 2023-01-27 | C44: 2023-02-01 | D44: 5 | E44: 7983.51 | F44: 39917.55
A45: 31 | B45: 2023-02-01 | C45: 2023-02-01 | D45: 0 | E45: 4206.19 | F45: 0
A46: 32 | B46: 2023-02-01 | C46: 2023-02-01 | D46: 0 | E46: 5593.39 | F46: 0
A47: 33 | B47: 2023-01-30 | C47: 2023-02-01 | D47: 2 | E47: 4712.39 | F47: 9424.78
A48: 34 | B48: 2023-02-01 | C48: 2023-02-01 | D48: 0 | E48: 9594.53 | F48: 0
A49: 35 | B49: 2023-02-01 | C49: 2023-02-01 | D49: 0 | E49: 22463.42 | F49: 0
A50: 36 | B50: 2023-02-01 | C50: 2023-02-01 | D50: 0 | E50: 5068.47 | F50: 0
A51: 37 | B51: 2023-02-01 | C51: 2023-02-01 | D51: 0 | E51: 15502.33 | F51: 0
A52: 38 | B52: 2023-02-01 | C52: 2023-02-01 | D52: 0 | E52: 54277.45 | F52: 0
A53: 39 | B53: 2023-02-01 | C53: 2023-02-01 | D53: 0 | E53: 35368.72 | F53: 0
A54: 40 | B54: 2023-02-01 | C54: 2023-02-06 | D54: 5 | E54: 21537.58 | F54: 107687.9
A55: 41 | B55: 2023-02-01 | C55: 2023-02-06 | D55: 5 | E55: 21537.58 | F55: 107687.9
A56: 42 | B56: 2023-03-01 | C56: 2023-03-01 | D56: 0 | E56: 12579.55 | F56: 0
A57: 43 | B57: 2023-03-01 | C57: 2023-03-01 | D57: 0 | E57: 8561.68 | F57: 0
A58: 44 | B58: 2023-03-01 | C58: 2023-03-01 | D58: 0 | E58: 86.22 | F58: 0
A59: 45 | B59: 2023-02-28 | C59: 2023-03-01 | D59: 1 | E59: 5156.77 | F59: 5156.77
A60: 46 | B60: 2023-02-28 | C60: 2023-03-01 | D60: 1 | E60: 4027.69 | F60: 4027.69
A61: 47 | B61: 2023-03-01 | C61: 2023-03-06 | D61: 5 | E61: 769.56 | F61: 3847.8
A62: 48 | B62: 2023-02-28 | C62: 2023-03-01 | D62: 1 | E62: 773.53 | F62: 773.53
A63: 49 | B63: 2023-03-01 | C63: 2023-03-01 | D63: 0 | E63: 9733.12 | F63: 0
A64: 50 | B64: 2023-03-01 | C64: 2023-03-01 | D64: 0 | E64: 7956.85 | F64: 0
A65: 51 | B65: 2023-03-01 | C65: 2023-03-01 | D65: 0 | E65: 89.7 | F65: 0
A66: 52 | B66: 2023-03-01 | C66: 2023-03-01 | D66: 0 | E66: 89.7 | F66: 0
A67: 53 | B67: 2023-03-01 | C67: 2023-03-01 | D67: 0 | E67: 13978.93 | F67: 0
A68: 54 | B68: 2023-03-01 | C68: 2023-03-01 | D68: 0 | E68: 11541.81 | F68: 0
A69: 55 | B69: 2023-03-01 | C69: 2023-03-01 | D69: 0 | E69: 89.7 | F69: 0
A70: 56 | B70: 2023-03-01 | C70: 2023-03-01 | D70: 0 | E70: 11316.95 | F70: 0
A71: 57 | B71: 2023-02-28 | C71: 2023-03-01 | D71: 1 | E71: 5417.68 | F71: 5417.68
A72: 58 | B72: 2023-03-01 | C72: 2023-03-01 | D72: 0 | E72: 491.82 | F72: 0
A73: 59 | B73: 2023-03-01 | C73: 2023-03-01 | D73: 0 | E73: 89.7 | F73: 0
A74: 60 | B74: 2023-02-28 | C74: 2023-03-03 | D74: 3 | E74: 4339.17 | F74: 13017.51
A75: 61 | B75: 2023-03-01 | C75: 2023-03-01 | D75: 0 | E75: 36809.51 | F75: 0
A76: 62 | B76: 2023-02-28 | C76: 2023-03-01 | D76: 1 | E76: 1379.61 | F76: 1379.61
A77: 63 | B77: 2023-03-01 | C77: 2023-03-01 | D77: 0 | E77: 18107.48 | F77: 0
A78: 64 | B78: 2023-03-01 | C78: 2023-03-03 | D78: 2 | E78: 5694.82 | F78: 11389.64
A79: 65 | B79: 2023-03-01 | C79: 2023-03-06 | D79: =C79-B79 -> 5 | E79: 945.24 | F79: =E79*D79 -> 4726.2
A80: 66 | B80: 2023-03-01 | C80: 2023-03-01 | D80: 0 | E80: 7938.86 | F80: 0
A81: =A80+1 -> 67 | B81: 2023-03-01 | C81: 2023-03-02 | D81: 1 | E81: 2101.59 | F81: 2101.59
A82: 68 | B82: 2023-03-01 | C82: 2023-03-01 | D82: 0 | E82: 1489.22 | F82: 0
A83: 69 | B83: 2023-03-01 | C83: 2023-03-01 | D83: 0 | E83: 9345.37 | F83: 0
A84: 70 | B84: 2023-02-28 | C84: 2023-03-01 | D84: 1 | E84: 7531.91 | F84: 7531.91
A85: 71 | B85: 2023-03-01 | C85: 2023-03-01 | D85: 0 | E85: 2533.29 | F85: 0
A86: 72 | B86: 2023-03-01 | C86: 2023-03-01 | D86: 0 | E86: 7155.73 | F86: 0
A87: 73 | B87: 2023-03-01 | C87: 2023-03-01 | D87: 0 | E87: 3140.62 | F87: 0
A88: 74 | B88: 2023-03-01 | C88: 2023-03-01 | D88: 0 | E88: 8781.79 | F88: 0
A89: 75 | B89: 2023-03-01 | C89: 2023-03-01 | D89: 0 | E89: 18343.66 | F89: 0
A90: 76 | B90: 2023-03-01 | C90: 2023-03-01 | D90: 0 | E90: 3898.3 | F90: 0
A91: 77 | B91: 2023-03-01 | C91: 2023-03-01 | D91: 0 | E91: 10115.07 | F91: 0
A92: 78 | B92: 2023-03-01 | C92: 2023-03-01 | D92: 0 | E92: 32743.63 | F92: 0
A93: 79 | B93: 2023-03-01 | C93: 2023-03-01 | D93: 0 | E93: 26462.97 | F93: 0
A94: 80 | B94: 2023-03-01 | C94: 2023-03-01 | D94: 0 | E94: 28345.86 | F94: 0
A95: 81 | B95: 2023-04-01 | C95: 2023-04-03 | D95: 2 | E95: 9822.45 | F95: 19644.9
A96: 82 | B96: 2023-04-01 | C96: 2023-04-03 | D96: 2 | E96: 5972.38 | F96: 11944.76
A97: 83 | B97: 2023-04-01 | C97: 2023-04-03 | D97: 2 | E97: 86.22 | F97: 172.44
A98: 84 | B98: 2023-03-31 | C98: 2023-04-03 | D98: 3 | E98: 3441.54 | F98: 10324.62
A99: 85 | B99: 2023-03-31 | C99: 2023-04-03 | D99: 3 | E99: 2266.14 | F99: 6798.42
A100: 86 | B100: 2023-04-04 | C100: 2023-04-04 | D100: 0 | E100: 545.84 | F100: 0
A101: 87 | B101: 2023-03-31 | C101: 2023-04-03 | D101: 3 | E101: 637.12 | F101: 1911.36
A102: 88 | B102: 2023-04-01 | C102: 2023-04-03 | D102: 2 | E102: 6716.25 | F102: 13432.5
A103: 89 | B103: 2023-04-01 | C103: 2023-04-03 | D103: 2 | E103: 6460.85 | F103: 12921.7
A104: 90 | B104: 2023-04-01 | C104: 2023-04-03 | D104: 2 | E104: 89.7 | F104: 179.4
A105: 91 | B105: 2023-04-01 | C105: 2023-04-03 | D105: 2 | E105: 158.49 | F105: 316.98
A106: 92 | B106: 2023-04-01 | C106: 2023-04-03 | D106: 2 | E106: 13647.37 | F106: 27294.74
A107: 93 | B107: 2023-04-01 | C107: 2023-04-03 | D107: 2 | E107: 10761.92 | F107: 21523.84
A108: 94 | B108: 2023-04-01 | C108: 2023-04-03 | D108: 2 | E108: 98.31 | F108: 196.62
A109: 95 | B109: 2023-04-01 | C109: 2023-04-03 | D109: 2 | E109: 6397.55 | F109: 12795.1
A110: 96 | B110: 2023-03-29 | C110: 2023-04-03 | D110: 5 | E110: 4114.68 | F110: 20573.4
A111: 97 | B111: 2023-04-01 | C111: 2023-04-03 | D111: 2 | E111: 3044.75 | F111: 6089.5
A112: 98 | B112: 2023-04-01 | C112: 2023-04-03 | D112: 2 | E112: 89.7 | F112: 179.4
A113: 99 | B113: 2023-03-31 | C113: 2023-04-03 | D113: 3 | E113: 3058.61 | F113: 9175.83
A114: 100 | B114: 2023-04-01 | C114: 2023-04-03 | D114: 2 | E114: 18686.54 | F114: 37373.08
A115: 101 | B115: 2023-03-31 | C115: 2023-04-03 | D115: 3 | E115: 107.24 | F115: 321.72
A116: 102 | B116: 2023-04-01 | C116: 2023-04-03 | D116: 2 | E116: 13963.92 | F116: 27927.84
A117: 103 | B117: 2023-04-01 | C117: 2023-04-03 | D117: 2 | E117: 3716.41 | F117: 7432.82
A118: 104 | B118: 2023-04-01 | C118: 2023-04-04 | D118: 3 | E118: 945.24 | F118: 2835.72
A119: 105 | B119: 2023-04-01 | C119: 2023-04-03 | D119: 2 | E119: 6261.18 | F119: 12522.36
A120: 106 | B120: 2023-04-01 | C120: 2023-04-03 | D120: 2 | E120: 1936.12 | F120: 3872.24
A121: 107 | B121: 2023-04-01 | C121: 2023-04-03 | D121: 2 | E121: 1122.61 | F121: 2245.22
A122: 108 | B122: 2023-04-01 | C122: 2023-04-03 | D122: 2 | E122: 7360.36 | F122: 14720.72
A123: 109 | B123: 2023-03-31 | C123: 2023-04-03 | D123: 3 | E123: 4993.25 | F123: 14979.75
A124: 110 | B124: 2023-04-01 | C124: 2023-04-03 | D124: 2 | E124: 2207.84 | F124: 4415.68
A125: 111 | B125: 2023-04-01 | C125: 2023-04-03 | D125: 2 | E125: 3385.1 | F125: 6770.2
A126: 112 | B126: 2023-03-31 | C126: 2023-04-03 | D126: 3 | E126: 20049.71 | F126: 60149.13
A127: 113 | B127: 2023-04-01 | C127: 2023-04-03 | D127: 2 | E127: 7377.92 | F127: 14755.84
A128: 114 | B128: 2023-04-01 | C128: 2023-04-03 | D128: 2 | E128: 13663.31 | F128: 27326.62
A129: 115 | B129: 2023-04-01 | C129: 2023-04-03 | D129: 2 | E129: 3468.98 | F129: 6937.96
A130: 116 | B130: 2023-04-01 | C130: 2023-04-03 | D130: 2 | E130: 116.93 | F130: 233.86
A131: 117 | B131: 2023-04-01 | C131: 2023-04-03 | D131: 2 | E131: 10132.91 | F131: 20265.82
A132: 118 | B132: 2023-04-01 | C132: 2023-04-03 | D132: 2 | E132: 27377.05 | F132: 54754.1
A133: 119 | B133: 2023-04-01 | C133: 2023-04-03 | D133: 2 | E133: 25992.13 | F133: 51984.26
A134: 120 | B134: 2023-04-01 | C134: 2023-04-03 | D134: 2 | E134: 25241.8 | F134: 50483.6
A135: 121 | B135: 2023-05-01 | C135: 2023-05-01 | D135: 0 | E135: 7314.87 | F135: 0
A136: 122 | B136: 2023-05-01 | C136: 2023-05-01 | D136: 0 | E136: 728.17 | F136: 0
A137: 123 | B137: 2023-05-01 | C137: 2023-05-01 | D137: 0 | E137: 86.22 | F137: 0
A138: 124 | B138: 2023-04-28 | C138: 2023-05-01 | D138: 3 | E138: 2797.69 | F138: 8393.07
A139: 125 | B139: 2023-04-28 | C139: 2023-05-01 | D139: 3 | E139: 686.65 | F139: 2059.95
A140: 126 | B140: 2023-05-01 | C140: 2023-05-04 | D140: 3 | E140: 612.76 | F140: 1838.28
A141: 127 | B141: 2023-04-30 | C141: 2023-05-01 | D141: 1 | E141: 130.3 | F141: 130.3
A142: 128 | B142: 2023-05-01 | C142: 2023-05-01 | D142: 0 | E142: 4767.31 | F142: 0
A143: 129 | B143: 2023-05-01 | C143: 2023-05-01 | D143: =C143-B143 -> 0 | E143: 4759.31 | F143: =E143*D143 -> 0
A144: 130 | B144: 2023-05-01 | C144: 2023-05-01 | D144: 0 | E144: 94.19 | F144: 0
A145: =A144+1 -> 131 | B145: 2023-05-01 | C145: 2023-05-01 | D145: 0 | E145: 89.7 | F145: 0
A146: 132 | B146: 2023-05-01 | C146: 2023-05-01 | D146: 0 | E146: 8346.57 | F146: 0
A147: 133 | B147: 2023-05-01 | C147: 2023-05-01 | D147: 0 | E147: 3891.57 | F147: 0
A148: 134 | B148: 2023-04-04 | C148: 2023-05-01 | D148: 27 | E148: 89.7 | F148: 2421.9
A149: 135 | B149: 2023-05-01 | C149: 2023-05-01 | D149: 0 | E149: 126.45 | F149: 0
A150: 136 | B150: 2023-04-28 | C150: 2023-05-01 | D150: 3 | E150: 2259.54 | F150: 6778.62
A151: 137 | B151: 2023-05-01 | C151: 2023-05-01 | D151: 0 | E151: 9320.19 | F151: 0
A152: 138 | B152: 2023-05-01 | C152: 2023-05-01 | D152: 0 | E152: 89.7 | F152: 0
A153: 139 | B153: 2023-04-30 | C153: 2023-05-01 | D153: 1 | E153: 2020.9 | F153: 2020.9
A154: 140 | B154: 2023-05-01 | C154: 2023-05-01 | D154: 0 | E154: 5135.92 | F154: 0
A155: 141 | B155: 2023-04-30 | C155: 2023-05-01 | D155: 1 | E155: 95.08 | F155: 95.08
A156: 142 | B156: 2023-05-01 | C156: 2023-05-01 | D156: 0 | E156: 6293.37 | F156: 0
A157: 143 | B157: 2023-05-01 | C157: 2023-05-01 | D157: 0 | E157: 1224.44 | F157: 0
A158: 144 | B158: 2023-05-01 | C158: 2023-05-04 | D158: 3 | E158: 945.24 | F158: 2835.72
A159: 145 | B159: 2023-05-01 | C159: 2023-05-01 | D159: 0 | E159: 2077.41 | F159: 0
A160: 146 | B160: 2023-04-04 | C160: 2023-05-02 | D160: 28 | E160: 149.8 | F160: 4194.4
A161: 147 | B161: 2023-05-01 | C161: 2023-05-01 | D161: 0 | E161: 386.98 | F161: 0
A162: 148 | B162: 2023-05-01 | C162: 2023-05-01 | D162: 0 | E162: 7592.31 | F162: 0
A163: 149 | B163: 2023-04-28 | C163: 2023-05-01 | D163: 3 | E163: 2495.55 | F163: 7486.65
A164: 150 | B164: 2023-05-01 | C164: 2023-05-01 | D164: 0 | E164: 289.9 | F164: 0
A165: 151 | B165: 2023-05-01 | C165: 2023-05-01 | D165: 0 | E165: 1918.82 | F165: 0
A166: 152 | B166: 2023-04-30 | C166: 2023-05-01 | D166: 1 | E166: 2333.47 | F166: 2333.47
A167: 153 | B167: 2023-05-01 | C167: 2023-05-01 | D167: 0 | E167: 6103.19 | F167: 0
A168: 154 | B168: 2023-05-01 | C168: 2023-05-01 | D168: 0 | E168: 4240.33 | F168: 0
A169: 155 | B169: 2023-05-01 | C169: 2023-05-01 | D169: 0 | E169: 3379.51 | F169: 0
A170: 156 | B170: 2023-05-01 | C170: 2023-05-01 | D170: 0 | E170: 939.66 | F170: 0
A171: 157 | B171: 2023-05-01 | C171: 2023-05-01 | D171: 0 | E171: 4863.97 | F171: 0
A172: 158 | B172: 2023-05-01 | C172: 2023-05-01 | D172: 0 | E172: 2860.1 | F172: 0
A173: 159 | B173: 2023-05-01 | C173: 2023-05-01 | D173: 0 | E173: 7100.96 | F173: 0
A174: 160 | B174: 2023-05-01 | C174: 2023-05-01 | D174: 0 | E174: 12435.84 | F174: 0
A175: 161 | B175: 2023-06-01 | C175: 2023-06-02 | D175: 1 | E175: 5966.25 | F175: 5966.25
A176: 162 | B176: 2023-06-01 | C176: 2023-06-01 | D176: 0 | E176: 520.34 | F176: 0
A177: 163 | B177: 2023-06-01 | C177: 2023-06-19 | D177: 18 | E177: 262.51 | F177: 4725.18
A178: 164 | B178: 2023-05-31 | C178: 2023-06-01 | D178: 1 | E178: 1679.71 | F178: 1679.71
A179: 165 | B179: 2023-05-31 | C179: 2023-06-01 | D179: 1 | E179: 245.74 | F179: 245.74
A180: 166 | B180: 2023-06-01 | C180: 2023-06-05 | D180: 4 | E180: 219.87 | F180: 879.48
A181: 167 | B181: 2023-05-31 | C181: 2023-06-01 | D181: 1 | E181: 86.22 | F181: 86.22
A182: 168 | B182: 2023-06-01 | C182: 2023-06-01 | D182: 0 | E182: 3585.8 | F182: 0
A183: 169 | B183: 2023-06-01 | C183: 2023-06-01 | D183: 0 | E183: 5060.26 | F183: 0
A184: 170 | B184: 2023-06-01 | C184: 2023-06-01 | D184: 0 | E184: 89.7 | F184: 0
A185: 171 | B185: 2023-06-01 | C185: 2023-06-01 | D185: 0 | E185: 89.7 | F185: 0
A186: 172 | B186: 2023-06-01 | C186: 2023-06-01 | D186: 0 | E186: 9111.79 | F186: 0
A187: 173 | B187: 2023-06-01 | C187: 2023-06-01 | D187: 0 | E187: 1505.38 | F187: 0
A188: 174 | B188: 2023-06-01 | C188: 2023-06-01 | D188: 0 | E188: 91.39 | F188: 0
A189: 175 | B189: 2023-05-30 | C189: 2023-06-05 | D189: 6 | E189: 687.32 | F189: 4123.92
A190: 176 | B190: 2023-06-01 | C190: 2023-06-01 | D190: 0 | E190: 9728.04 | F190: 0
A191: 177 | B191: 2023-06-01 | C191: 2023-06-01 | D191: 0 | E191: 89.7 | F191: 0
A192: 178 | B192: 2023-05-31 | C192: 2023-06-01 | D192: 1 | E192: 1287.86 | F192: 1287.86
A193: 179 | B193: 2023-06-01 | C193: 2023-06-01 | D193: 0 | E193: 254.9 | F193: 0
A194: 180 | B194: 2023-05-31 | C194: 2023-06-01 | D194: 1 | E194: 95.08 | F194: 95.08
A195: 181 | B195: 2023-06-01 | C195: 2023-06-01 | D195: 0 | E195: 3533.84 | F195: 0
A196: 182 | B196: 2023-06-01 | C196: 2023-06-02 | D196: 1 | E196: 511.84 | F196: 511.84
A197: 183 | B197: 2023-06-01 | C197: 2023-06-05 | D197: 4 | E197: 945.24 | F197: 3780.96
A198: 184 | B198: 2023-05-02 | C198: 2023-06-01 | D198: 30 | E198: 254.9 | F198: 7647
A199: 185 | B199: 2023-06-01 | C199: 2023-06-01 | D199: 0 | E199: 304.15 | F199: 0
A200: 186 | B200: 2023-06-01 | C200: 2023-06-01 | D200: 0 | E200: 7735.94 | F200: 0
A201: 187 | B201: 2023-05-31 | C201: 2023-06-01 | D201: 1 | E201: 1840.97 | F201: 1840.97
A202: 188 | B202: 2023-06-01 | C202: 2023-06-01 | D202: 0 | E202: 149.79 | F202: 0
A203: 189 | B203: 2023-06-01 | C203: 2023-06-01 | D203: 0 | E203: 3938.78 | F203: 0
... 257 more rows

Sheet (WP) Sh 9 AP
A1: =+'Sh 14a - Int'!$A$1:$G$1 -> COLUMBIA GAS OF KENTUCKY, INC.
A2: ='(WP) Instructions & Input'!$B$9 -> CASE NO. 2024-00092
A3: ='Sh 14 - Int'!$A$3:$E$3 -> CASH WORKING CAPITAL
A4: ACCOUNTS PAYABLE SELECTED RECORDS
A5: =+'Sh 14a - Int'!$A$5:$G$5 -> TME: DECEMBER 31, 2023
I7: ='(WP) Instructions & Input'!$B$11 -> Attachment KLJ-CWC-1
I8: (WORKPAPER) SHEET 9
I9: ='(WP) Instructions & Input'!$B$12 -> WITNESS: JOHNSON
A11: Ref | B11: Voucher ID | C11: Beginning of Service Period | D11: End of Service Period | E11: Midpoint of Service Period | F11: Check Date | G11: Lead / Lag Days | H11: Base Check Amount | I11: Dollar Weighted Days
H12: $
A13: 1 | B13: 00229702 | C13: 2023-06-28 | D13: 2023-07-28 | E13: =SUM(D13-C13+1)/2 -> 15.5 | F13: 08/07/2023 | G13: =+F13-D13+E13 -> 25.5 | H13: 47.82 | I13: =ROUND(+H13*G13,0) -> 1219
A14: 2 | B14: 00222481 | C14: 2023-04-10 | D14: 2023-05-15 | E14: 18 | F14: 05/08/2023 | G14: 11 | H14: 65.38 | I14: 719
A15: 3 | B15: 00236318 | C15: 2023-10-06 | D15: 2023-10-06 | E15: 0.5 | F15: 10/16/2023 | G15: 10.5 | H15: 69.53 | I15: 730
A16: 4 | B16: 00217549 | C16: 2023-01-31 | D16: 2023-01-31 | E16: 0.5 | F16: 03/01/2023 | G16: 29.5 | H16: 141 | I16: 4160
A17: 5 | B17: 00236518 | C17: 2023-09-18 | D17: 2023-10-18 | E17: 15.5 | F17: 11/01/2023 | G17: 29.5 | H17: 107.04 | I17: 3158
A18: 6 | B18: 00222320 | C18: 2023-03-20 | D18: 2023-04-18 | E18: 15 | F18: 05/01/2023 | G18: 28 | H18: 80.56 | I18: 2256
A19: 7 | B19: 00227550 | C19: 2023-06-07 | D19: 2023-07-07 | E19: 15.5 | F19: 07/19/2023 | G19: 27.5 | H19: 46.18 | I19: 1270
A20: 8 | B20: 00229738 | C20: 2023-06-29 | D20: 2023-07-28 | E20: 15 | F20: 08/09/2023 | G20: 27 | H20: 52.37 | I20: 1414
A21: 9 | B21: 00231731 | C21: 08/15/2023 | D21: 08/15/2023 | E21: 0.5 | F21: 09/12/2023 | G21: 28.5 | H21: 69.09 | I21: 1969
A22: 10 | B22: 00213041 | C22: 2022-11-17 | D22: 2022-12-20 | E22: 17 | F22: 01/04/2023 | G22: 32 | H22: 34.99 | I22: 1120
A23: 11 | B23: 00220174 | C23: 2023-03-01 | D23: 2023-03-30 | E23: 15 | F23: 04/11/2023 | G23: 27 | H23: 51.4 | I23: 1388
A24: 12 | B24: 00229660 | C24: 2023-06-23 | D24: 2023-07-24 | E24: 16 | F24: 08/02/2023 | G24: 25 | H24: 80.03 | I24: 2001
A25: 13 | B25: 00238961 | C25: 2023-12-01 | D25: 2023-12-01 | E25: 0.5 | F25: 12/27/2023 | G25: 26.5 | H25: 413.62 | I25: 10961
A26: 14 | B26: 00217642 | C26: 03/03/2023 | D26: 03/03/2023 | E26: 0.5 | F26: 03/13/2023 | G26: 10.5 | H26: 31.76 | I26: 333
A27: 15 | B27: 00224873 | C27: 03/08/2023 | D27: 03/08/2023 | E27: 0.5 | F27: 06/09/2023 | G27: 93.5 | H27: 47.32 | I27: 4424
A28: 16 | B28: 00222608 | C28: 2023-03-23 | D28: 2023-04-24 | E28: 16.5 | F28: 05/17/2023 | G28: 39.5 | H28: 40.14 | I28: 1586
A29: 17 | B29: 00238826 | C29: 2023-10-01 | D29: 10/31/2023 | E29: 15.5 | F29: 11/28/2023 | G29: 43.5 | H29: 271.5 | I29: 11810
A30: 18 | B30: 00229655 | C30: 2023-06-23 | D30: 2023-07-24 | E30: 16 | F30: 08/02/2023 | G30: 25 | H30: 43.74 | I30: 1094
A31: 19 | B31: 00236501 | C31: 2023-09-13 | D31: 2023-10-12 | E31: 15 | F31: 10/30/2023 | G31: 33 | H31: 60.83 | I31: 2007
A32: 20 | B32: 00213002 | C32: 2023-01-01 | D32: 2023-12-31 | E32: 182.5 | F32: 01/26/2023 | G32: -156.5 | H32: 4041.26 | I32: -632457
A33: 21 | B33: 00213044 | C33: 2022-11-17 | D33: 2022-12-19 | E33: 16.5 | F33: 01/04/2023 | G33: 32.5 | H33: 57.57 | I33: 1871
A34: 22 | B34: 00238725 | C34: 11/14/2023 | D34: 11/14/2023 | E34: 0.5 | F34: 12/14/2023 | G34: 30.5 | H34: 69.09 | I34: 2107
A35: 23 | B35: 00219893 | C35: 03/17/2023 | D35: 03/17/2023 | E35: 0.5 | F35: 03/27/2023 | G35: 10.5 | H35: 88.56 | I35: 930
A36: 24 | B36: 00224894 | C36: 06/06/2023 | D36: 06/06/2023 | E36: 0.5 | F36: 06/22/2023 | G36: 16.5 | H36: 72.26 | I36: 1192
A37: 25 | B37: 00238680 | C37: 2023-10-23 | D37: 2023-10-23 | E37: 0.5 | F37: 11/20/2023 | G37: 28.5 | H37: 5483.78 | I37: 156288
A38: 26 | B38: 00222619 | C38: 05/11/2023 | D38: 05/11/2023 | E38: 0.5 | F38: 05/19/2023 | G38: 8.5 | H38: 76.17 | I38: 647
A39: 27 | B39: 00219846 | C39: 2023-01-18 | D39: 2023-02-19 | E39: 16.5 | F39: 04/19/2023 | G39: 75.5 | H39: -6.06 | I39: -458
A40: 28 | B40: 00220198 | C40: 2023-03-07 | D40: 2023-04-04 | E40: 14.5 | F40: 04/12/2023 | G40: 22.5 | H40: 44.6 | I40: 1004
A41: 29 | B41: 00225376 | C41: 2023-03-31 | D41: 2023-03-31 | E41: 0.5 | F41: 07/14/2023 | G41: 105.5 | H41: -4527.27 | I41: -477627
A42: 30 | B42: 00217405 | C42: 02/14/2023 | D42: 02/14/2023 | E42: 0.5 | F42: 02/24/2023 | G42: 10.5 | H42: 31.59 | I42: 332
A43: 31 | B43: 00222420 | C43: 2023-04-21 | D43: 2023-04-21 | E43: 0.5 | F43: 05/19/2023 | G43: 28.5 | H43: 1464.96 | I43: 41751
A44: 32 | B44: 00240851 | C44: 2023-10-26 | D44: 2023-11-28 | E44: 17 | F44: 12/18/2023 | G44: 37 | H44: 46.16 | I44: 1708
A45: 33 | B45: 00240886 | C45: 2024-02-08 | D45: 2024-02-08 | E45: 0.5 | F45: 12/20/2023 | G45: -49.5 | H45: 1995 | I45: -98753
A46: 34 | B46: 00240869 | C46: 2023-11-01 | D46: 2023-11-30 | E46: 15 | F46: 12/18/2023 | G46: 33 | H46: 61.43 | I46: 2027
A47: 35 | B47: 00224793 | C47: 2023-05-15 | D47: 2023-05-21 | E47: 3.5 | F47: 07/14/2023 | G47: 57.5 | H47: 1531.86 | I47: 88082
A48: 36 | B48: 00236272 | C48: 10/04/2023 | D48: 10/04/2023 | E48: 0.5 | F48: 10/24/2023 | G48: 20.5 | H48: 47.39 | I48: 971
A49: 37 | B49: 00233978 | C49: 2023-01-10 | D49: 2024-01-06 | E49: 181 | F49: 10/27/2023 | G49: 110 | H49: 5161.3 | I49: 567743
A50: 38 | B50: 00214889 | C50: 2023-01-10 | D50: 2023-01-10 | E50: 0.5 | F50: 02/01/2023 | G50: 22.5 | H50: 1011.23 | I50: 22753
A51: 39 | B51: 00234309 | C51: 2023-08-10 | D51: 2023-09-11 | E51: 16.5 | F51: 10/11/2023 | G51: 46.5 | H51: 16.89 | I51: 785
A52: 40 | B52: 00215358 | C52: 2023-01-01 | D52: 01/31/2023 | E52: 15.5 | F52: 02/16/2023 | G52: 31.5 | H52: 300 | I52: 9450
A53: 41 | B53: 00231728 | C53: 08/02/2023 | D53: 08/02/2023 | E53: 0.5 | F53: 08/22/2023 | G53: 20.5 | H53: 47.39 | I53: 971
A54: 42 | B54: 00220295 | C54: 2023-03-01 | D54: 03/31/2023 | E54: 15.5 | F54: 04/19/2023 | G54: 34.5 | H54: 541.5 | I54: 18682
A55: 43 | B55: 00222457 | C55: 05/04/2023 | D55: 05/04/2023 | E55: 0.5 | F55: 05/12/2023 | G55: 8.5 | H55: 607.9 | I55: 5167
A56: 44 | B56: 00229583 | C56: 07/18/2023 | D56: 07/18/2023 | E56: 0.5 | F56: 08/07/2023 | G56: 20.5 | H56: 47.39 | I56: 971
A57: 45 | B57: 00238827 | C57: 2023-10-01 | D57: 10/31/2023 | E57: 15.5 | F57: 11/28/2023 | G57: 43.5 | H57: 52.5 | I57: 2284
A58: 46 | B58: 00238700 | C58: 2023-09-11 | D58: 2023-11-20 | E58: 35.5 | F58: 11/16/2023 | G58: 31.5 | H58: 76.84 | I58: 2420
A59: 47 | B59: 00213096 | C59: 01/05/2023 | D59: 01/05/2023 | E59: 0.5 | F59: 01/13/2023 | G59: 8.5 | H59: 15.9 | I59: 135
A60: 48 | B60: 00224665 | C60: 05/19/2023 | D60: 05/19/2023 | E60: 0.5 | F60: 06/14/2023 | G60: 26.5 | H60: 75.87 | I60: 2011
A61: 49 | B61: 00215244 | C61: 2022-12-22 | D61: 2023-01-27 | E61: 18.5 | F61: 02/07/2023 | G61: 29.5 | H61: 67.79 | I61: 2000
A62: 50 | B62: 00215112 | C62: 2022-12-09 | D62: 2023-01-11 | E62: 17 | F62: 01/25/2023 | G62: 31 | H62: 10.74 | I62: 333
A63: 51 | B63: 00219735 | C63: 2023-01-31 | D63: 2023-03-01 | E63: 15 | F63: 03/09/2023 | G63: 23 | H63: 47.8 | I63: 1099
A64: 52 | B64: 00236421 | C64: 2023-08-14 | D64: 2023-09-11 | E64: 14.5 | F64: 10/20/2023 | G64: 53.5 | H64: 148.26 | I64: 7932
A65: 53 | B65: 00225017 | C65: 06/12/2023 | D65: 06/12/2023 | E65: 0.5 | F65: 07/10/2023 | G65: 28.5 | H65: 219.99 | I65: 6270
A66: 54 | B66: 00236229 | C66: 2023-08-18 | D66: 2023-09-21 | E66: 17.5 | F66: 10/11/2023 | G66: 37.5 | H66: 61.04 | I66: 2289
A67: 55 | B67: 00217639 | C67: 03/02/2023 | D67: 03/02/2023 | E67: 0.5 | F67: 03/10/2023 | G67: 8.5 | H67: 106.55 | I67: 906
A68: 56 | B68: 00212870 | C68: 12/13/2022 | D68: 12/13/2022 | E68: 0.5 | F68: 01/10/2023 | G68: 28.5 | H68: 47.51 | I68: 1354
A69: 57 | B69: 00224857 | C69: 2023-04-27 | D69: 2023-06-01 | E69: 18 | F69: 06/08/2023 | G69: 25 | H69: 64.48 | I69: 1612
A70: 58 | B70: 00215263 | C70: 2023-01-03 | D70: 2023-01-31 | E70: 14.5 | F70: 02/08/2023 | G70: 22.5 | H70: 46.15 | I70: 1038
A71: 59 | B71: 00217647 | C71: 02/28/2023 | D71: 02/28/2023 | E71: 0.5 | F71: 03/28/2023 | G71: 28.5 | H71: 47.51 | I71: 1354
A72: 60 | B72: 00222485 | C72: 2023-03-17 | D72: 2023-04-19 | E72: 17 | F72: 05/08/2023 | G72: 36 | H72: 548.8 | I72: 19757
A73: 61 | B73: 00225312 | C73: 2023-05-23 | D73: 2023-06-22 | E73: 15.5 | F73: 06/28/2023 | G73: 21.5 | H73: 54.9 | I73: 1180
A74: 62 | B74: 00236286 | C74: 2023-08-30 | D74: 2023-09-29 | E74: 15.5 | F74: 10/12/2023 | G74: 28.5 | H74: 94.23 | I74: 2686
A75: 63 | B75: 00234012 | C75: 2023-07-01 | D75: 2023-09-30 | E75: 46 | F75: 09/14/2023 | G75: 30 | H75: 12884.53 | I75: 386536
A76: 64 | B76: 00234164 | C76: 2023-08-01 | D76: 08/31/2023 | E76: 15.5 | F76: 09/21/2023 | G76: 36.5 | H76: 30 | I76: 1095
A77: 65 | B77: 00222273 | C77: 04/19/2023 | D77: 04/19/2023 | E77: =SUM(D77-C77+1)/2 -> 0.5 | F77: 05/09/2023 | G77: =+F77-D77+E77 -> 20.5 | H77: 47.32 | I77: =ROUND(+H77*G77,0) -> 970
A78: 66 | B78: 00219933 | C78: 2023-04-27 | D78: 2023-03-05 | E78: -26 | F78: 04/28/2023 | G78: 28 | H78: 571.5 | I78: 16002
A79: 67 | B79: 00238834 | C79: 2023-09-11 | D79: 2023-10-17 | E79: 18.5 | F79: 11/28/2023 | G79: 60.5 | H79: 7.36 | I79: 445
A80: 68 | B80: 00236227 | C80: 2023-08-28 | D80: 2023-09-25 | E80: 14.5 | F80: 10/11/2023 | G80: 30.5 | H80: 52.11 | I80: 1589
A81: 69 | B81: 00219911 | C81: 2022-12-22 | D81: 2023-01-24 | E81: 17 | F81: 03/21/2023 | G81: 73 | H81: 749.38 | I81: 54705
A82: 70 | B82: 00222369 | C82: 01/24/2023 | D82: 01/24/2023 | E82: 0.5 | F82: 05/02/2023 | G82: 98.5 | H82: 47.32 | I82: 4661
A83: 71 | B83: 00229720 | C83: 2023-06-27 | D83: 2023-07-26 | E83: 15 | F83: 08/08/2023 | G83: 28 | H83: 0.88 | I83: 25
A84: 72 | B84: 00215320 | C84: 02/08/2023 | D84: 02/08/2023 | E84: 0.5 | F84: 02/17/2023 | G84: 9.5 | H84: 59.82 | I84: 568
A85: 73 | B85: 00225381 | C85: 06/29/2023 | D85: 06/29/2023 | E85: 0.5 | F85: 07/07/2023 | G85: 8.5 | H85: 140.8 | I85: 1197
A86: 74 | B86: 00214930 | C86: 2022-11-07 | D86: 2022-12-09 | E86: 16.5 | F86: 01/13/2023 | G86: 51.5 | H86: 95.29 | I86: 4907
A87: 75 | B87: 00231665 | C87: 2023-04-13 | D87: 2023-04-13 | E87: 0.5 | F87: 08/17/2023 | G87: 126.5 | H87: 84.34 | I87: 10669
A88: 76 | B88: 00231897 | C88: 2023-07-20 | D88: 2023-08-16 | E88: 14 | F88: 08/30/2023 | G88: 28 | H88: 503.75 | I88: 14105
A89: 77 | B89: 00236534 | C89: 2024-01-01 | D89: 2024-12-31 | E89: 183 | F89: 11/03/2023 | G89: -241 | H89: 1115 | I89: -268715
A90: 78 | B90: 00217502 | C90: 2023-01-31 | D90: 2023-01-31 | E90: 0.5 | F90: 02/28/2023 | G90: 28.5 | H90: 129.19 | I90: 3682
A91: 79 | B91: 00238650 | C91: 2023-08-28 | D91: 2023-10-27 | E91: 30.5 | F91: 12/05/2023 | G91: 69.5 | H91: 151.25 | I91: 10512
A92: 80 | B92: 00240950 | C92: 2023-10-24 | D92: 2023-11-27 | E92: 17.5 | F92: 12/22/2023 | G92: 42.5 | H92: 101.93 | I92: 4332
A93: 81 | B93: 00220339 | C93: 04/17/2023 | D93: 04/17/2023 | E93: 0.5 | F93: 05/15/2023 | G93: 28.5 | H93: 213.57 | I93: 6087
A94: 82 | B94: 00238646 | C94: 2023-10-05 | D94: 2023-11-01 | E94: 14 | F94: 11/14/2023 | G94: 27 | H94: 42.95 | I94: 1160
A95: 83 | B95: 00224794 | C95: 2023-05-15 | D95: 2023-05-21 | E95: 3.5 | F95: 07/14/2023 | G95: 57.5 | H95: 747 | I95: 42953
A96: 84 | B96: 00231939 | C96: 2023-07-27 | D96: 2023-08-24 | E96: 14.5 | F96: 09/06/2023 | G96: 27.5 | H96: 37.1 | I96: 1020
A97: 85 | B97: 00220087 | C97: 2023-02-22 | D97: 2023-03-22 | E97: 14.5 | F97: 03/31/2023 | G97: 23.5 | H97: 50.13 | I97: 1178
A98: 86 | B98: 00215286 | C98: 2022-12-29 | D98: 2023-01-30 | E98: 16.5 | F98: 02/09/2023 | G98: 26.5 | H98: 113.98 | I98: 3020
A99: 87 | B99: 00240848 | C99: 2023-12-12 | D99: 2023-12-12 | E99: 0.5 | F99: 12/22/2023 | G99: 10.5 | H99: 2.22 | I99: 23
A100: 88 | B100: 00220172 | C100: 04/04/2023 | D100: 04/04/2023 | E100: 0.5 | F100: 05/02/2023 | G100: 28.5 | H100: 47.04 | I100: 1341
A101: 89 | B101: 00229723 | C101: 2023-06-21 | D101: 2023-07-21 | E101: 15.5 | F101: 08/08/2023 | G101: 33.5 | H101: 1711.27 | I101: 57328
A102: 90 | B102: 00231789 | C102: 08/08/2023 | D102: 08/08/2023 | E102: 0.5 | F102: 09/05/2023 | G102: 28.5 | H102: 69.09 | I102: 1969
A103: 91 | B103: 00225308 | C103: 2023-05-19 | D103: 2023-06-20 | E103: 16.5 | F103: 06/28/2023 | G103: 24.5 | H103: 51.01 | I103: 1250
A104: 92 | B104: 00236214 | C104: 2023-09-01 | D104: 2023-10-01 | E104: 15.5 | F104: 10/11/2023 | G104: 25.5 | H104: 482.07 | I104: 12293
A105: 93 | B105: 00212995 | C105: 2022-12-02 | D105: 2022-12-02 | E105: 0.5 | F105: 01/06/2023 | G105: 35.5 | H105: 516 | I105: 18318
A106: 94 | B106: 00219844 | C106: 03/13/2023 | D106: 03/13/2023 | E106: 0.5 | F106: 04/10/2023 | G106: 28.5 | H106: 213.57 | I106: 6087
A107: 95 | B107: 00240960 | C107: 2023-11-01 | D107: 11/30/2023 | E107: 15 | F107: 12/26/2023 | G107: 41 | H107: 168 | I107: 6888
A108: 96 | B108: 00234211 | C108: 2023-09-14 | D108: 2023-09-14 | E108: 0.5 | F108: 09/25/2023 | G108: 11.5 | H108: 40.31 | I108: 464
A109: 97 | B109: 00231885 | C109: 2023-07-10 | D109: 2023-08-02 | E109: 12 | F109: 09/25/2023 | G109: 66 | H109: 350.42 | I109: 23128
A110: 98 | B110: 00222554 | C110: 2023-05-05 | D110: 2023-05-05 | E110: 0.5 | F110: 06/07/2023 | G110: 33.5 | H110: 820 | I110: 27470
A111: 99 | B111: 00220150 | C111: 2023-02-28 | D111: 2023-03-29 | E111: 15 | F111: 04/07/2023 | G111: 24 | H111: 46.01 | I111: 1104
A112: 100 | B112: 00220228 | C112: 04/11/2023 | D112: 04/11/2023 | E112: 0.5 | F112: 05/09/2023 | G112: 28.5 | H112: 47.04 | I112: 1341
A113: 101 | B113: 00220076 | C113: 03/28/2023 | D113: 03/28/2023 | E113: 0.5 | F113: 04/25/2023 | G113: 28.5 | H113: 47.51 | I113: 1354
A114: 102 | B114: 00217561 | C114: 02/22/2023 | D114: 02/22/2023 | E114: 0.5 | F114: 04/10/2023 | G114: 47.5 | H114: 466.48 | I114: 22158
A115: 103 | B115: 00220316 | C115: 2023-02-10 | D115: 2023-04-20 | E115: 35 | F115: 04/19/2023 | G115: 34 | H115: 90.5 | I115: 3077
A116: 104 | B116: 00215139 | C116: 01/23/2023 | D116: 01/23/2023 | E116: 0.5 | F116: 02/17/2023 | G116: 25.5 | H116: 75.87 | I116: 1935
A117: 105 | B117: 00217551 | C117: 2023-01-31 | D117: 01/31/2023 | E117: 0.5 | F117: 03/01/2023 | G117: 29.5 | H117: 327 | I117: 9647
A118: 106 | B118: 00220319 | C118: 2023-02-28 | D118: 2023-03-27 | E118: 14 | F118: 04/19/2023 | G118: 37 | H118: 16.89 | I118: 625
A119: 107 | B119: 00222317 | C119: 2023-03-08 | D119: 2023-04-05 | E119: 14.5 | F119: 05/01/2023 | G119: 40.5 | H119: 29.18 | I119: 1182
A120: 108 | B120: 00238860 | C120: 11/28/2023 | D120: 11/28/2023 | E120: 0.5 | F120: 12/28/2023 | G120: 30.5 | H120: 47.1 | I120: 1437
A121: 109 | B121: 00224982 | C121: 2023-04-10 | D121: 2023-04-16 | E121: 3.5 | F121: 06/14/2023 | G121: 62.5 | H121: 340.13 | I121: 21258
A122: 110 | B122: 00234231 | C122: 09/13/2023 | D122: 09/13/2023 | E122: 0.5 | F122: 10/11/2023 | G122: 28.5 | H122: 468.52 | I122: 13353
A123: 111 | B123: 00224895 | C123: 06/07/2023 | D123: 06/07/2023 | E123: 0.5 | F123: 06/27/2023 | G123: 20.5 | H123: 47.39 | I123: 971
A124: 112 | B124: 00217489 | C124: 02/18/2023 | D124: 02/18/2023 | E124: 0.5 | F124: 02/28/2023 | G124: 10.5 | H124: 82.77 | I124: 869
A125: 113 | B125: 00219985 | C125: 03/24/2023 | D125: 03/24/2023 | E125: 0.5 | F125: 04/03/2023 | G125: 10.5 | H125: 473.15 | I125: 4968
A126: 114 | B126: 00219729 | C126: 2023-01-31 | D126: 2023-02-28 | E126: 14.5 | F126: 03/09/2023 | G126: 23.5 | H126: 36.33 | I126: 854
A127: 115 | B127: 00213110 | C127: 12/27/2022 | D127: 12/27/2022 | E127: 0.5 | F127: 01/17/2023 | G127: 21.5 | H127: 70.15 | I127: 1508
A128: 116 | B128: 00224963 | C128: 2023-05-02 | D128: 2023-05-31 | E128: 15 | F128: 06/13/2023 | G128: 28 | H128: 44.52 | I128: 1247
A129: 117 | B129: 00231860 | C129: 08/25/2023 | D129: 08/25/2023 | E129: 0.5 | F129: 10/10/2023 | G129: 46.5 | H129: 27.34 | I129: 1271
A130: 118 | B130: 00229620 | C130: 2023-06-20 | D130: 2023-07-20 | E130: 15.5 | F130: 07/28/2023 | G130: 23.5 | H130: 47.96 | I130: 1127
A131: 119 | B131: 00219950 | C131: 2023-01-30 | D131: 2023-03-02 | E131: 16 | F131: 04/19/2023 | G131: 64 | H131: 57.42 | I131: 3675
A132: 120 | B132: 00222294 | C132: 2022-10-01 | D132: 2023-03-31 | E132: 91 | F132: 05/08/2023 | G132: 129 | H132: 170 | I132: 21930
A133: 121 | B133: 00220046 | C133: 2023-02-16 | D133: 2023-03-20 | E133: 16.5 | F133: 03/30/2023 | G133: 26.5 | H133: 53.7 | I133: 1423
A134: 122 | B134: 00222639 | C134: 05/09/2023 | D134: 05/09/2023 | E134: 0.5 | F134: 06/06/2023 | G134: 28.5 | H134: 67.03 | I134: 1910
A135: 123 | B135: 00236371 | C135: 2023-09-01 | D135: 2023-10-01 | E135: 15.5 | F135: 10/18/2023 | G135: 32.5 | H135: 101.34 | I135: 3294
A136: 124 | B136: 00217624 | C136: 2023-01-20 | D136: 2023-02-17 | E136: 14.5 | F136: 03/03/2023 | G136: 28.5 | H136: 50.21 | I136: 1431
A137: 125 | B137: 00217653 | C137: 2023-05-17 | D137: 2023-05-18 | E137: 1 | F137: 03/07/2023 | G137: -71 | H137: 695 | I137: -49345
A138: 126 | B138: 00231639 | C138: 2023-07-31 | D138: 2023-07-31 | E138: 0.5 | F138: 08/16/2023 | G138: 16.5 | H138: 23140.58 | I138: 381820
A139: 127 | B139: 00224824 | C139: 2023-04-26 | D139: 2023-05-26 | E139: 15.5 | F139: 06/07/2023 | G139: 27.5 | H139: 49.5 | I139: 1361
A140: 128 | B140: 00214961 | C140: 01/11/2023 | D140: 01/11/2023 | E140: 0.5 | F140: 01/20/2023 | G140: 9.5 | H140: 56.12 | I140: 533
A141: 129 | B141: 00238809 | C141: 2023-10-10 | D141: 2023-11-08 | E141: =SUM(D141-C141+1)/2 -> 15 | F141: 11/22/2023 | G141: =+F141-D141+E141 -> 29 | H141: 84.55 | I141: =ROUND(+H141*G141,0) -> 2452
A142: 130 | B142: 00217632 | C142: 2023-02-22 | D142: 2023-02-22 | E142: 0.5 | F142: 03/06/2023 | G142: 12.5 | H142: 89.36 | I142: 1117
A143: 131 | B143: 00233991 | C143: 08/25/2023 | D143: 08/25/2023 | E143: 0.5 | F143: 09/20/2023 | G143: 26.5 | H143: 78.16 | I143: 2071
A144: 132 | B144: 00240815 | C144: 2023-10-31 | D144: 2023-11-29 | E144: 15 | F144: 12/14/2023 | G144: 30 | H144: 44.4 | I144: 1332
A145: 133 | B145: 00231973 | C145: 2023-07-28 | D145: 2023-08-29 | E145: 16.5 | F145: 09/11/2023 | G145: 29.5 | H145: 50.94 | I145: 1503
A146: 134 | B146: 00225288 | C146: 2023-05-16 | D146: 2023-06-16 | E146: 16 | F146: 06/28/2023 | G146: 28 | H146: 51.4 | I146: 1439
A147: 135 | B147: 00220186 | C147: 2023-03-03 | D147: 2023-03-30 | E147: 14 | F147: 04/12/2023 | G147: 27 | H147: 29.26 | I147: 790
A148: 136 | B148: 00238824 | C148: 2024-06-08 | D148: 2024-06-08 | E148: 0.5 | F148: 11/28/2023 | G148: -192.5 | H148: 1400 | I148: -269500
A149: 137 | B149: 00234002 | C149: 09/05/2023 | D149: 09/05/2023 | E149: 0.5 | F149: 10/03/2023 | G149: 28.5 | H149: 47.1 | I149: 1342
A150: 138 | B150: 00219783 | C150: 2023-02-01 | D150: 2023-02-28 | E150: 14 | F150: 04/14/2023 | G150: 59 | H150: 143 | I150: 8437
A151: 139 | B151: 00222622 | C151: 05/10/2023 | D151: 05/10/2023 | E151: 0.5 | F151: 05/19/2023 | G151: 9.5 | H151: 25.96 | I151: 247
A152: 140 | B152: 00217612 | C152: 03/01/2023 | D152: 03/01/2023 | E152: 0.5 | F152: 03/10/2023 | G152: 9.5 | H152: 74.27 | I152: 706
A153: 141 | B153: 00220269 | C153: 2023-03-13 | D153: 2023-03-19 | E153: 3.5 | F153: 05/15/2023 | G153: 60.5 | H153: 454.5 | I153: 27497
A154: 142 | B154: 00222311 | C154: 2023-03-03 | D154: 2023-03-31 | E154: 14.5 | F154: 05/01/2023 | G154: 45.5 | H154: 310.95 | I154: 14148
A155: 143 | B155: 00213053 | C155: 2022-11-23 | D155: 2022-12-22 | E155: 15 | F155: 01/05/2023 | G155: 29 | H155: 41.11 | I155: 1192
A156: 144 | B156: 00225306 | C156: 2023-04-26 | D156: 2023-05-20 | E156: 12.5 | F156: 06/28/2023 | G156: 51.5 | H156: 149.72 | I156: 7711
A157: 145 | B157: 00225294 | C157: 06/20/2023 | D157: 06/20/2023 | E157: 0.5 | F157: 07/18/2023 | G157: 28.5 | H157: 47.1 | I157: 1342
A158: 146 | B158: 00222368 | C158: 2023-01-24 | D158: 2023-01-24 | E158: 0.5 | F158: 05/02/2023 | G158: 98.5 | H158: 70.15 | I158: 6910
A159: 147 | B159: 00222659 | C159: 2023-04-04 | D159: 2023-05-04 | E159: 15.5 | F159: 05/17/2023 | G159: 28.5 | H159: 47.87 | I159: 1364
A160: 148 | B160: 00227383 | C160: 2023-05-22 | D160: 2023-06-21 | E160: 15.5 | F160: 07/12/2023 | G160: 36.5 | H160: 1810.25 | I160: 66074
A161: 149 | B161: 00238836 | C161: 2023-10-11 | D161: 2023-11-09 | E161: 15 | F161: 11/28/2023 | G161: 34 | H161: 12.96 | I161: 441
A162: 150 | B162: 00229726 | C162: 2023-06-20 | D162: 2023-07-19 | E162: 15 | F162: 08/08/2023 | G162: 35 | H162: 8137.68 | I162: 284819
A163: 151 | B163: 00224638 | C163: 2023-03-02 | D163: 2023-03-02 | E163: 0.5 | F163: 05/24/2023 | G163: 83.5 | H163: 2236.95 | I163: 186785
A164: 152 | B164: 00214944 | C164: 2023-01-09 | D164: 2023-01-09 | E164: 0.5 | F164: 02/10/2023 | G164: 32.5 | H164: 139 | I164: 4518
A165: 153 | B165: 00234067 | C165: 09/11/2023 | D165: 09/11/2023 | E165: 0.5 | F165: 10/06/2023 | G165: 25.5 | H165: 219.99 | I165: 5610
A166: 154 | B166: 00236581 | C166: 10/31/2023 | D166: 10/31/2023 | E166: 0.5 | F166: 11/30/2023 | G166: 30.5 | H166: 47.1 | I166: 1437
A167: 155 | B167: 00215364 | C167: 2022-12-21 | D167: 2023-01-23 | E167: 17 | F167: 02/14/2023 | G167: 39 | H167: 83.33 | I167: 3250
A168: 156 | B168: 00220151 | C168: 2023-02-24 | D168: 2023-03-28 | E168: 16.5 | F168: 04/07/2023 | G168: 26.5 | H168: 91.57 | I168: 2427
A169: 157 | B169: 00231788 | C169: 08/07/2023 | D169: 08/07/2023 | E169: 0.5 | F169: 09/01/2023 | G169: 25.5 | H169: 250.41 | I169: 6385
A170: 158 | B170: 00219957 | C170: 2023-02-15 | D170: 2023-03-16 | E170: 15 | F170: 03/23/2023 | G170: 22 | H170: 58.73 | I170: 1292
A171: 159 | B171: 00224823 | C171: 2023-04-27 | D171: 2023-05-30 | E171: 17 | F171: 06/07/2023 | G171: 25 | H171: 84.35 | I171: 2109
A172: 160 | B172: 00231938 | C172: 2023-07-21 | D172: 2023-08-22 | E172: 16.5 | F172: 09/06/2023 | G172: 31.5 | H172: 37.08 | I172: 1168
A173: 161 | B173: 00236327 | C173: 10/10/2023 | D173: 10/10/2023 | E173: 0.5 | F173: 11/09/2023 | G173: 30.5 | H173: 69.09 | I173: 2107
A174: 162 | B174: 00236293 | C174: 2023-09-30 | D174: 2023-09-30 | E174: 0.5 | F174: 10/26/2023 | G174: 26.5 | H174: 10.6 | I174: 281
A175: 163 | B175: 00225356 | C175: 2023-05-01 | D175: 05/31/2023 | E175: 15.5 | F175: 07/03/2023 | G175: 48.5 | H175: 82.5 | I175: 4001
A176: 164 | B176: 00227558 | C176: 07/17/2023 | D176: 07/17/2023 | E176: 0.5 | F176: 08/14/2023 | G176: 28.5 | H176: 189.68 | I176: 5406
A177: 165 | B177: 00236269 | C177: 10/02/2023 | D177: 10/02/2023 | E177: 0.5 | F177: 11/01/2023 | G177: 30.5 | H177: 219.99 | I177: 6710
A178: 166 | B178: 00215111 | C178: 2023-01-13 | D178: 2023-01-13 | E178: 0.5 | F178: 01/25/2023 | G178: 12.5 | H178: 1151.73 | I178: 14397
A179: 167 | B179: 00229717 | C179: 2023-06-08 | D179: 2023-08-20 | E179: 37 | F179: 08/08/2023 | G179: 25 | H179: 90.5 | I179: 2263
A180: 168 | B180: 00219937 | C180: 2023-04-27 | D180: 2023-03-05 | E180: -26 | F180: 04/28/2023 | G180: 28 | H180: 571.5 | I180: 16002
A181: 169 | B181: 00229612 | C181: 07/24/2023 | D181: 07/24/2023 | E181: 0.5 | F181: 08/21/2023 | G181: 28.5 | H181: 219.99 | I181: 6270
A182: 170 | B182: 00222483 | C182: 2023-03-14 | D182: 2023-04-13 | E182: 15.5 | F182: 05/08/2023 | G182: 40.5 | H182: -9.79 | I182: -396
A183: 171 | B183: 00217537 | C183: 2023-01-03 | D183: 2023-01-30 | E183: 14 | F183: 04/19/2023 | G183: 93 | H183: 27.38 | I183: 2546
A184: 172 | B184: 00219901 | C184: 2023-02-07 | D184: 2023-03-08 | E184: 15 | F184: 03/20/2023 | G184: 27 | H184: 32.43 | I184: 876
A185: 173 | B185: 00234313 | C185: 2023-08-22 | D185: 2023-09-21 | E185: 15.5 | F185: 10/04/2023 | G185: 28.5 | H185: 78.92 | I185: 2249
A186: 174 | B186: 00231871 | C186: 08/22/2023 | D186: 08/22/2023 | E186: 0.5 | F186: 09/19/2023 | G186: 28.5 | H186: 47.1 | I186: 1342
A187: 175 | B187: 00229662 | C187: 2023-06-22 | D187: 2023-07-20 | E187: 14.5 | F187: 08/02/2023 | G187: 27.5 | H187: 50.63 | I187: 1392
A188: 176 | B188: 00240749 | C188: 12/06/2023 | D188: 12/06/2023 | E188: 0.5 | F188: 12/26/2023 | G188: 20.5 | H188: 47.39 | I188: 971
A189: 177 | B189: 00227390 | C189: 2023-06-02 | D189: 2023-07-05 | E189: 17 | F189: 07/12/2023 | G189: 24 | H189: 52.21 | I189: 1253
A190: 178 | B190: 00234187 | C190: 09/15/2023 | D190: 09/15/2023 | E190: 0.5 | F190: 10/11/2023 | G190: 26.5 | H190: 78.16 | I190: 2071
A191: 179 | B191: 00215185 | C191: 2022-12-20 | D191: 2023-01-20 | E191: 16 | F191: 02/01/2023 | G191: 28 | H191: 49.58 | I191: 1388
A192: 180 | B192: 00215279 | C192: 2023-02-01 | D192: 2023-02-28 | E192: 14 | F192: 02/09/2023 | G192: -5 | H192: 5300 | I192: -26500
A193: 181 | B193: 00234217 | C193: 2023-01-24 | D193: 2023-01-24 | E193: 0.5 | F193: 09/26/2023 | G193: 245.5 | H193: 2258.31 | I193: 554415
A194: 182 | B194: 00215214 | C194: 2023-01-01 | D194: 2023-12-31 | E194: 182.5 | F194: 02/06/2023 | G194: -145.5 | H194: 600 | I194: -87300
A195: 183 | B195: 00217492 | C195: 2023-01-12 | D195: 2023-02-10 | E195: 15 | F195: 02/22/2023 | G195: 27 | H195: 49.7 | I195: 1342
A196: 184 | B196: 00224818 | C196: 06/02/2023 | D196: 06/02/2023 | E196: 0.5 | F196: 06/28/2023 | G196: 26.5 | H196: 78.16 | I196: 2071
A197: 185 | B197: 00222634 | C197: 05/02/2023 | D197: 05/02/2023 | E197: 0.5 | F197: 05/30/2023 | G197: 28.5 | H197: 47.04 | I197: 1341
A198: 186 | B198: 00222315 | C198: 2023-02-28 | D198: 2023-04-01 | E198: 16.5 | F198: 05/01/2023 | G198: 46.5 | H198: 690.33 | I198: 32100
A199: 187 | B199: 00213026 | C199: 12/28/2022 | D199: 12/28/2022 | E199: 0.5 | F199: 01/25/2023 | G199: 28.5 | H199: 47.04 | I199: 1341
A200: 188 | B200: 00219966 | C200: 2023-02-01 | D200: 02/28/2023 | E200: 14 | F200: 03/24/2023 | G200: 38 | H200: 27 | I200: 1026
A201: 189 | B201: 00219861 | C201: 2023-01-25 | D201: 2023-02-17 | E201: 12 | F201: 03/16/2023 | G201: 39 | H201: 165.84 | I201: 6468
A202: 190 | B202: 00238805 | C202: 2023-12-21 | D202: 2024-03-20 | E202: 45.5 | F202: 11/22/2023 | G202: -73.5 | H202: 601.39 | I202: -44202
... 212 more rows
